Workbook

Sheet TEKLİF
P1: CTRL + Q | Q1: opsiyon | R1: vade | S1: Teslimat | T1: Stok | AW1: http://www.kayalarkereste.com/image/
B2: Firma : | E2: Demka Kereste | Q2: 7 Gün | R2: Nakit | S2: Fabrikamızda kamyon üstü teslim | T2: Hazır Değil
B3: İlgili : | Q3: 15 Gün | R3: 30 Gün | S3: Nakliye Dahil Müşteri Adrese Teslim | T3: Yarı Hazır Ürün
B4: Tarih : | C4: =NOW() -> 2020-03-26T14:07:08.290 | Q4: 30 Gün | R4: 60 Gün | T4: Hazır Ürün
B5: Mail : | E5: Orman Ürünleri İnş. San. Tic. Ltd. Şti.
B6: Opsiyon : | C6: =Q2 -> 7 Gün
B7: Vade : | C7: =R2 -> Nakit | H7: Yavuz Demircioğlu | I7: : 0532 221 62 72
B8: Teslimat : | C8: =S2 -> Fabrikamızda kamyon üstü teslim
B9: Stok : | C9: =T2 -> Hazır Değil
N10: 1 ad kapat | O10: Kapat M2 | Q10: Kalın Ölç Fiyatı | T10: M3 /ad. | U10: 1 ad kapattığı genişlk | V10: M2 Fiyat | W10: 1 m3 kapattığı alan | X10: M3 / fiyat
B11: KOD | C11: Cinsi | D11: Tn | E11: En | F11: Kln | G11: Boy | H11: Miktar | J11: Fiyat | K11: Dm3 | L11: Tutar | O11: Kapatılan | Q11: EN | R11: Kln | S11: Fiyat | AD11: KOD | AE11: Ürün İsmi | AF11: Açıklama | AG11: Tane mi | AH11: Net Ölçü Fiyatı | AI11: +kdv | AJ11: Boy | AK11: Kln | AL11: En | AN11: Fiyatı m3 | AP11: kln | AQ11: en | AS11: genişlik kaç cm dir ? | AT11: m2 Fiyatı | AU11: Kapattığı alan
D12: =IF(IFERROR(VLOOKUP(C12,AE:AG,3,FALSE),"")<>"","a","") ->  | J12: =IFERROR(VLOOKUP(B12,AD:AH,5,FALSE),"") ->  | AN12: =IFERROR(AH12*AL12*AK12/AQ12/AP12,"") -> 
A13: =IFERROR(HYPERLINK((VLOOKUP(B13,AZ:BD,5,FALSE)),"█"),"1") -> 1 | C13: =IFERROR(VLOOKUP(B13,AD:AE,2,FALSE),"") ->  | E13: =IFERROR(VLOOKUP(B13,AD:AS,14,FALSE),"") ->  | F13: =IFERROR(VLOOKUP(B13,AD:AS,13,FALSE),"") ->  | G13: =IFERROR(VLOOKUP(B13,AD:AJ,7,FALSE),"") ->  | K13: =IFERROR((E13*F13*G13*H13)/1000,"") ->  | L13: =IFERROR(IF(D13<>"",H13*J13,IF(O13<>"",O13*J13,IF(K13>1,K13*J13/1000))),"") ->  | N13: =IFERROR(VLOOKUP(C13,AE:AS,15,FALSE),"") ->  | O13: =IFERROR(N13*G13*H13/10000,"") ->  | Q13: =IFERROR(IF(COUNTA(E13)>=1,IF(E13<4,2.6,IF(E13<5.1,5,IF(E13<10.1,10,IF(E13<15,15)))),""),"") -> FALSE | R13: =IFERROR(IF(F13<=2.6,2.6,IF(F13<5.1,5,IF(F13<10.1,10,IF(F13<15,15)))),"") -> FALSE | S13: =IFERROR(E13*F13*J13/Q13/R13,"") ->  | T13: =IFERROR(IF(H13<>"",(1000/G13/F13/E13*1000),""),"") ->  | U13: 1 | V13: =IFERROR(((100/E13/F13)*N13),"") ->  | W13: =IFERROR((100/E13/F13)*N13,"") ->  | X13: =IF(D13<>"",J13*W13,"") ->  | Z13: =IFERROR(HYPERLINK((VLOOKUP(AA13,AZ:BD,5,FALSE))," ████ Kod: "),"Kod :") -> ████ Kod: | AA13: KT-110 | AD13: KR-107 | AE13: Kereste 5 x 10 Ukrayna | AF13: Ukrayna inşaatlık | AH13: 990 | AI13: =AH13*0.18 -> 178.2 | AJ13: 300 | AK13: 5 | AL13: 10 | AN13: 990 | AP13: 5 | AQ13: 10 | AT13: =IFERROR(AH13/((100/AP13/AQ13)*AS13),"") ->  | AU13: =IF(AG13<>"","",IFERROR((100/AP13/AQ13)*AS13,"")) -> 0 | AX13: name(tr) | AY13: sku | AZ13: model | BA13: image_name | BB13: price | BU13: Kalınlık | BV13: En | BW13: 3 Boy Adet | BX13: 4 Boy Adet
A14: =IFERROR(HYPERLINK((VLOOKUP(B14,AZ:BD,5,FALSE)),"█"),"2") -> 2 | D14: =IF(IFERROR(VLOOKUP(C14,AE:AG,3,FALSE),"")<>"","a","") ->  | K14: =IFERROR((E14*F14*G14*H14)/1000,"") ->  | O14: =IFERROR(N14*G14*H14/10000,"") ->  | Q14: =IFERROR(IF(COUNTA(E14)>=1,IF(E14<4,2.6,IF(E14<5.1,5,IF(E14<10.1,10,IF(E14<15,15)))),""),"") -> FALSE | R14: FALSE | U14: =IFERROR(VLOOKUP(C14,AE:AS,15,FALSE),"") ->  | V14: =IFERROR(J14/((100/E14/F14)*U14),"") ->  | W14: =IFERROR((100/E14/F14)*N14,"") ->  | X14: =IF(D14<>"",J14*W14,"") ->  | Z14: Cins : | AA14: =CONCATENATE(IFERROR(VLOOKUP(AA13,AD:AE,2,FALSE),"")," - ",IFERROR(VLOOKUP(AA13,AD:AF,3,FALSE),"")) -> Kütük Ev Duvar Profil Ukrayna - Ukrayna | AD14: KR-108 | AE14: Kereste 10 x 10 Ukrayna | AF14: Ukrayna inşaatlık | AH14: 990 | AI14: 178.2 | AJ14: 300 | AK14: 10 | AL14: 10 | AN14: 990 | AP14: 10 | AQ14: 10 | AU14: 0 | AW14: =HYPERLINK(BD14,AZ14) -> PM-103 | AX14: PM-103 Piknik Masa | AY14: Adet | AZ14: PM-103 | BA14: catalog/Piknik-Masa/PM-103/PM-103-piknik-masa-ucuz-fiyatlari-imalati-resimleri- www.kayalarkereste.com-01.jpg | BB14: 870 | BT14: inşaatlık kereste | BU14: 91 | BV14: 41 | BW14: =1000000/300/5/10 -> 66.66666667 | BX14: =1000000/400/5/10 -> 50
A15: =IFERROR(HYPERLINK((VLOOKUP(B15,AZ:BD,5,FALSE)),"█"),"3") -> 3 | Q15: =IF(E15<4,2.6,IF(E15<5.1,5,IF(E15<10.1,10,IF(E15<15,15)))) -> FALSE | R15: FALSE | Z15: En : | AA15: =IFERROR(VLOOKUP(AA13,AD:AL,9,FALSE),"") -> 15 | AD15: KR-101 | AE15: Kereste 41 x 91 Ukrayna | AF15: Ukrayna inşaatlık | AH15: 990 | AI15: 178.2 | AJ15: 300 | AK15: 4.1 | AL15: 9.1 | AN15: 738.738 | AP15: 5 | AQ15: 10 | AU15: 0 | AW15: SA-102 | AX15: SA-102 Ahşap Salıncak | AY15: Adet | AZ15: SA-102 | BA15: catalog/Piknik-Masa/SA-102/SA-102-ahsap-salincak-fiyatlari-esitleri-istanbul-08.jpg | BB15: 2300 | BD15: =CONCATENATE($AW$1, BA15) -> http://www.kayalarkereste.com/image/catalog/Piknik-Masa/SA-102/SA-102-ahsap-salincak-fiyatlari-esitleri-istanbul-08.jpg | BT15: inşaatlık kereste | BU15: 91 | BV15: 91 | BW15: =1000000/300/10/10 -> 33.33333333 | BX15: =1000000/400/10/10 -> 25
A16: =IFERROR(HYPERLINK((VLOOKUP(B16,AZ:BD,5,FALSE)),"█"),"4") -> 4 | Q16: =IF(E16<4,2.6,IF(E16<5.1,5,IF(E16<10.1,10,IF(E16<15,15)))) -> FALSE | R16: FALSE | Z16: Net Kalınlık : | AA16: =IFERROR(VLOOKUP(AA13,AD:AP,8,FALSE),"") -> 9 | AD16: KR-102 | AE16: Kereste 91 x 91 Ukrayna | AF16: Ukrayna inşaatlık | AG16: b | AH16: 990 | AI16: 178.2 | AJ16: 300 | AK16: 9.1 | AL16: 9.1 | AN16: 819.819 | AP16: 10 | AQ16: 10 | AW16: PM-104 | AX16: PM-104 Piknik Masa | AY16: Adet | AZ16: PM-104 | BA16: catalog/Piknik-Masa/PM-104/pm-104-piknik-masa-fiyatlari-01.jpg | BB16: 928 | BD16: http://www.kayalarkereste.com/image/catalog/Piknik-Masa/PM-104/pm-104-piknik-masa-fiyatlari-01.jpg | BT16: inşaatlık kereste | BU16: 43 | BV16: 93 | BW16: =1000000/300/5/10 -> 66.66666667 | BX16: =1000000/400/5/10 -> 50
A17: =IFERROR(HYPERLINK((VLOOKUP(B17,AZ:BD,5,FALSE)),"█"),"5") -> 5 | Q17: FALSE | R17: FALSE | Z17: Önceki Ham Kalınlık : | AA17: =IFERROR(VLOOKUP(AA13,AD:AP,13,FALSE),"") -> 10 | AD17: KR-103 | AE17: Kereste 43 x 93 Ukrayna | AF17: Ukrayna inşaatlık | AH17: 990 | AI17: 178.2 | AJ17: 300 | AK17: 4.3 | AL17: 9.3 | AN17: 791.802 | AP17: 5 | AQ17: 10 | AU17: 0 | AW17: PM-106 | AX17: PM-106 Piknik Masa | AY17: Adet | AZ17: PM-106 | BA17: catalog/Piknik-Masa/PM-106/pm-106-ahsap-piknik-kir-masa-03.jpg | BB17: 638 | BD17: http://www.kayalarkereste.com/image/catalog/Piknik-Masa/PM-106/pm-106-ahsap-piknik-kir-masa-03.jpg | BT17: inşaatlık kereste | BU17: 93 | BV17: 93 | BW17: =1000000/300/10/10 -> 33.33333333 | BX17: =1000000/400/10/10 -> 25
A18: =IFERROR(HYPERLINK((VLOOKUP(B18,AZ:BD,5,FALSE)),"█"),"6") -> 6 | Q18: FALSE | R18: FALSE | Z18: Boy : | AD18: KR-102 | AE18: Kereste 93 x 93 Ukrayna | AF18: Ukrayna inşaatlık | AH18: 990 | AI18: 178.2 | AJ18: 300 | AK18: 9.3 | AL18: 9.3 | AN18: 856.251 | AP18: 10 | AQ18: 10 | AU18: 0 | AW18: PM-107 | AX18: PM-107 Piknik Masa | AY18: Adet | AZ18: PM-107 | BA18: catalog/Piknik-Masa/PM-107/PM-107-metal-dokum-ayakli-ahsap-maun-bahce-dis-mekan-masa-01.jpg | BB18: 672.8 | BD18: http://www.kayalarkereste.com/image/catalog/Piknik-Masa/PM-107/PM-107-metal-dokum-ayakli-ahsap-maun-bahce-dis-mekan-masa-01.jpg | BT18: inşaatlık kereste | BU18: 45 | BV18: 95 | BW18: =1000000/300/5/10 -> 66.66666667 | BX18: =1000000/400/5/10 -> 50
A19: =IFERROR(HYPERLINK((VLOOKUP(B19,AZ:BD,5,FALSE)),"█"),"7") -> 7 | Q19: FALSE | R19: FALSE | Z19: 1 adet kapattığı genşlik: | AA19: =IFERROR(VLOOKUP(AA13,AD:AS,16,FALSE),"") -> 13.5 | AD19: KR-105 | AE19: Kereste 45 x 95 Ukrayna | AF19: Ukrayna inşaatlık | AH19: 990 | AI19: 178.2 | AJ19: 300 | AK19: 4.5 | AL19: 9.5 | AN19: 846.45 | AP19: 5 | AQ19: 10 | AU19: 0 | AW19: PM-108 | AX19: PM-108 Piknik Masa | AY19: Adet | AZ19: PM-108 | BA19: catalog/Piknik-Masa/PM-108/pm-108-ahsap-masa-fiyatlari-resimleri-02.jpg | BB19: 348 | BD19: http://www.kayalarkereste.com/image/catalog/Piknik-Masa/PM-108/pm-108-ahsap-masa-fiyatlari-resimleri-02.jpg | BT19: inşaatlık kereste | BU19: 95 | BV19: 95 | BW19: =1000000/300/10/10 -> 33.33333333 | BX19: =1000000/400/10/10 -> 25
A20: =IFERROR(HYPERLINK((VLOOKUP(B20,AZ:BD,5,FALSE)),"█"),"8") -> 8 | J20: =IFERROR(VLOOKUP(B20,AD:AH,5,FALSE),"") ->  | L20: =IFERROR(IF(D20<>"",H20*J20,IF(O20<>"",O20*J20,IF(K20>1,K20*J20/1000))),"") ->  | Q20: =IF(COUNTA(E20)>=1,IF(E20<4,2.6,IF(E20<5.1,5,IF(E20<10.1,10,IF(E20<15,15)))),"") -> FALSE | R20: FALSE | Z20: Kapatığı Alan : | AA20: =((1000/AA17/AA15)*AA19)/10 -> 9 | AD20: KR-106 | AE20: Kereste 95 x 95 Ukrayna | AF20: Ukrayna inşaatlık | AH20: 990 | AI20: 178.2 | AJ20: 300 | AK20: 9.5 | AL20: 9.5 | AN20: 893.475 | AP20: 10 | AQ20: 10 | AU20: 0 | AW20: PM-109 | AX20: PM-109 Piknik Masa | AY20: Adet | AZ20: PM-109 | BA20: catalog/Piknik-Masa/PM-109/pm-109-ahsap-piknik-masa-fiyatlari-09.jpg | BB20: 928 | BD20: http://www.kayalarkereste.com/image/catalog/Piknik-Masa/PM-109/pm-109-ahsap-piknik-masa-fiyatlari-09.jpg | BT20: inşaatlık kereste | BU20: 50 | BV20: 100 | BW20: =1000000/300/5/10 -> 66.66666667 | BX20: =1000000/400/5/10 -> 50
A21: =IFERROR(HYPERLINK((VLOOKUP(B21,AZ:BD,5,FALSE)),"█"),"9") -> 9 | L21: =IFERROR(IF(D21<>"",H21*J21,IF(O21<>"",O21*J21,IF(K21>1,K21*J21/1000))),"") ->  | Q21: FALSE | R21: FALSE | Z21: M3 ü kaç Adet : | AA21: =1000000/AA15/AA17/AA18 ->  | AD21: KR-100 | AE21: Tahta -10-..-20 Ukrayna | AF21: Ukrayna inşaatlık | AH21: 990 | AI21: 178.2 | AJ21: 300 | AK21: 2.2 | AL21: 10 | AN21: 837.6923077 | AP21: 2.6 | AQ21: 10 | AU21: 0 | AW21: PM-111 | AX21: PM-111 Ahşap Piknik Masa | AY21: Adet | AZ21: PM-111 | BA21: catalog/Piknik-Masa/pm-111/pm-111-ahsap-piknik-masa-yaslanmali-ucuz-fiyatari-www.parkbahcemobilya.com-03.jpg | BB21: 696 | BD21: http://www.kayalarkereste.com/image/catalog/Piknik-Masa/pm-111/pm-111-ahsap-piknik-masa-yaslanmali-ucuz-fiyatari-www.parkbahcemobilya.com-03.jpg | BT21: inşaatlık kereste | BU21: 100 | BV21: 100 | BW21: =1000000/300/10/10 -> 33.33333333 | BX21: =1000000/400/10/10 -> 25
A22: =IFERROR(HYPERLINK((VLOOKUP(B22,AZ:BD,5,FALSE)),"█"),"10") -> 10 | D22: =IF(IFERROR(VLOOKUP(C22,AE:AG,3,FALSE),"")<>"","a","") ->  | Q22: FALSE | R22: FALSE | Z22: M2' si kaç Adet : | AA22: =1/(AA18*AA19)*10000 ->  | AD22: LM-108 | AE22: Lambiri 1.Sınıf Sibirya | AF22: Sibirya | AH22: 1650 | AI22: 297 | AJ22: 300 | AK22: 2.2 | AL22: 10 | AN22: 1396.153846 | AP22: 2.6 | AQ22: 10 | AS22: 7.8 | AT22: 55 | AU22: 30 | AW22: PM-110 | AX22: PM-110 Piknik Masa | AY22: Adet | AZ22: PM-110 | BA22: catalog/Piknik-Masa/pm-110/pm-110-piknik-masa-ucuz-fiyatlari-03.jpg | BB22: 1044 | BD22: http://www.kayalarkereste.com/image/catalog/Piknik-Masa/pm-110/pm-110-piknik-masa-ucuz-fiyatlari-03.jpg
A23: =IFERROR(HYPERLINK((VLOOKUP(B23,AZ:BD,5,FALSE)),"█"),"11") -> 11 | Q23: FALSE | R23: FALSE | Z23: Tanesi Kaç Dm3 : | AA23: =AA15*AA16*AA18/1000 -> 0 | AD23: LM-103 | AE23: Lambiri Extra Ukrayna | AF23: Ukrayna | AH23: 1800 | AI23: 324 | AJ23: 300 | AK23: 2.6 | AL23: 12 | AN23: 1800 | AP23: 2.6 | AQ23: 12 | AS23: 11 | AT23: 51.05454545 | AU23: 35.25641026 | AW23: PA-126 | AX23: PA-126 Çocuk Oyun Parkı | AY23: Adet | AZ23: PA-126 | BA23: catalog/Oyun-Park/PA-126/oyun-parki-fiyatlari-salincak-tahterevan-www.ahsapfiyatlistesi.com-PA-126-02.jpg | BB23: 4700 | BD23: http://www.kayalarkereste.com/image/catalog/Oyun-Park/PA-126/oyun-parki-fiyatlari-salincak-tahterevan-www.ahsapfiyatlistesi.com-PA-126-02.jpg | BT23: inşaatlık keresteler 5x10 ve 10x10 Tam ölçü hesaplanır. Kamyon bazında peşin satış fiyatıdır.
A24: =IFERROR(HYPERLINK((VLOOKUP(B24,AZ:BD,5,FALSE)),"█"),"12") -> 12 | Q24: FALSE | R24: FALSE | Z24: 1 m3 Fiyatı : | AA24: Kapattığı Alan x m2 Fiyatı | AD24: LM-101 | AE24: Lambiri 1.Sn. Ukrayna | AF24: Ukrayna | AH24: 1550 | AI24: 279 | AJ24: 300 | AK24: 2.6 | AL24: 10 | AN24: 1550 | AP24: 2.6 | AQ24: 10 | AS24: 7.8 | AT24: 51.66666667 | AU24: 30 | AW24: PA-127 | AX24: PA-127 Çocuk Oyun Parkı | AY24: Adet | AZ24: PA-127 | BA24: catalog/Oyun-Park/PA-127/ahsap-cocuk-oyun-parki-fiyatlari-www.ahsapfiyatlistesi.com-PA-127-05.jpg | BB24: 7540 | BD24: http://www.kayalarkereste.com/image/catalog/Oyun-Park/PA-127/ahsap-cocuk-oyun-parki-fiyatlari-www.ahsapfiyatlistesi.com-PA-127-05.jpg
A25: =IFERROR(HYPERLINK((VLOOKUP(B25,AZ:BD,5,FALSE)),"█"),"13") -> 13 | Q25: FALSE | R25: FALSE | Z25: Nakliye : | AA25: Hariç | AD25: LM-102 | AE25: Lambiri 2.Sn. Ukrayna | AF25: Ukrayna | AH25: 1450 | AI25: 261 | AJ25: 300 | AK25: 2.6 | AL25: 10 | AN25: 1450 | AP25: 2.6 | AQ25: 10 | AS25: 7.8 | AT25: 48.33333333 | AU25: 30 | AW25: =HYPERLINK(BD25,AZ25) -> PA-128 | AX25: PA-128 Çocuk Oyun Parkı | AY25: Adet | AZ25: PA-128 | BA25: catalog/Oyun-Park/PA-128/ahsap-cocuk-oyun-parki-fiyatlari-www-ahsapfiyatlistesi-com-PA-128-02.jpg | BB25: 4640 | BD25: http://www.kayalarkereste.com/image/catalog/Oyun-Park/PA-128/ahsap-cocuk-oyun-parki-fiyatlari-www-ahsapfiyatlistesi-com-PA-128-02.jpg
A26: =IFERROR(HYPERLINK((VLOOKUP(B26,AZ:BD,5,FALSE)),"█"),"14") -> 14 | Q26: FALSE | R26: FALSE | Z26: Koruyucu : | AA26: İsteğe göre Emprenye Katkılı Su bazlı ahşap koruyucu boya uygulanabilir. fiyat sorunuz | AD26: LM-112 | AE26: OSB 11mm Ukrayna | AF26: 1 | AG26: b | AH26: 58 | AI26: 10.44 | AJ26: 244 | AK26: 1.1 | AL26: 122 | AN26: 58 | AP26: 1.1 | AQ26: 122 | AS26: 122 | AT26: 0.638 | AU26: =IF(AG26<>"","",IFERROR((100/AP26/AQ26)*AS26,"")) ->  | AW26: PA-129 | AX26: PA-129 Çocuk Oyun Parkı | AY26: Adet | AZ26: PA-129 | BA26: catalog/Oyun-Park/PA-129/ahsap-oyun-parki-salincak-tahterevan-fiyatlari-www.ahsapfiyatlistesi.com-PA-129-01.jpg | BB26: 4500 | BD26: http://www.kayalarkereste.com/image/catalog/Oyun-Park/PA-129/ahsap-oyun-parki-salincak-tahterevan-fiyatlari-www.ahsapfiyatlistesi.com-PA-129-01.jpg
A27: =IFERROR(HYPERLINK((VLOOKUP(B27,AZ:BD,5,FALSE)),"█"),"15") -> 15 | Q27: FALSE | R27: FALSE | Z27: Teslim Süresi : | AA27: Ortalama 1 ile 15 gün arası | AD27: LM-113 | AE27: OSB 9mm Ukrayna | AG27: a | AH27: 53 | AI27: 9.54 | AJ27: 244 | AK27: 0.9 | AL27: 122 | AN27: 53 | AP27: 0.9 | AQ27: 122 | AS27: 122 | AT27: 0.477 | AU27: =IF(AG27<>"","",IFERROR((100/AP27/AQ27)*AS27,"")) ->  | AW27: PA-130 | AX27: PA-130 Çocuk Oyun Parkı | AY27: Adet | AZ27: PA-130 | BA27: catalog/Oyun-Park/PA-130/PA-130-havuzlu-platform-cocuk-oyun-parkı-01.jpg | BB27: 7540 | BD27: http://www.kayalarkereste.com/image/catalog/Oyun-Park/PA-130/PA-130-havuzlu-platform-cocuk-oyun-parkı-01.jpg
A28: =IFERROR(HYPERLINK((VLOOKUP(B28,AZ:BD,5,FALSE)),"█"),"16") -> 16 | Q28: FALSE | R28: FALSE | Z28: Garanti : | AA28: 5 Yıl | AD28: LM-114 | AE28: Alın Tahtası Ukrayna | AF28: Ukrayna | AG28: a | AH28: 30 | AI28: 5.4 | AJ28: 300 | AK28: 2.2 | AL28: 20 | AN28: 25.38461538 | AP28: 2.6 | AQ28: 20 | AW28: AC-101 | AX28: Ahşap Çit Korkuluk AC-101 | AY28: Metre | AZ28: AC-101 | BA28: catalog/cit-korkuluk/AC-101/AC-101-çit-korkuluk-trabzan-ahşap-korkuluk-03.JPG | BB28: 139.2 | BD28: http://www.kayalarkereste.com/image/catalog/cit-korkuluk/AC-101/AC-101-çit-korkuluk-trabzan-ahşap-korkuluk-03.JPG
A29: =IFERROR(HYPERLINK((VLOOKUP(B29,AZ:BD,5,FALSE)),"█"),"17") -> 17 | Q29: FALSE | R29: FALSE | Z29: Bakım : | AA29: İlk bakım 1 sene sonra, takip eden bakımlar yaklaşık 2 yılda bir yapılmalıdır. | AD29: LM-115 | AE29: süpürgelik Ukrayna | AF29: Ukrayna | AG29: m | AH29: 2 | AI29: 0.36 | AJ29: 300 | AK29: 2.2 | AL29: 5 | AN29: 2 | AP29: 2.2 | AQ29: 5 | AW29: AC-102 | AX29: Ahşap Çit Korkuluk AC-102 | AY29: Metre | AZ29: AC-102 | BA29: 2018/02/ac-102-ahsap-cit-korkuluk-fiyatlari-tuzla-pendik-gebze-04.jpg | BB29: 98.6 | BD29: http://www.kayalarkereste.com/image/2018/02/ac-102-ahsap-cit-korkuluk-fiyatlari-tuzla-pendik-gebze-04.jpg
A30: =IFERROR(HYPERLINK((VLOOKUP(B30,AZ:BD,5,FALSE)),"█"),"18") -> 18 | Q30: FALSE | R30: FALSE | AD30: LM-116 | AE30: Cephe 12 cm geniş Ukrayna | AF30: Ukrayna | AH30: 1700 | AI30: 306 | AJ30: 400 | AK30: 3.5 | AL30: 12 | AN30: 1700 | AP30: 3.5 | AQ30: 12 | AS30: 9.9 | AT30: 72.12121212 | AU30: 23.57142857 | AW30: AC-103 | AX30: Ahşap Çit Korkuluk AC-103 | AY30: Metre | AZ30: AC-103 | BA30: catalog/cit-korkuluk/AC-103/ahsap-cit-korkuluk-modelleri-fiyatlari-AC-103-01.jpg | BB30: 139.2 | BD30: http://www.kayalarkereste.com/image/catalog/cit-korkuluk/AC-103/ahsap-cit-korkuluk-modelleri-fiyatlari-AC-103-01.jpg
A31: =IFERROR(HYPERLINK((VLOOKUP(B31,AZ:BD,5,FALSE)),"█"),"19") -> 19 | Q31: FALSE | R31: FALSE
A32: =IFERROR(HYPERLINK((VLOOKUP(B32,AZ:BD,5,FALSE)),"█"),"20") -> 20 | Q32: FALSE | R32: FALSE
A33: =IFERROR(HYPERLINK((VLOOKUP(B33,AZ:BD,5,FALSE)),"█"),"21") -> 21 | Q33: FALSE | R33: FALSE
A34: =IFERROR(HYPERLINK((VLOOKUP(B34,AZ:BD,5,FALSE)),"█"),"22") -> 22 | Q34: FALSE | R34: FALSE
A35: =IFERROR(HYPERLINK((VLOOKUP(B35,AZ:BD,5,FALSE)),"█"),"23") -> 23 | Q35: FALSE | R35: FALSE | Z35: 1 m2 Fiyatı : | AA35: =IFERROR((VLOOKUP(AA13,AD:AH,5,FALSE)/Kapatığı_Alan),"") -> 222.2222222 | AD35: KS-100 | AE35: KS-100 silinmiş Sibirya | AF35: 5 x 10 Sibirya | AH35: 2400 | AI35: 432 | AJ35: 400 | AK35: 5 | AL35: 10 | AN35: 2400 | AP35: 5 | AQ35: 10 | AU35: 0 | AW35: AC-104 | AX35: Ahşap Çit Korkuluk AC-104 | AY35: Metre | AZ35: AC-104 | BA35: catalog/cit-korkuluk/AC-104/ac-104-ahsap-cit-korkuluk-modelleri-fiyatlari-resimleri-www.kayalarkereste.com-07.jpg | BB35: 139.2 | BD35: http://www.kayalarkereste.com/image/catalog/cit-korkuluk/AC-104/ac-104-ahsap-cit-korkuluk-modelleri-fiyatlari-resimleri-www.kayalarkereste.com-07.jpg
A36: =IFERROR(HYPERLINK((VLOOKUP(B36,AZ:BD,5,FALSE)),"█"),"24") -> 24 | Q36: FALSE | R36: FALSE | AD36: KS-101 | AE36: KS-101 silinmiş Sibirya | AF36: 5 x 10 Ukrayna | AH36: 1700 | AI36: 306 | AJ36: 300 | AK36: 5 | AL36: 10 | AN36: 1700 | AP36: 5 | AQ36: 10 | AU36: 0 | AW36: VH-107 | AX36: Ahşap Çocuk Oyun Evi | AY36: Adet | AZ36: VH-107 | BA36: catalog/cocuk-evi/VH-107/cocuk-oyun-evi-oyun-bahce-fiyatlari-modelleri-www.ahsapfiyatlistesi.com-vh-107-05.JPG | BB36: 6500 | BD36: http://www.kayalarkereste.com/image/catalog/cocuk-evi/VH-107/cocuk-oyun-evi-oyun-bahce-fiyatlari-modelleri-www.ahsapfiyatlistesi.com-vh-107-05.JPG
H37: =SUM(H13:H36) -> 0 | K37: =SUM(K13:K36) -> 0 | L37: =SUM(L13:L36) -> 0 | AD37: KS-103 | AE37: KS-103 silinmiş Sibirya | AF37: 5 x 15 Sibirya | AH37: 2300 | AI37: 414 | AJ37: 400 | AK37: 5 | AL37: 10 | AN37: 2300 | AP37: 5 | AQ37: 10 | AU37: 0 | AW37: VH-108 | AX37: Ahşap Çocuk Oyun Evi | AY37: Adet | AZ37: VH-108 | BA37: catalog/cocuk-evi/VH-108/oyun-evi-www.ahsapfiyatlistesi.com-VH-108-01.JPG | BB37: 6500 | BD37: http://www.kayalarkereste.com/image/catalog/cocuk-evi/VH-108/oyun-evi-www.ahsapfiyatlistesi.com-VH-108-01.JPG
B38: Not: | AD38: KS-106 | AE38: KS-106 silinmiş Sibirya | AF38: 5 x 12,5 Sibirya | AH38: 2300 | AI38: 414 | AJ38: 400 | AK38: 5 | AL38: 12.5 | AN38: 2300 | AP38: 5 | AQ38: 12.5 | AU38: 0 | AW38: KK-101 | AX38: Köpek Kulubesi KK-101 | AY38: Adet | AZ38: KK-101 | BA38: catalog/kopek-kulube/KK-101/kk-101-kopek-kulube-evi-fiyatlari-www.kayalarahsap.com-01.jpg | BB38: 672.8 | BD38: http://www.kayalarkereste.com/image/catalog/kopek-kulube/KK-101/kk-101-kopek-kulube-evi-fiyatlari-www.kayalarahsap.com-01.jpg
H39: Toplam Dm3 : | K39: =SUM(K13:K36) -> 0 | AD39: KS-107 | AE39: KS-107 silinmiş Sibirya | AF39: 6,5 x 12,5 Ladin | AH39: 2300 | AI39: 414 | AJ39: 600 | AK39: 6.5 | AL39: 12.5 | AN39: 2300 | AP39: 6.5 | AQ39: 12.5 | AU39: 0 | AW39: KK-102 | AX39: Köpek Kulubesi KK-102 | AY39: Adet | AZ39: KK-102 | BA39: catalog/kopek evi/KK-102/kk-102-kopek-kulube-evi-fiyatlari-resimleri-www.kayalarahsap.com-03.jpg | BB39: 522 | BD39: http://www.kayalarkereste.com/image/catalog/kopek evi/KK-102/kk-102-kopek-kulube-evi-fiyatlari-resimleri-www.kayalarahsap.com-03.jpg
H40: Ara Toplam : | K40: =SUM(L13:L36) -> 0 | AD40: LM-122 | AE40: Alın Tahtası | AF40: Ukrayna Sınıf Çam | AG40: t | AH40: 30 | AI40: 5.4 | AJ40: 300 | AK40: 2.2 | AL40: 20 | AN40: 30 | AP40: 2.2 | AQ40: 20 | AS40: 300 | AT40: 0.044 | AW40: KK-103 | AX40: Köpek Kulubesi KK-103 | AY40: Adet | AZ40: KK-103 | BA40: catalog/kopek-kulube/KK-103/kk-103-kopek-kulube-evi-fiyatlari-hayvan-barinak-fiyatlari-www.kayalarahsap.com-01.jpg | BB40: 522 | BD40: http://www.kayalarkereste.com/image/catalog/kopek-kulube/KK-103/kk-103-kopek-kulube-evi-fiyatlari-hayvan-barinak-fiyatlari-www.kayalarahsap.com-01.jpg
H41: Toplam KDV : | K41: =K40*0.18 -> 0 | AD41: LM-123 | AI41: 0 | AW41: KK-104 | AX41: Köpek Kulubesi KK-104 | AY41: Adet | AZ41: KK-104 | BA41: catalog/kopek-kulube/KK-104/kk-104-kopek-kulube-evi-hayvan-barinak-fiyatlari-www.kayalarahsap.com-01.JPG | BB41: 522 | BD41: http://www.kayalarkereste.com/image/catalog/kopek-kulube/KK-104/kk-104-kopek-kulube-evi-hayvan-barinak-fiyatlari-www.kayalarahsap.com-01.JPG
AI42: 0 | AW42: KK-105 | AX42: Köpek Kulubesi KK-105 | AY42: Adet | AZ42: KK-105 | BA42: catalog/kopek-kulube/KK-105/kk-105-ahsap-kopek-kulube-fıyatları-kocaeli-gebze-www.kayalarkereste.com-02.JPG | BB42: 754 | BD42: http://www.kayalarkereste.com/image/catalog/kopek-kulube/KK-105/kk-105-ahsap-kopek-kulube-fıyatları-kocaeli-gebze-www.kayalarkereste.com-02.JPG
H43: Genel Toplam : | K43: =K40+K41-K42 -> 0 | AI43: 0 | AW43: PR-101 | AX43: Ahşap Pergola | AY43: M2 | AZ43: PR-101 | BA43: catalog/pergola/PR-101/PR-101-ahsap-kamelya-pergola-fiyatlari-www.kayalarahsap.com-02.jpg | BB43: 406 | BD43: http://www.kayalarkereste.com/image/catalog/pergola/PR-101/PR-101-ahsap-kamelya-pergola-fiyatlari-www.kayalarahsap.com-02.jpg
H44: Ödenen : | T44: 4.1 | U44: x | V44: 9.1 | W44: ölçü ve | X44: 930 | Y44: TL den alınan kereste | AD44: YB-101 | AE44: Ahşap Yalı Baskı | AF44: Ukrayna | AH44: 1700 | AI44: 306 | AJ44: 300 | AK44: 1.8 | AL44: 12 | AN44: 1176.923077 | AP44: 2.6 | AQ44: 12 | AS44: 9.9 | AT44: 53.57575758 | AU44: 31.73076923 | AW44: PR-105 | AX44: Ahşap Pergola | AY44: M2 | AZ44: PR-105 | BA44: catalog/pergola/PR-105/PR-105-ahsap-kamelya-gazebo-pergola-fiyatlari-www.kayalarahsap.com-02.jpg | BB44: 406 | BD44: http://www.kayalarkereste.com/image/catalog/pergola/PR-105/PR-105-ahsap-kamelya-gazebo-pergola-fiyatlari-www.kayalarahsap.com-02.jpg
H45: Kalan : | K45: =K43-K44 -> 0 | AD45: YB-102 | AE45: Ahşap Yalı Baskı Sibirya | AF45: Sibirya | AH45: 2300 | AI45: 414 | AJ45: 400 | AK45: 3.5 | AL45: 12.5 | AN45: 2300 | AP45: 3.5 | AQ45: 12.5 | AS45: 11 | AT45: 91.47727273 | AU45: 25.14285714 | AW45: PR-106 | AX45: Ahşap Pergola | AY45: M2 | AZ45: PR-106 | BA45: catalog/pergola/PR-106/PR-106-pergola-gazebo-konsol-pergola-veranda-ahsap-pergole-fiyatlari-01.jpg | BB45: 406 | BD45: http://www.kayalarkereste.com/image/catalog/pergola/PR-106/PR-106-pergola-gazebo-konsol-pergola-veranda-ahsap-pergole-fiyatlari-01.jpg
T46: =IF(COUNTA(T44)>=1,IF(T44<4,2.6,IF(T44<5.1,5,IF(T44<10.1,10,IF(T44<15,15)))),"") -> 5 | U46: x | V46: =IF(COUNTA(V44)>=1,IF(T46=2.6,10,IF(V44<5,5,IF(V44<10.1,10,IF(T44<15,15)))),"") -> 10 | W46: olarak | X46: =T44*V44*X44/T46/V46 -> 693.966 | Y46: TL ye mal olmuş Olur | AD46: YB-103 | AE46: Ahşap Yalı Baskı Sibirya | AF46: Sibirya | AH46: 2300 | AI46: 414 | AJ46: 400 | AK46: 4.5 | AL46: 15 | AN46: 2070 | AP46: 5 | AQ46: 15 | AS46: 13.8 | AT46: 125 | AU46: 18.4 | AW46: PR-107 | AX46: Ahşap Pergola & Jeneratör Kabin | AY46: Adet | AZ46: PR-107 | BA46: catalog/pergola/PR-107 JENERATÖR KABİNİ/PR-107-pergola-gazebo-konsol-pergola-veranda-ahsap-jenerator-kabini-01.jpg | BB46: 2552 | BD46: http://www.kayalarkereste.com/image/catalog/pergola/PR-107 JENERATÖR KABİNİ/PR-107-pergola-gazebo-konsol-pergola-veranda-ahsap-jenerator-kabini-01.jpg
AD47: YB-104 | AE47: Ahşap Yalı Baskı yuvarlak Sibirya | AF47: Sibirya | AH47: 2300 | AI47: 414 | AJ47: 400 | AK47: 4.5 | AL47: 15 | AN47: 2070 | AP47: 5 | AQ47: 15 | AS47: 13.8 | AT47: 125 | AU47: 18.4 | AW47: =HYPERLINK(BD47,AZ47) -> AV-102 | AX47: Ahşap Bungalov Ev (AV-102) | AY47: M2 | AZ47: AV-102 | BA47: catalog/Ev/AV-102/av-102-kutuk-ev-bungalov-ahsap-ev-fiyatlari-ahsap-ev-yapimi-maliyeti-resimleri-www.kayalarkereste.com-01.jpg | BB47: 1740 | BD47: http://www.kayalarkereste.com/image/catalog/Ev/AV-102/av-102-kutuk-ev-bungalov-ahsap-ev-fiyatlari-ahsap-ev-yapimi-maliyeti-resimleri-www.kayalarkereste.com-01.jpg
B48: Kayalar Orman Ürünleri San. Tic. Ltd. Şti. | AD48: YB-105 | AE48: Ahşap Yalı Baskı Sibirya | AF48: Sibirya | AH48: 2300 | AI48: 414 | AJ48: 400 | AK48: 4.5 | AL48: 20 | AN48: 2070 | AP48: 5 | AQ48: 20 | AS48: 18.8 | AT48: 122.3404255 | AU48: 18.8 | AW48: AV-105 | AX48: Ahşap Bungalov Ev - (AV-105) | AY48: Adet | AZ48: AV-105 | BA48: catalog/Ev/av-105/av-105-ahsap-ev-bungalov-fiyatlari-ahsap-evi-maliyeti-resimleri-gebze-sile-istanbul-www.kayalarkereste.com-06.jpg | BB48: 12760 | BD48: http://www.kayalarkereste.com/image/catalog/Ev/av-105/av-105-ahsap-ev-bungalov-fiyatlari-ahsap-evi-maliyeti-resimleri-gebze-sile-istanbul-www.kayalarkereste.com-06.jpg
B49: M. Kemal cd. No:106 Balçık köyü Gebze / KOCAELİ www.kayalarkereste.com kayalarkereste@hotmail.com | AD49: YB-106 | AE49: Ahşap Yalı Baskı Fin-İsves | AF49: Fin - İsveç çamı | AH49: 3800 | AI49: 684 | AJ49: 400 | AK49: 2.4 | AL49: 23 | AN49: 3040 | AP49: 3 | AQ49: 23 | AS49: 21 | AT49: 124.8571429 | AU49: 30.43478261 | AW49: AV-106 | AX49: Ahşap Bungalov Ev (AV-106) | AY49: M2 | AZ49: AV-106 | BA49: catalog/Ev/av-106/av-106-ahsap-ev-bungalov-fiyatlari-ahsap-ev-yapimi-maliyeti-resimleri-gebze-www.kayalarkereste.com-01.jpg | BB49: 1566 | BD49: http://www.kayalarkereste.com/image/catalog/Ev/av-106/av-106-ahsap-ev-bungalov-fiyatlari-ahsap-ev-yapimi-maliyeti-resimleri-gebze-www.kayalarkereste.com-01.jpg
B50: Ziraat Bankası şb: 2617-Güzelyalı Hes No:69699580-5001 IBAN : TR32 0001 0026 1769 6995 8050 01 | AD50: YB-107 | AE50: Ahşap Yalı Baskı Sibirya | AF50: Sibirya | AH50: 2300 | AI50: 414 | AJ50: 400 | AK50: 4.5 | AL50: 15 | AN50: 2070 | AP50: 5 | AQ50: 15 | AS50: 13.8 | AT50: 125 | AU50: 18.4 | AW50: AV-107 | AX50: Ahşap Bungalov Ev (AV-107) | AY50: M2 | AZ50: AV-107 | BA50: catalog/Ev/AV-107 KANTAR/KM-140-kamelya-ahsap-dinlenme-sigara-icme-alani-fiyatlari-gebze-kocaeli-tuzla-pendik-istanbul-ahsap-ev-www.kayalarkerest~15.jpg | BB50: 1102 | BD50: http://www.kayalarkereste.com/image/catalog/Ev/AV-107 KANTAR/KM-140-kamelya-ahsap-dinlenme-sigara-icme-alani-fiyatlari-gebze-kocaeli-tuzla-pendik-istanbul-ahsap-ev-www.kayalarkerest~15.jpg
AD51: YB-108 | AE51: Ahşap Yalı Baskı Sibirya | AF51: Sibirya | AH51: 2300 | AI51: 414 | AJ51: 600 | AK51: 2.5 | AL51: 15 | AN51: 2300 | AP51: 2.5 | AQ51: 15 | AS51: 13.5 | AT51: 63.88888889 | AU51: 36
AI52: 0
AI53: 0
AD54: KT-105 | AE54: Kütük Ev Duvar Profil Sibirya | AF54: Sibirya | AH54: 2300 | AI54: 414 | AJ54: 400 | AK54: 4.5 | AL54: 15 | AN54: 2070 | AP54: 5 | AQ54: 15 | AS54: 13.8 | AT54: 125 | AU54: 18.4 | AW54: AV-108 | AX54: Ahşap Bungalov Ev (AV-108) | AY54: M2 | AZ54: AV-108 | BA54: catalog/Ev/av-108/av-108-bungalov-ahsap-ev-kutuk-ev-fiyatlari-yapimi-maliyeti-resimleri-gebze-www.kayalarahsap.com-01.jpg | BB54: 1566 | BD54: http://www.kayalarkereste.com/image/catalog/Ev/av-108/av-108-bungalov-ahsap-ev-kutuk-ev-fiyatlari-yapimi-maliyeti-resimleri-gebze-www.kayalarahsap.com-01.jpg
AD55: KT-110 | AE55: Kütük Ev Duvar Profil Ukrayna | AF55: Ukrayna | AH55: 2000 | AI55: 360 | AJ55: 600 | AK55: 9 | AL55: 15 | AN55: 1800 | AP55: 10 | AQ55: 15 | AS55: 13.5 | AT55: 222.2222222 | AU55: 9 | AW55: B-101 | AX55: BANK Döküm ve Metal Ayaklı B-101 | AY55: Adet | AZ55: B-101 | BA55: catalog/Bank/B-101/b-101-Bank-13-citali-ergonomik-ucuz-bank-gebze-www.parkbahcemobilya.com-www.ahsapfiyatlistesi.com-08.jpg | BB55: 485 | BD55: http://www.kayalarkereste.com/image/catalog/Bank/B-101/b-101-Bank-13-citali-ergonomik-ucuz-bank-gebze-www.parkbahcemobilya.com-www.ahsapfiyatlistesi.com-08.jpg
AD56: KT-118 | AE56: Kütük Ev Duvar Profil Sibirya Lamine | AF56: Sibirya Lamine | AH56: 3200 | AI56: 576 | AJ56: 600 | AK56: 13.5 | AL56: 15 | AN56: 2880 | AP56: 15 | AQ56: 15 | AS56: 13.5 | AT56: 533.3333333 | AU56: 6 | AW56: B-102 | AX56: BANK Döküm ve Metal Ayaklı + Kolluk (B-102) | AY56: Adet | AZ56: B-102 | BA56: catalog/Bank/B-102/b-102-dokum-ayakli-kollu-bank-fiyatlari-gebze-istanbul-kocaeli-izmit-www.kayalarkereste.com-01.jpg | BB56: 0 | BD56: http://www.kayalarkereste.com/image/catalog/Bank/B-102/b-102-dokum-ayakli-kollu-bank-fiyatlari-gebze-istanbul-kocaeli-izmit-www.kayalarkereste.com-01.jpg
AW57: B-103 | AX57: BANK Döküm ve Metal Ayaklı - Klasik | AY57: Adet | AZ57: B-103 | BA57: catalog/Bank/B-103/b-103-ahsap-dokum-ayakli-oturma-bank-fiyatlari-www.parkbahcemobilya.com-01.jpg | BB57: 340 | BD57: http://www.kayalarkereste.com/image/catalog/Bank/B-103/b-103-ahsap-dokum-ayakli-oturma-bank-fiyatlari-www.parkbahcemobilya.com-01.jpg
AW58: KB-201 | AX58: BANK - Ahşap Ayaklı KB-201 | AY58: Adet | AZ58: KB-201 | BA58: catalog/Bank/KB-201/kb-201-ahsap-bank-masa-modelleri-fiyatlari-resimleri-www.parkbahcemobilya.com-03.jpg | BB58: 139.2 | BD58: http://www.kayalarkereste.com/image/catalog/Bank/KB-201/kb-201-ahsap-bank-masa-modelleri-fiyatlari-resimleri-www.parkbahcemobilya.com-03.jpg
AW59: K-204 | AX59: BANK Döküm ve Metal Ayaklı - Kollu | AY59: Adet | AZ59: K-204 | BA59: catalog/Bank/K-204/kd-204-dokum-ayakli-kollu-ahsap-bank-modelleri-fiyatlari-resimleri-gebze-www.parkbahcemobilya.com-01.jpg | BB59: 565 | BD59: http://www.kayalarkereste.com/image/catalog/Bank/K-204/kd-204-dokum-ayakli-kollu-ahsap-bank-modelleri-fiyatlari-resimleri-gebze-www.parkbahcemobilya.com-01.jpg
AW60: K-219 | AX60: BANK Döküm ve Metal Ayaklı - Klasik Kollu | AY60: Adet | AZ60: K-219 | BA60: catalog/Bank/K-219/k-219-dokum-ayakli-kollu-ahsap-bank-modelleri-fiyatlari-resimleri-www.parkbahcemobilya.com-02.jpg | BB60: 560 | BD60: http://www.kayalarkereste.com/image/catalog/Bank/K-219/k-219-dokum-ayakli-kollu-ahsap-bank-modelleri-fiyatlari-resimleri-www.parkbahcemobilya.com-02.jpg
AW61: KD-203 | AX61: BANK Döküm ve Metal Ayaklı - Kollu | AY61: Adet | AZ61: KD-203 | BA61: catalog/Bank/KD-203/kd-203-ahsap-dokum-ayakli-kollu-bank-fiyatlari-resimleri-www.parkbahcemobilya.com-08.jpg | BB61: 720 | BD61: http://www.kayalarkereste.com/image/catalog/Bank/KD-203/kd-203-ahsap-dokum-ayakli-kollu-bank-fiyatlari-resimleri-www.parkbahcemobilya.com-08.jpg
AW62: UB-97 | AX62: BANK Yuvarlak Oturum Maun veya İroko | AY62: Adet | AZ62: UB-97 | BA62: catalog/Bank/UB-97/ub-97-ahsap-maun-dis-mekan-yuvarlak-metal-ayakli-bank-oturma-gruplari-fiyatlari-resimleri-www.parkbahcemobilya.com-01.JPG | BB62: 4234 | BD62: http://www.kayalarkereste.com/image/catalog/Bank/UB-97/ub-97-ahsap-maun-dis-mekan-yuvarlak-metal-ayakli-bank-oturma-gruplari-fiyatlari-resimleri-www.parkbahcemobilya.com-01.JPG
AW63: B-104 | AX63: BANK Döküm ve Metal Ayaklı B-104 | AY63: Adet | AZ63: B-104 | BA63: catalog/Bank/B-104/b-104-metal-ayali-yaslanmasiz-soyunma-odasi-bank-fiyatlari-gebze-istanbul-www.parkbahcemobilya.com-02.jpg | BB63: 266.8 | BD63: http://www.kayalarkereste.com/image/catalog/Bank/B-104/b-104-metal-ayali-yaslanmasiz-soyunma-odasi-bank-fiyatlari-gebze-istanbul-www.parkbahcemobilya.com-02.jpg
AW64: B-105 | AX64: BANK Döküm ve Metal Ayaklı - Soyunma odaları için | AY64: Adet | AZ64: B-105 | BA64: catalog/Bank/B-105/b-105-soyunma-odasi-bank-fiyatlari-www.parkbahcemobilya.com-01.jpg | BB64: 285 | BD64: http://www.kayalarkereste.com/image/catalog/Bank/B-105/b-105-soyunma-odasi-bank-fiyatlari-www.parkbahcemobilya.com-01.jpg
AW65: DC-101 | AX65: DECK Ahşap ÇAM 18 mm DC-101 | AY65: M2 | AZ65: DC-101 | BA65: catalog/deck/cam-dc-101/dc-101-cam-deck-ahsap-profil-yer-doseme-01.jpg | BB65: 57 | BD65: http://www.kayalarkereste.com/image/catalog/deck/cam-dc-101/dc-101-cam-deck-ahsap-profil-yer-doseme-01.jpg
AW66: KR-101 | AX66: İnşaatlık Kereste (41 x 91) - (91 x 91) [KR-101] | AY66: M3 | AZ66: KR-101 | BA66: catalog/Kereste/Kereste_paket.JPG | BB66: 990 | BD66: http://www.kayalarkereste.com/image/catalog/Kereste/Kereste_paket.JPG
AW67: LM-111 | AX67: İROKO Lambiri - Rabıta 130mm (LM-111) | AY67: M2 | AZ67: LM-111 | BA67: catalog/lambiri-ahsap/lm-111-iroko-lambiri-130mm-18mm-120mmkapatir-01.jpg | BB67: 30 | BD67: http://www.kayalarkereste.com/image/catalog/lambiri-ahsap/lm-111-iroko-lambiri-130mm-18mm-120mmkapatir-01.jpg
AW68: LM-101 | AX68: Lambiri - Rabıta 1. Sınıf (LM-101) | AY68: M2 | AZ68: LM-101 | BA68: catalog/lambiri-ahsap/LM-101-Lambiri 1-Sinif-01.jpg | BB68: 52 | BD68: http://www.kayalarkereste.com/image/catalog/lambiri-ahsap/LM-101-Lambiri 1-Sinif-01.jpg
AW69: LM-102 | AX69: Lambiri - Rabıta 2. Standart Sınıf Lambiri Rabıta (LM-102) | AY69: M2 | AZ69: LM-102 | BA69: catalog/lambiri-ahsap/LM-102-Lambiri 2-Sinif-01.jpg | BB69: 45 | BD69: http://www.kayalarkereste.com/image/catalog/lambiri-ahsap/LM-102-Lambiri 2-Sinif-01.jpg
AW70: LM-104 | AX70: Ahşap Süpürgelik | AY70: Metre | AZ70: LM-104 | BA70: catalog/lambiri-ahsap/supurgelik-5lik-a.jpg | BB70: 2.03 | BD70: http://www.kayalarkereste.com/image/catalog/lambiri-ahsap/supurgelik-5lik-a.jpg
AW71: LM-103 | AX71: Lambiri - Rabıta Extra Sınıf (LM-103) | AY71: M2 | AZ71: LM-103 | BA71: catalog/lambiri-ahsap/LM-100-Lambiri-Extra-03.jpg | BB71: 60 | BD71: http://www.kayalarkereste.com/image/catalog/lambiri-ahsap/LM-100-Lambiri-Extra-03.jpg
AW72: LM-112 | AX72: İROKO Lambiri - Rabıta 95 mm geniş (lm-112) | AY72: M2 | AZ72: LM-112 | BA72: catalog/lambiri-ahsap/lm-112-iroko-lambiri-95mm-18mm-86mmkapatır-01.jpg | BB72: 30 | BD72: http://www.kayalarkereste.com/image/catalog/lambiri-ahsap/lm-112-iroko-lambiri-95mm-18mm-86mmkapatır-01.jpg
AW73: LM-113 | AX73: İROKO Lambiri - Rabıta 95 mm geniş (LM-113) | AY73: M2 | AZ73: LM-113 | BA73: catalog/lambiri-ahsap/lm-113-iroko-rabita-yer-doseme-10cm-x-45cm-12mm-95mmkapatir-01.jpg | BB73: 30 | BD73: http://www.kayalarkereste.com/image/catalog/lambiri-ahsap/lm-113-iroko-rabita-yer-doseme-10cm-x-45cm-12mm-95mmkapatir-01.jpg
AW74: KS-101 | AX74: 5 x 10 Silinmiş Kereste Ukrayna -KS-101 | AY74: M3 | AZ74: KS-101 | BA74: catalog/silinmis-kereste/ks-101-cam-dogramalik-silinmis-sinif-kereste-5x10-01.jpg | BB74: 1700 | BD74: http://www.kayalarkereste.com/image/catalog/silinmis-kereste/ks-101-cam-dogramalik-silinmis-sinif-kereste-5x10-01.jpg
AW75: KS-102 | AX75: 10 x 10 Silinmiş Kereste UKRAYNA KS-102 | AY75: M3 | AZ75: KS-102 | BA75: catalog/silinmis-kereste/ks-102-cam-dogramalik-silinmis-sinif-kereste-10x10-01.jpg | BB75: 1700 | BD75: http://www.kayalarkereste.com/image/catalog/silinmis-kereste/ks-102-cam-dogramalik-silinmis-sinif-kereste-10x10-01.jpg
AW76: KS-103 | AX76: 5 x 15 Silinmiş Kereste Sibirya -KS-103 | AY76: M3 | AZ76: KS-103 | BA76: catalog/silinmis-kereste/ks-103-cam-dogramalik-silinmis-sinif-kereste-5x15-01.jpg | BB76: 2300 | BD76: http://www.kayalarkereste.com/image/catalog/silinmis-kereste/ks-103-cam-dogramalik-silinmis-sinif-kereste-5x15-01.jpg
AW77: KS-104 | AX77: 3,5x15 Silinmiş Kereste Sibirya KS-104 | AY77: M3 | AZ77: KS-104 | BA77: catalog/silinmis-kereste/ks-104-cam-ladin-dogramalik-silinmis-sinif-kereste-35x125-01.jpg | BB77: 2300 | BD77: http://www.kayalarkereste.com/image/catalog/silinmis-kereste/ks-104-cam-ladin-dogramalik-silinmis-sinif-kereste-35x125-01.jpg
H78: =IFERROR(VLOOKUP(E78,AE:AF,2,FALSE),"") ->  | AW78: KS-105 | AX78: 3,5 x 12,5 Silinmiş Kereste SİBİRYA KS-105 | AY78: M3 | AZ78: KS-105 | BA78: catalog/silinmis-kereste/ks-103-cam-dogramalik-silinmis-sinif-kereste-5x15-01.jpg | BB78: 2300 | BD78: http://www.kayalarkereste.com/image/catalog/silinmis-kereste/ks-103-cam-dogramalik-silinmis-sinif-kereste-5x15-01.jpg
AW79: KM-101 | AX79: Kamelya - Çardak -101 | AY79: Adet | AZ79: KM-101 | BA79: catalog/Kamelya-cardak/KM-101/KM-101-ucuz-ahsap-cardak-kamelya-kameriye-ahsap-ev-gazebo-pergola-kutuk-ev-pergole-fiyatlari-gebze-www.kayalarahsap.com-01.jpg | BB79: 20880 | BD79: http://www.kayalarkereste.com/image/catalog/Kamelya-cardak/KM-101/KM-101-ucuz-ahsap-cardak-kamelya-kameriye-ahsap-ev-gazebo-pergola-kutuk-ev-pergole-fiyatlari-gebze-www.kayalarahsap.com-01.jpg
AW80: KM-102 | AX80: Kamelya & Çardak -102 | AY80: Adet | AZ80: KM-102 | BA80: catalog/Kamelya-cardak/KM-102/KM-102-ucuz-ahsap-cardak-kamelya-kameriye-gazebo-pergola-pergole-fiyatlari-gebze-www.kayalarahsap.com-08.jpg | BB80: 6670 | BD80: http://www.kayalarkereste.com/image/catalog/Kamelya-cardak/KM-102/KM-102-ucuz-ahsap-cardak-kamelya-kameriye-gazebo-pergola-pergole-fiyatlari-gebze-www.kayalarahsap.com-08.jpg
AW81: KM-103 | AX81: Kamelya - Çardak -103 | AY81: Adet | AZ81: KM-103 | BA81: catalog/Kamelya-cardak/KM-103/KM-103-ucuz-ahsap-cardak-kamelya-kameriye-gazebo-pergola-pergole-fiyatlari-www.kayalarahsap.com-02.jpg | BB81: 5800 | BD81: http://www.kayalarkereste.com/image/catalog/Kamelya-cardak/KM-103/KM-103-ucuz-ahsap-cardak-kamelya-kameriye-gazebo-pergola-pergole-fiyatlari-www.kayalarahsap.com-02.jpg
AW82: KM-107 | AX82: Kamelya - Çardak -107 | AY82: Adet | AZ82: KM-107 | BA82: catalog/Kamelya-cardak/KM-106/kamelya-cardak-www.parkbahcemobilya.com-km-107-16.jpg | BB82: 2320 | BD82: http://www.kayalarkereste.com/image/catalog/Kamelya-cardak/KM-106/kamelya-cardak-www.parkbahcemobilya.com-km-107-16.jpg
AW83: KM-105 | AX83: Kamelya - Çardak KM-105 | AY83: Adet | AZ83: KM-105 | BA83: catalog/Kamelya-cardak/KM-105/KM-105-cardak-kamelya-seyyar-gazebo-ucuz-ahsap-kamelya-cardak-www.kayalarahsap.com-04.jpg | BB83: 3770 | BD83: http://www.kayalarkereste.com/image/catalog/Kamelya-cardak/KM-105/KM-105-cardak-kamelya-seyyar-gazebo-ucuz-ahsap-kamelya-cardak-www.kayalarahsap.com-04.jpg
AT84: =IFERROR(AH84/((100/AP84/AQ84)*AS84),"") ->  | AW84: KM-104 | AX84: Kamelya - Çardak KM-104 | AY84: Adet | AZ84: KM-104 | BA84: catalog/Kamelya-cardak/KM-104/KM-104-ahsap-ucuz-cardak-kamelya-kameriye-gazebo-fiyatlari-www.kayalarahsap.com-01.jpg | BB84: 7540 | BD84: http://www.kayalarkereste.com/image/catalog/Kamelya-cardak/KM-104/KM-104-ahsap-ucuz-cardak-kamelya-kameriye-gazebo-fiyatlari-www.kayalarahsap.com-01.jpg
AT85: =IFERROR(AH85/((100/AP85/AQ85)*AS85),"") ->  | AW85: VH-109 | AX85: Ahşap Çocuk Oyun Evi VH-109 | AY85: Adet | AZ85: VH-109 | BA85: catalog/cocuk-evi/VH-109/VH-109-cocuk-ahsap-oyun-evi-gebze-tuzla-pendik-istanbul-fiyatlari-07.JPG | BB85: 6728 | BD85: =CONCATENATE($AW$1, BA85) -> http://www.kayalarkereste.com/image/catalog/cocuk-evi/VH-109/VH-109-cocuk-ahsap-oyun-evi-gebze-tuzla-pendik-istanbul-fiyatlari-07.JPG
AT86: =IFERROR(AH86/((100/AP86/AQ86)*AS86),"") ->  | AW86: KM-108 | AX86: Kamelya - Çardak KM-108 | AY86: Adet | AZ86: KM-108 | BA86: catalog/Kamelya-cardak/KM-108/KM-108-kamelya-cardak-ucuz-kameriye-fiyatlari-www.parkbahcemobilya.com-www.ahsapfiyatlistesi.com-km-108-02.jpg | BB86: 7540 | BD86: http://www.kayalarkereste.com/image/catalog/Kamelya-cardak/KM-108/KM-108-kamelya-cardak-ucuz-kameriye-fiyatlari-www.parkbahcemobilya.com-www.ahsapfiyatlistesi.com-km-108-02.jpg
AT87: =IFERROR(AH87/((100/AP87/AQ87)*AS87),"") ->  | AW87: KM-124 | AX87: Kamelya - Çardak KM-124 | AY87: Adet | AZ87: KM-124 | BA87: catalog/Kamelya-cardak/KM-124_Demir_200cm/km-124-demir-kamelya-ahsap-08.jpg | BB87: 3944 | BD87: http://www.kayalarkereste.com/image/catalog/Kamelya-cardak/KM-124_Demir_200cm/km-124-demir-kamelya-ahsap-08.jpg
AW88: KM-125 | AX88: Kamelya - Çardak KM-125 | AY88: Adet | AZ88: KM-125 | BA88: catalog/Kamelya-cardak/KM-125 6GEN 5-15 DIREKLI/KM-125-kamelya-kare-dikdortgen-ahsap-dinlenme-cardak-gazebo-ucuz-kameriye-pergola-fiyatlari-www.kayalarkereste.com-32.jpg | BB88: 6670 | BD88: http://www.kayalarkereste.com/image/catalog/Kamelya-cardak/KM-125 6GEN 5-15 DIREKLI/KM-125-kamelya-kare-dikdortgen-ahsap-dinlenme-cardak-gazebo-ucuz-kameriye-pergola-fiyatlari-www.kayalarkereste.com-32.jpg
AW89: KM-126 | AX89: Kamelya - Çardak KM-126 | AY89: M2 | AZ89: KM-126 | BA89: catalog/Kamelya-cardak/KM-126 DIKDORTGEN cATALcA/KM-126-kamelya-kare-dikdortgen-ahsap-dinlenme-cardak-gazebo-ucuz-kameriye-fiyatlari-www.kayalarkereste.com-02.jpg | BB89: 638 | BD89: http://www.kayalarkereste.com/image/catalog/Kamelya-cardak/KM-126 DIKDORTGEN cATALcA/KM-126-kamelya-kare-dikdortgen-ahsap-dinlenme-cardak-gazebo-ucuz-kameriye-fiyatlari-www.kayalarkereste.com-02.jpg
AW90: KM-127 | AX90: Kamelya - Çardak KM-127 | AY90: Adet | AZ90: KM-127 | BA90: catalog/Kamelya-cardak/KM-127 KARE KAMELYA/KM-127-kamelya-ahsap-dinlenme-cardak-gazebo-kameriye-fiyatlari-resimleri-www.kayalarkereste.com-06.jpg | BB90: 6670 | BD90: http://www.kayalarkereste.com/image/catalog/Kamelya-cardak/KM-127 KARE KAMELYA/KM-127-kamelya-ahsap-dinlenme-cardak-gazebo-kameriye-fiyatlari-resimleri-www.kayalarkereste.com-06.jpg
AW91: KM-128 | AX91: Kamelya - Çardak KM-128 | AY91: Adet | AZ91: KM-128 | BA91: catalog/Kamelya-cardak/KM-128 SEKIZGEN KAMELYA 5-15 DiREKLi/KM-128-kamelya-sekizgen-www.kayalarkereste.com-07.jpg | BB91: 9860 | BD91: http://www.kayalarkereste.com/image/catalog/Kamelya-cardak/KM-128 SEKIZGEN KAMELYA 5-15 DiREKLi/KM-128-kamelya-sekizgen-www.kayalarkereste.com-07.jpg
AW92: KM-129 | AX92: Kamelya - Çardak KM-129 | AY92: M2 | AZ92: KM-129 | BA92: catalog/Kamelya-cardak/KM-129 ARIMPEKS -BEMAS/KM-129-kamelya-cardak-pergola-fiyatlari-dinlenme-alani-ahsap-sigara-icme-alani-www.kayalarkereste.com-17.jpg | BB92: 812 | BD92: http://www.kayalarkereste.com/image/catalog/Kamelya-cardak/KM-129 ARIMPEKS -BEMAS/KM-129-kamelya-cardak-pergola-fiyatlari-dinlenme-alani-ahsap-sigara-icme-alani-www.kayalarkereste.com-17.jpg
AW93: KM-130 | AX93: Kamelya - Çardak KM-130 | AY93: Adet | AZ93: KM-130 | BA93: catalog/Kamelya-cardak/KM-130 SEKIZGEN SAPKALI cAPRAZ KORKULUK/KM-130-kamelya-cardak-fiyatlari-gazebo-pargola-www.kayalarahsap-www.parkbahcemobilya.com-01.jpg | BB93: 10208 | BD93: http://www.kayalarkereste.com/image/catalog/Kamelya-cardak/KM-130 SEKIZGEN SAPKALI cAPRAZ KORKULUK/KM-130-kamelya-cardak-fiyatlari-gazebo-pargola-www.kayalarahsap-www.parkbahcemobilya.com-01.jpg
AW94: KM-131 | AX94: Kamelya - Çardak KM-131 | AY94: M2 | AZ94: KM-131 | BA94: catalog/Kamelya-cardak/KM-131-TOYOTETSU-MERKEZ/KM-131-ahsap-sigara icme-dinlenme-kamelya-cardak-alani-www.kayalarkereste.com-01.jpg | BB94: 812 | BD94: http://www.kayalarkereste.com/image/catalog/Kamelya-cardak/KM-131-TOYOTETSU-MERKEZ/KM-131-ahsap-sigara icme-dinlenme-kamelya-cardak-alani-www.kayalarkereste.com-01.jpg
AW95: KM-132 | AX95: Kamelya - Çardak 132 | AY95: Adet | AZ95: KM-132 | BA95: catalog/Kamelya-cardak/KM-132/KM-132-kamelya-ahsap-dinlenme-sigara-icme-cardak-www.kayalarkereste.com-08.jpg | BB95: 6670 | BD95: http://www.kayalarkereste.com/image/catalog/Kamelya-cardak/KM-132/KM-132-kamelya-ahsap-dinlenme-sigara-icme-cardak-www.kayalarkereste.com-08.jpg
AW96: KM-134 | AX96: Kamelya - Çardak 134 | AY96: Adet | AZ96: KM-134 | BA96: catalog/Kamelya-cardak/KM-134 CARDAK/KM-134-kamelya-ahsap-dinlenme-sigara-icme-cardak-gazebo-kameriye-fiyatlari-gebze-www.kayalarkereste.com-15.jpg | BB96: 3016 | BD96: http://www.kayalarkereste.com/image/catalog/Kamelya-cardak/KM-134 CARDAK/KM-134-kamelya-ahsap-dinlenme-sigara-icme-cardak-gazebo-kameriye-fiyatlari-gebze-www.kayalarkereste.com-15.jpg
AW97: KM-135 | AX97: Kamelya - Çardak 135 | AY97: Adet | AZ97: KM-135 | BA97: catalog/Kamelya-cardak/KM-135-KAMELYA-CARDAK/KM-135-kamelya-ahsap-cardak-gazebo-kameriye-fiyatlari-istanbul-www.kayalarkereste.com-01.jpg | BB97: 6670 | BD97: http://www.kayalarkereste.com/image/catalog/Kamelya-cardak/KM-135-KAMELYA-CARDAK/KM-135-kamelya-ahsap-cardak-gazebo-kameriye-fiyatlari-istanbul-www.kayalarkereste.com-01.jpg
AW98: KM-136 | AX98: Kamelya - Çardak Bahçe Dinlenme Alanı 136 | AY98: M2 | AZ98: KM-136 | BA98: catalog/Kamelya-cardak/KM-136 BAHCE KAMELYA/KM-136-bahce-kamelya-ahsap-cardak-gazebo-kameriye-fiyatlari-istanbul-www.kayalarkereste.com-01.jpg | BB98: 1102 | BD98: http://www.kayalarkereste.com/image/catalog/Kamelya-cardak/KM-136 BAHCE KAMELYA/KM-136-bahce-kamelya-ahsap-cardak-gazebo-kameriye-fiyatlari-istanbul-www.kayalarkereste.com-01.jpg
AW99: KM-137 | AX99: Kamelya - Çardak platform 137 | AY99: Adet | AZ99: KM-137 | BA99: catalog/Kamelya-cardak/KM-137 PLATFORM/km-137-platform-kamelya-cardak-fiyatlari-www.kayalarahsap.com-01.jpg | BB99: 7656 | BD99: http://www.kayalarkereste.com/image/catalog/Kamelya-cardak/KM-137 PLATFORM/km-137-platform-kamelya-cardak-fiyatlari-www.kayalarahsap.com-01.jpg
AW100: KM-138 | AX100: Kamelya - Çardak Kapalı dinlenme Alanı 138 | AY100: M2 | AZ100: KM-138 | BA100: catalog/Kamelya-cardak/KM-138 TOYOTETSU PC/KM-138-kamelya-ahsap-cardak-dinlenme-sigara-icme-alani-kameriye-fiyatlaril-gebze-www.kayalarkereste.com-01.jpg | BB100: 1102 | BD100: http://www.kayalarkereste.com/image/catalog/Kamelya-cardak/KM-138 TOYOTETSU PC/KM-138-kamelya-ahsap-cardak-dinlenme-sigara-icme-alani-kameriye-fiyatlaril-gebze-www.kayalarkereste.com-01.jpg
AW101: KM-139 | AX101: Kamelya - Çardak platform 139 | AY101: M2 | AZ101: KM-139 | BA101: catalog/Kamelya-cardak/KM-139 TOYOTETSU PRES/KM-139-kamelya-ahsap-cardak-dinlenme-sigara-icme-alani-fiyatlari-gebze-kocaeli-istanbul-www.kayalarkereste.com-01.jpg | BB101: 1102 | BD101: http://www.kayalarkereste.com/image/catalog/Kamelya-cardak/KM-139 TOYOTETSU PRES/KM-139-kamelya-ahsap-cardak-dinlenme-sigara-icme-alani-fiyatlari-gebze-kocaeli-istanbul-www.kayalarkereste.com-01.jpg
AW102: KM-141 | AX102: Kamelya - Çardak platform 141 | AY102: M2 | AZ102: KM-141 | BA102: catalog/Kamelya-cardak/KM-141 DENSO HUUN/KM-141-kamelya-ahsap-cardak-dinlenme-sigara-icme-alani-fiyatlari-gebze-kocaeli-izmit-istanbul-www.kayalarkereste.com-11.jpg | BB102: 1102 | BD102: http://www.kayalarkereste.com/image/catalog/Kamelya-cardak/KM-141 DENSO HUUN/KM-141-kamelya-ahsap-cardak-dinlenme-sigara-icme-alani-fiyatlari-gebze-kocaeli-izmit-istanbul-www.kayalarkereste.com-11.jpg
AW103: KM-142 | AX103: Kamelya - Çardak platform 142 | AY103: M2 | AZ103: KM-142 | BA103: catalog/Kamelya-cardak/KM-142/KM-142-kamelya-ahsap-cardak-dinlenme-sigara-icme-alani-fiyatlari-gebze-kocaeli-izmit-istanbul-www.kayalarkereste.com-08.jpg | BB103: 1102 | BD103: http://www.kayalarkereste.com/image/catalog/Kamelya-cardak/KM-142/KM-142-kamelya-ahsap-cardak-dinlenme-sigara-icme-alani-fiyatlari-gebze-kocaeli-izmit-istanbul-www.kayalarkereste.com-08.jpg
AW104: KM-143 | AX104: Kamelya - Çardak platform 143 | AY104: M2 | AZ104: KM-143 | BA104: catalog/Kamelya-cardak/KM-143/km-143-ahsap-dinlenme-sigara-icme-alani-kamelya-fiyatlari-gebze-kocaeli-tuzla-pendik-istanbul-ahsap-ev-www.kayalarkereste~9.jpg | BB104: 1102 | BD104: http://www.kayalarkereste.com/image/catalog/Kamelya-cardak/KM-143/km-143-ahsap-dinlenme-sigara-icme-alani-kamelya-fiyatlari-gebze-kocaeli-tuzla-pendik-istanbul-ahsap-ev-www.kayalarkereste~9.jpg
AW105: KM-144 | AX105: Kamelya - Çardak platform 144 | AY105: Adet | AZ105: KM-144 | BA105: catalog/Kamelya-cardak/KM-144/KM-144-kamelya-cardak-kameriye-gazebo-pargola-fiyatlari-www.kayalarahsap-www.kayalarkereste.com-6.jpg | BB105: 6670 | BD105: http://www.kayalarkereste.com/image/catalog/Kamelya-cardak/KM-144/KM-144-kamelya-cardak-kameriye-gazebo-pargola-fiyatlari-www.kayalarahsap-www.kayalarkereste.com-6.jpg
AW106: KM-145 | AX106: Kamelya - Çardak 145 | AY106: M2 | AZ106: KM-145 | BA106: catalog/Kamelya-cardak/KM-145 KIA/KM-145-kamelya-kis-bahce-cardak-pargola-fiyatlari-www.kayalarkereste.com-01.jpg | BB106: 812 | BD106: http://www.kayalarkereste.com/image/catalog/Kamelya-cardak/KM-145 KIA/KM-145-kamelya-kis-bahce-cardak-pargola-fiyatlari-www.kayalarkereste.com-01.jpg
AW107: KM-146 | AX107: Kamelya - Çardak 146 | AY107: Adet | AZ107: KM-146 | BA107: catalog/Kamelya-cardak/KM-146 BODYCOTE/KM-146-kamelya-kis-bahce-cardak-fabrika-sigara-icme-alani-fiyatlari-www.kayalarkereste.com-03.jpg | BB107: 5800 | BD107: http://www.kayalarkereste.com/image/catalog/Kamelya-cardak/KM-146 BODYCOTE/KM-146-kamelya-kis-bahce-cardak-fabrika-sigara-icme-alani-fiyatlari-www.kayalarkereste.com-03.jpg
AW108: KM-147 | AX108: Kamelya - Çardak 147 | AY108: Adet | AZ108: KM-147 | BA108: 2018/02/KM-147-kemer-kamelya-ahsap-dinlenme-alani-kis-bahcesi-cardak-gazebo-fiyatlari-www.kayalarkereste.com- 06.jpg | BB108: 7540 | BD108: http://www.kayalarkereste.com/image/2018/02/KM-147-kemer-kamelya-ahsap-dinlenme-alani-kis-bahcesi-cardak-gazebo-fiyatlari-www.kayalarkereste.com- 06.jpg
AW109: KM-148 | AX109: Kamelya - Çardak 148 | AY109: M2 | AZ109: KM-148 | BA109: catalog/Kamelya-cardak/KM-148 MORYAYLA/bahce-kamelya-km-148-04.jpg | BB109: 812 | BD109: http://www.kayalarkereste.com/image/catalog/Kamelya-cardak/KM-148 MORYAYLA/bahce-kamelya-km-148-04.jpg
AW110: KM-150 | AX110: Kamelya - Çardak 150 | AY110: Adet | AZ110: KM-150 | BA110: catalog/Kamelya-cardak/KM-150/KM-150-kamelya-ahsap-kis-bahce-cardak-fiyatlari-ucuz-kameriye-www.kayalarkereste.com-13.jpg | BB110: 6000 | BD110: http://www.kayalarkereste.com/image/catalog/Kamelya-cardak/KM-150/KM-150-kamelya-ahsap-kis-bahce-cardak-fiyatlari-ucuz-kameriye-www.kayalarkereste.com-13.jpg
AW111: KM-151 | AX111: Kamelya - Çardak 151 | AY111: Adet | AZ111: KM-151 | BA111: catalog/Kamelya-cardak/KM-151 BOSAL/ahsap-cardak-kamelya-dinlenme-sigara-icme-alani-gebze-pelitli-balcik-www.kayalarkereste.com-km-148-03.jpg | BB111: 12000 | BD111: http://www.kayalarkereste.com/image/catalog/Kamelya-cardak/KM-151 BOSAL/ahsap-cardak-kamelya-dinlenme-sigara-icme-alani-gebze-pelitli-balcik-www.kayalarkereste.com-km-148-03.jpg
AW112: KM-152 | AX112: Kamelya - Fabrika Dinlenme Alanı Çardak 152 | AY112: Adet | AZ112: KM-152 | BA112: catalog/Kamelya-cardak/KM-152 FATER/KM-152-kamelya-ahsap-cardak-fiyatlari-ucuz-kameriye-www.kayalarkereste.com-01.jpg | BB112: 8000 | BD112: http://www.kayalarkereste.com/image/catalog/Kamelya-cardak/KM-152 FATER/KM-152-kamelya-ahsap-cardak-fiyatlari-ucuz-kameriye-www.kayalarkereste.com-01.jpg
AW113: KM-153 | AX113: Kamelya - Çardak 153 | AY113: Adet | AZ113: KM-153 | BA113: catalog/Kamelya-cardak/KM-153/km-153-ahsap-kamelya-bahce-platform-dinlenme-alani-04.jpg | BB113: 4200 | BD113: http://www.kayalarkereste.com/image/catalog/Kamelya-cardak/KM-153/km-153-ahsap-kamelya-bahce-platform-dinlenme-alani-04.jpg
AW114: =HYPERLINK(BD114,AZ114) -> KM-154 | AX114: Kamelya - Çardak 154 | AY114: Adet | AZ114: KM-154 | BA114: catalog/Kamelya-cardak/KM-154/cardak-kamelya-gazebo-ahsap-oturma-dinlenme-alani-kartal-pendik-gebze-www.kayalarahsap.com-KM-154-01.jpg | BB114: 5500 | BD114: http://www.kayalarkereste.com/image/catalog/Kamelya-cardak/KM-154/cardak-kamelya-gazebo-ahsap-oturma-dinlenme-alani-kartal-pendik-gebze-www.kayalarahsap.com-KM-154-01.jpg
AW115: KM-155 | AX115: Kamelya - Çardak 155 | AY115: Adet | AZ115: KM-155 | BA115: catalog/Kamelya-cardak/KM-155 SANGO UZUN/cardak-kamelya-gazebo-ahsap-sigara-icme-oturma-dinlenme-alani-sango-gebze-www.kayalarahsap.com-KM-155-01.jpg | BB115: 19800 | BD115: http://www.kayalarkereste.com/image/catalog/Kamelya-cardak/KM-155 SANGO UZUN/cardak-kamelya-gazebo-ahsap-sigara-icme-oturma-dinlenme-alani-sango-gebze-www.kayalarahsap.com-KM-155-01.jpg
AW116: KM-156 | AX116: Kamelya - Çardak 156 | AY116: Adet | AZ116: KM-156 | BA116: catalog/Kamelya-cardak/KM-156/cardak-kamelya-gazebo-ahsap-sigara-icme-oturma-dinlenme-alani-sango-gebze-www.kayalarahsap.com-KM-156-01.jpg | BB116: 9000 | BD116: http://www.kayalarkereste.com/image/catalog/Kamelya-cardak/KM-156/cardak-kamelya-gazebo-ahsap-sigara-icme-oturma-dinlenme-alani-sango-gebze-www.kayalarahsap.com-KM-156-01.jpg
AW117: KM-157 | AX117: Kamelya - Çardak 157 | AY117: Adet | AZ117: KM-157 | BA117: catalog/Kamelya-cardak/KM-157 AYDINLI YAVUZHAN 4X4/KM-157-kamelya-ahsap-kis-bahce-cardak-gazebo-fiyatlari-ucuz-kamelya-kameriye-www.kayalarkereste.com-04.jpg | BB117: 9600 | BD117: http://www.kayalarkereste.com/image/catalog/Kamelya-cardak/KM-157 AYDINLI YAVUZHAN 4X4/KM-157-kamelya-ahsap-kis-bahce-cardak-gazebo-fiyatlari-ucuz-kamelya-kameriye-www.kayalarkereste.com-04.jpg
AW118: KM-158 | AX118: Kamelya - Çardak 158 | AY118: Adet | AZ118: KM-158 | BA118: catalog/Kamelya-cardak/KM-158/KM-158-kamelya-ahsap-cardak-gazebo-kameriye-ucuz-kamelya-fiyatlari-istanbul-gebze-www.kayalarkereste.com-07.JPG | BB118: 9600 | BD118: http://www.kayalarkereste.com/image/catalog/Kamelya-cardak/KM-158/KM-158-kamelya-ahsap-cardak-gazebo-kameriye-ucuz-kamelya-fiyatlari-istanbul-gebze-www.kayalarkereste.com-07.JPG
AW119: KM-159 | AX119: Kamelya - Çardak 159 | AY119: Adet | AZ119: KM-159 | BA119: catalog/Kamelya-cardak/KM-159 TUZLA YAVUZHAN 3,5 X 3,5/km-159-cardak-ahsap-kamelya-tuzla-pendik-gebze-gazebo-ucuz-kamelya-fiyatlari-www.kayalarkereste.com-02.jpg | BB119: 8150 | BD119: http://www.kayalarkereste.com/image/catalog/Kamelya-cardak/KM-159 TUZLA YAVUZHAN 3,5 X 3,5/km-159-cardak-ahsap-kamelya-tuzla-pendik-gebze-gazebo-ucuz-kamelya-fiyatlari-www.kayalarkereste.com-02.jpg
AW120: KM-160 | AX120: Kamelya - Çardak 160 | AY120: Adet | AZ120: KM-160 | BA120: catalog/Kamelya-cardak/KM-160 AYDINLI YAVUZHAN 3X5/KM-160-kamelya-kis-bahce-cardak-site-dinlenme-alani-cardak-fiyatlari-gebze-tuzla-pendik-www.kayalarkereste.com-01.jpg | BB120: 10500 | BD120: http://www.kayalarkereste.com/image/catalog/Kamelya-cardak/KM-160 AYDINLI YAVUZHAN 3X5/KM-160-kamelya-kis-bahce-cardak-site-dinlenme-alani-cardak-fiyatlari-gebze-tuzla-pendik-www.kayalarkereste.com-01.jpg
AW121: KM-162 | AX121: Serender - Nayla 162 | AY121: Adet | AZ121: KM-162 | BA121: catalog/Kamelya-cardak/KM-162/km-162-nayla-serender-cift-katli-kamelya-ahsap-nayla-serender-fiyatlari-www.kayalarkereste.com-01.jpg | BB121: 18000 | BD121: http://www.kayalarkereste.com/image/catalog/Kamelya-cardak/KM-162/km-162-nayla-serender-cift-katli-kamelya-ahsap-nayla-serender-fiyatlari-www.kayalarkereste.com-01.jpg
AW122: KM-163 | AX122: Kamelya - Çardak 163 | AY122: Adet | AZ122: KM-163 | BA122: catalog/Kamelya-cardak/KM-163/km-163-ahsap-sekizgen-yuvarlak-kamelya-cardak-gazebo-fiyatlari-gebze-tuzla-pendik-kurtkoy-www.kayalarkereste.com-07.jpg | BB122: 9600 | BD122: http://www.kayalarkereste.com/image/catalog/Kamelya-cardak/KM-163/km-163-ahsap-sekizgen-yuvarlak-kamelya-cardak-gazebo-fiyatlari-gebze-tuzla-pendik-kurtkoy-www.kayalarkereste.com-07.jpg
AW123: PA-131 | AX123: PA-131 Çocuk Oyun Parkı | AY123: Adet | AZ123: PA-131 | BA123: catalog/Oyun-Park/PA-131/cocuk-oyun-parki-gebze-ahsap-oyun-alani-fiyatlari-www.ahsapfiyatlistesi.com-PA-131-01.jpg | BB123: 7540 | BD123: http://www.kayalarkereste.com/image/catalog/Oyun-Park/PA-131/cocuk-oyun-parki-gebze-ahsap-oyun-alani-fiyatlari-www.ahsapfiyatlistesi.com-PA-131-01.jpg
AW124: UK-101 | AX124: TAVUK ve KANATLI HAYVAN KÜMESİ 101 | AY124: Adet | AZ124: UK-101 | BA124: catalog/kumes/UK-101/IMG_1923.jpg | BB124: 2204 | BD124: http://www.kayalarkereste.com/image/catalog/kumes/UK-101/IMG_1923.jpg
AW125: UK-102 | AX125: TAVUK ve KANATLI HAYVAN KÜMESİ 102 | AY125: Adet | AZ125: UK-102 | BA125: catalog/kumes/UK-102/IMG_1678.jpg | BB125: 2204 | BD125: http://www.kayalarkereste.com/image/catalog/kumes/UK-102/IMG_1678.jpg
AW126: UK-103 | AX126: TAVUK ve KANATLI HAYVAN KÜMESİ 103 | AY126: Adet | AZ126: UK-103 | BA126: catalog/kumes/UK-103/ahsap-tavuk-guvercin-kumes-uk-103-03.jpg | BB126: 3306 | BD126: http://www.kayalarkereste.com/image/catalog/kumes/UK-103/ahsap-tavuk-guvercin-kumes-uk-103-03.jpg
AW127: UK-104 | AX127: TAVUK ve KANATLI HAYVAN KÜMESİ 104 | AY127: Adet | AZ127: UK-104 | BA127: catalog/kumes/UK-104/ahsap-tavuk-kumesi-uk-104-01.jpg | BB127: 3306 | BD127: http://www.kayalarkereste.com/image/catalog/kumes/UK-104/ahsap-tavuk-kumesi-uk-104-01.jpg
AW128: KU-102 | AX128: AHŞAP KÖPRU KU-102 | AY128: Metre | AZ128: KU-102 | BA128: catalog/kopru/KU-102/ku-102-ahsap-kopru-cesitleri-fiyatlari-resimleri-gebze-kocaeli-istanbul-1.jpg | BB128: 754 | BD128: http://www.kayalarkereste.com/image/catalog/kopru/KU-102/ku-102-ahsap-kopru-cesitleri-fiyatlari-resimleri-gebze-kocaeli-istanbul-1.jpg
AW129: AS-101 | AX129: Ahşap Saksı 101 | AY129: Adet | AZ129: AS-101 | BA129: catalog/saksi/AS-101/AS-101-ahsap-saksi-fiyatlari-ahsap-saksi-imalati-buyuk-ahsap saksi-ahsap-saksi-fiyatlari-www.kayalarahsap.com-01.jpg | BB129: 522 | BD129: http://www.kayalarkereste.com/image/catalog/saksi/AS-101/AS-101-ahsap-saksi-fiyatlari-ahsap-saksi-imalati-buyuk-ahsap saksi-ahsap-saksi-fiyatlari-www.kayalarahsap.com-01.jpg
AW130: AS-102 | AX130: Ahşap Saksı 102 | AY130: Adet | AZ130: AS-102 | BA130: catalog/saksi/AS-102/AS-102-ahsap-saksi-fiyatlari-ahsap-saksi-imalati-buyuk-maun-ahsap saksi-ahsap-saksi-fiyatlari-www.kayalarahsap.com-03.jpg | BB130: 638 | BD130: http://www.kayalarkereste.com/image/catalog/saksi/AS-102/AS-102-ahsap-saksi-fiyatlari-ahsap-saksi-imalati-buyuk-maun-ahsap saksi-ahsap-saksi-fiyatlari-www.kayalarahsap.com-03.jpg
AW131: AS-103 | AX131: Ahşap Saksı 103 | AY131: Adet | AZ131: AS-103 | BA131: catalog/saksi/AS-103/AS-103-maun-ahsap-saksi-fiyatlari-ahsap-saksi-imalati-buyuk-maun-ahsap saksi-ahsap-saksi-fiyatlari-www.kayalarahsap.com-01.jpg | BB131: 638 | BD131: http://www.kayalarkereste.com/image/catalog/saksi/AS-103/AS-103-maun-ahsap-saksi-fiyatlari-ahsap-saksi-imalati-buyuk-maun-ahsap saksi-ahsap-saksi-fiyatlari-www.kayalarahsap.com-01.jpg
AW132: AS-105 | AX132: Ahşap Saksı 105 | AY132: Adet | AZ132: AS-105 | BA132: catalog/saksi/AS-105/AS-105-maun-ahsap-saksi-fiyatlari-ahsap-saksi-imalati-buyuk-maun-6gen-ahsap-saksi-ahsap-saksi-fiyatlari-www.kayalarahsap.~3.jpg | BB132: 348 | BD132: http://www.kayalarkereste.com/image/catalog/saksi/AS-105/AS-105-maun-ahsap-saksi-fiyatlari-ahsap-saksi-imalati-buyuk-maun-6gen-ahsap-saksi-ahsap-saksi-fiyatlari-www.kayalarahsap.~3.jpg
AW133: AS-106 | AX133: Ahşap Saksı 106 | AY133: Adet | AZ133: AS-106 | BA133: catalog/saksi/AS-106/AS-106-ahsap-saksi-fiyatlari-ahsap-saksi-imalati-buyuk-konik-8gen-ahsap-saksi-ahsap-saksi-fiyatlari-www.kayalarahsap.com-02.jpg | BB133: 278.4 | BD133: http://www.kayalarkereste.com/image/catalog/saksi/AS-106/AS-106-ahsap-saksi-fiyatlari-ahsap-saksi-imalati-buyuk-konik-8gen-ahsap-saksi-ahsap-saksi-fiyatlari-www.kayalarahsap.com-02.jpg
AW134: AS-107 | AX134: Ahşap Saksı 107 | AY134: Adet | AZ134: AS-107 | BA134: catalog/saksi/AS-107/AS-107-ahsap-saksi-fiyatlari-ahsap-saksi-imalati-buyuk-uzun-8gen-ahsap-saksi-ahsap-saksi-fiyatlari-www.kayalarahsap.com-01.jpg | BB134: 278.4 | BD134: http://www.kayalarkereste.com/image/catalog/saksi/AS-107/AS-107-ahsap-saksi-fiyatlari-ahsap-saksi-imalati-buyuk-uzun-8gen-ahsap-saksi-ahsap-saksi-fiyatlari-www.kayalarahsap.com-01.jpg
AW135: AS-108 | AX135: Ahşap Saksı 108 | AY135: Adet | AZ135: AS-108 | BA135: catalog/saksi/AS-108/AS-108-ahsap-saksi-fiyatlari-ahsap-saksi-imalati-buyuk-uzun-8gen-ahsap-saksi-ahsap-saksi-fiyatlari-resimleri-www.kayalara~3.jpg | BB135: 278.4 | BD135: http://www.kayalarkereste.com/image/catalog/saksi/AS-108/AS-108-ahsap-saksi-fiyatlari-ahsap-saksi-imalati-buyuk-uzun-8gen-ahsap-saksi-ahsap-saksi-fiyatlari-resimleri-www.kayalara~3.jpg
AW136: AS-109 | AX136: Ahşap Saksı 109 | AY136: Adet | AZ136: AS-109 | BA136: catalog/saksi/AS-109/AS-109-ahsap-saksi-fiyatlari-ahsap-saksi-imalati-buyuk-uzun-7gen-ahsap-saksi-yedi-gen-ahsap-saksi-cesitleri-resimleri-yed~3.jpg | BB136: 278.4 | BD136: http://www.kayalarkereste.com/image/catalog/saksi/AS-109/AS-109-ahsap-saksi-fiyatlari-ahsap-saksi-imalati-buyuk-uzun-7gen-ahsap-saksi-yedi-gen-ahsap-saksi-cesitleri-resimleri-yed~3.jpg
AW137: AS-110 | AX137: Ahşap Saksı 110 | AY137: Adet | AZ137: AS-110 | BA137: catalog/Saksi/AS-110/AS-110-ahsap-saksi-fiyatlari-ahsap-saksi-imalati-6gen-altigen-ahsap-saksi-ahsap-saksi-cesitleri-resimleri-ahsap-saksi-fiyat-www.kayalarahsap.com-052.jpg | BB137: 278.4 | BD137: http://www.kayalarkereste.com/image/catalog/Saksi/AS-110/AS-110-ahsap-saksi-fiyatlari-ahsap-saksi-imalati-6gen-altigen-ahsap-saksi-ahsap-saksi-cesitleri-resimleri-ahsap-saksi-fiyat-www.kayalarahsap.com-052.jpg
AW138: AS-112 | AX138: Ahşap Saksı 112 | AY138: Adet | AZ138: AS-112 | BA138: catalog/saksi/AS-112/AS-112-ahsap-saksi-fiyatlari-ahsap-saksi-imalati-dikdortgen-ahsap-saksi-ahsap-saksi-cesitleri-resimleri-ahsap-saksi-fiyat~1.jpg | BB138: 371.2 | BD138: http://www.kayalarkereste.com/image/catalog/saksi/AS-112/AS-112-ahsap-saksi-fiyatlari-ahsap-saksi-imalati-dikdortgen-ahsap-saksi-ahsap-saksi-cesitleri-resimleri-ahsap-saksi-fiyat~1.jpg
AW139: AS-113 | AX139: Ahşap Saksı 113 | AY139: Adet | AZ139: AS-113 | BA139: catalog/saksi/AS-113/AS-113-ahsap-saksi-fiyatlari-ahsap-saksi-imalati-uzun-dikdortgen-ahsap-saksi-ahsap-saksi-cesitleri-resimleri-ahsap-saksi-~1.jpg | BB139: 371.2 | BD139: http://www.kayalarkereste.com/image/catalog/saksi/AS-113/AS-113-ahsap-saksi-fiyatlari-ahsap-saksi-imalati-uzun-dikdortgen-ahsap-saksi-ahsap-saksi-cesitleri-resimleri-ahsap-saksi-~1.jpg
AW140: AS-114 | AX140: Ahşap Saksı 114 | AY140: Adet | AZ140: AS-114 | BA140: catalog/saksi/AS-114/AS-114-ahsap-saksi-fiyatlari-ahsap-saksi-imalati-dikdortgen-ahsap-saksi-ahsap-saksi-ciceklik-cesitleri-resimleri-ahsap-sa~2.jpg | BB140: 371.2 | BD140: http://www.kayalarkereste.com/image/catalog/saksi/AS-114/AS-114-ahsap-saksi-fiyatlari-ahsap-saksi-imalati-dikdortgen-ahsap-saksi-ahsap-saksi-ciceklik-cesitleri-resimleri-ahsap-sa~2.jpg
AW141: AS-117 | AX141: Ahşap Saksı 117 | AY141: Adet | AZ141: AS-117 | BA141: catalog/saksi/AS-117-EL-ARABA-SAKSI/AS-117-ahsap-saksi-fiyatlari-el-arabasi-saksi-tekerlekli-araba-saksi-kayalarkereste.com-05.jpg | BB141: 638 | BD141: http://www.kayalarkereste.com/image/catalog/saksi/AS-117-EL-ARABA-SAKSI/AS-117-ahsap-saksi-fiyatlari-el-arabasi-saksi-tekerlekli-araba-saksi-kayalarkereste.com-05.jpg
AW142: AS-118 | AX142: Ahşap Saksı 118 | AY142: Adet | AZ142: AS-118 | BA142: catalog/saksi/AS-118/AS-118-ahsap-saksi-fiyatlari-ahsap-saksi-imalati-uzun-dikdortgen-ahsap-saksi-ahsap-saksi-cesitleri-resimleri-ahsap-saksi-~1.jpg | BB142: 371.2 | BD142: http://www.kayalarkereste.com/image/catalog/saksi/AS-118/AS-118-ahsap-saksi-fiyatlari-ahsap-saksi-imalati-uzun-dikdortgen-ahsap-saksi-ahsap-saksi-cesitleri-resimleri-ahsap-saksi-~1.jpg
AW143: AS-119 | AX143: Ahşap Saksı 119 | AY143: Adet | AZ143: AS-119 | BA143: catalog/saksi/AS-119/AS-119-ahsap-saksi-fiyatlari-ahsap-saksi-imalati-6gen-altigen-ahsap-saksi-ahsap-saksi-cesitleri-resimleri-ahsap-saksi-fiy~1.jpg | BB143: 278.4 | BD143: http://www.kayalarkereste.com/image/catalog/saksi/AS-119/AS-119-ahsap-saksi-fiyatlari-ahsap-saksi-imalati-6gen-altigen-ahsap-saksi-ahsap-saksi-cesitleri-resimleri-ahsap-saksi-fiy~1.jpg
AW144: AS-120 | AX144: Ahşap Saksı 120 | AY144: Adet | AZ144: AS-120 | BA144: catalog/saksi/AS-120/AS-120-ahsap-saksi-fiyatlari-ahsap-saksi-imalati-yuksek-ahsap-saksi-uzun-ahsap-saksi-cesitleri-resimleri-ahsap-saksi-fiya~2.jpg | BB144: 406 | BD144: http://www.kayalarkereste.com/image/catalog/saksi/AS-120/AS-120-ahsap-saksi-fiyatlari-ahsap-saksi-imalati-yuksek-ahsap-saksi-uzun-ahsap-saksi-cesitleri-resimleri-ahsap-saksi-fiya~2.jpg
AW145: AS-122 | AX145: Ahşap Saksı 122 | AY145: Metre | AZ145: AS-122 | BA145: catalog/saksi/AS-122/ahsap-panel-saksi-fiyatlari-modelleri-istanbul-kocaeli-www.kayalarkereste.com-as-122-05.jpg | BB145: 417.6 | BD145: http://www.kayalarkereste.com/image/catalog/saksi/AS-122/ahsap-panel-saksi-fiyatlari-modelleri-istanbul-kocaeli-www.kayalarkereste.com-as-122-05.jpg
AW146: AS-123 | AX146: Ahşap Saksı 123 | AY146: Adet | AZ146: AS-123 | BA146: catalog/saksi/AS-123 AT ARBASI/AS-123-at-arabasi-ahsap-saksi-01.jpg | BB146: 2552 | BD146: http://www.kayalarkereste.com/image/catalog/saksi/AS-123 AT ARBASI/AS-123-at-arabasi-ahsap-saksi-01.jpg
AW147: AV-109 | AX147: Ahşap Bungalov Yalı baskı Ev (AV-109) | AY147: m2 | AZ147: AV-109 | BA147: catalog/Ev/av-109/ahsap-bungalov-ev-av-109-00.jpg | BB147: 1566 | BD147: http://www.kayalarkereste.com/image/catalog/Ev/av-109/ahsap-bungalov-ev-av-109-00.jpg
AW148: YB-101 | AX148: 1,8 x 12 Ahşap Cephe Kaplama Yalı Baskı YB-101 | AY148: M2 | AZ148: YB-101 | BA148: catalog/ahsap-cephe-kaplama/YB-101-12-en-2.5-kalin-duz/yb-101-yali-baski-bungalow-ev-cephe-kaplama-www.kayalarahsap.com-04.JPG | BB148: 55.68 | BD148: http://www.kayalarkereste.com/image/catalog/ahsap-cephe-kaplama/YB-101-12-en-2.5-kalin-duz/yb-101-yali-baski-bungalow-ev-cephe-kaplama-www.kayalarahsap.com-04.JPG
AW149: YB-102 | AX149: 3,5 x 12,5 Ahşap Cephe Kaplama Yalı Baskı YB-102 | AY149: M2 | AZ149: YB-102 | BA149: catalog/ahsap-cephe-kaplama/YB-102-12-EN-5-kalin-duz/ahsap-yali-baski-cephe-kaplama-03.jpg | BB149: 90.48 | BD149: =CONCATENATE($AW$1, BA149) -> http://www.kayalarkereste.com/image/catalog/ahsap-cephe-kaplama/YB-102-12-EN-5-kalin-duz/ahsap-yali-baski-cephe-kaplama-03.jpg
AW150: YB-103 | AX150: 5 x 15 Ahşap Cephe Kaplama Yalı Baskı DÜZ YB-103 | AY150: M2 | AZ150: YB-103 | BA150: catalog/ahsap-cephe-kaplama/YB-103-15-en-5-kalin-duz/YaliBaski_5_duz_b.JPG | BB150: 125.28 | BD150: http://www.kayalarkereste.com/image/catalog/ahsap-cephe-kaplama/YB-103-15-en-5-kalin-duz/YaliBaski_5_duz_b.JPG
AW151: YB-104 | AX151: 5 x 15 Ahşap Cephe Kaplama Yalı Baskı Yuvarlak Yuzey YB-104 | AY151: M2 | AZ151: YB-104 | BA151: catalog/ahsap-cephe-kaplama/YB-104-15-en-5-kalin-yuvarlak/IMG_5117.JPG | BB151: 125.28 | BD151: http://www.kayalarkereste.com/image/catalog/ahsap-cephe-kaplama/YB-104-15-en-5-kalin-yuvarlak/IMG_5117.JPG
AW152: YB-105 | AX152: 5 x 20 Ahşap Yalı Baskı Dış Cephe Kaplama Düz Yüzey YB-105 | AY152: M2 | AZ152: YB-105 | BA152: catalog/ahsap-cephe-kaplama/YB-105-20-en-5-kalin-duz/YB-105-ahsap-kutuk-yali-baski-bungalow-ev-cephe-kaplama--kutuk-ev-profil-www.kayalarahsap.com-01.jpg | BB152: 125 | BD152: http://www.kayalarkereste.com/image/catalog/ahsap-cephe-kaplama/YB-105-20-en-5-kalin-duz/YB-105-ahsap-kutuk-yali-baski-bungalow-ev-cephe-kaplama--kutuk-ev-profil-www.kayalarahsap.com-01.jpg
AW153: YB-106 | AX153: 3 x 23 Geniş Ahşap Yalı Baskı Dış Cephe Kaplama Düz Yüzey YB-106 | AY153: M2 | AZ153: YB-106 | BA153: catalog/ahsap-cephe-kaplama/YB-106-23-en-3.5-kalin-duz/YB-106-ahsap-tarihi-eser-ev-dekorasyon-ahsap-yali-baski-bungalow-ev-cephe-kaplama-kutuk-ev-profil-www.kayalarahsap.com-03.jpg | BB153: 195 | BD153: http://www.kayalarkereste.com/image/catalog/ahsap-cephe-kaplama/YB-106-23-en-3.5-kalin-duz/YB-106-ahsap-tarihi-eser-ev-dekorasyon-ahsap-yali-baski-bungalow-ev-cephe-kaplama-kutuk-ev-profil-www.kayalarahsap.com-03.jpg
AW154: YB-107 | AX154: 5 x 12,5 Yalı Baskı Dış Cephe Kaplama Düz Yüzey YB-107 | AY154: M2 | AZ154: YB-107 | BA154: catalog/ahsap-cephe-kaplama/YB-102-12-EN-5-kalin-duz/ahsap-yali-baski-cephe-kaplama-03.jpg | BB154: 125.28 | BD154: http://www.kayalarkereste.com/image/catalog/ahsap-cephe-kaplama/YB-102-12-EN-5-kalin-duz/ahsap-yali-baski-cephe-kaplama-03.jpg
AW155: KM-161 | AX155: Kamelya - Çardak 161 | AY155: M2 | AZ155: KM-161 | BA155: catalog/Kamelya-cardak/KM-161/cardak-kamelya-gazebo-ahsap-oturma-dinlenme-alani-kartal-pendik-gebze-imes-kocaeli-www.kayalarahsap.com-KM-161-06.jpg | BB155: 800 | BD155: http://www.kayalarkereste.com/image/catalog/Kamelya-cardak/KM-161/cardak-kamelya-gazebo-ahsap-oturma-dinlenme-alani-kartal-pendik-gebze-imes-kocaeli-www.kayalarahsap.com-KM-161-06.jpg
AW156: LM-107 | AX156: Rabıta 1-2. Sınıf (LM-107) | AY156: M2 | AZ156: LM-107 | BA156: catalog/lambiri-ahsap/LM-107-rabita-kalin-yer-doseme-www.kayalarkereste.com-02.jpg | BB156: 87 | BD156: http://www.kayalarkereste.com/image/catalog/lambiri-ahsap/LM-107-rabita-kalin-yer-doseme-www.kayalarkereste.com-02.jpg
AW157: DM-101 | AX157: DM-101 Doğal Lamine 12 kalın LADİN Ahşap Masa 90 x 200cm | AY157: Adet | AZ157: DM-101 | BA157: catalog/kutuk-masa/dm-101/lamine-ladin-12-kalin-kutuk-masa-fiyatlari-kayalarkereste.com-kutuk-dogal-agac-mobilya-01.jpg | BB157: 1102 | BD157: http://www.kayalarkereste.com/image/catalog/kutuk-masa/dm-101/lamine-ladin-12-kalin-kutuk-masa-fiyatlari-kayalarkereste.com-kutuk-dogal-agac-mobilya-01.jpg
AW158: AS-124 | AX158: Doğal Lamine 12 kalın LADİN Ahşap Masa | AY158: Adet | AZ158: AS-124 | BA158: catalog/saksi/as-124/AS-124-at-arabasi-kucuk-ahsap-saksi-03.jpg | BB158: 754 | BD158: http://www.kayalarkereste.com/image/catalog/saksi/as-124/AS-124-at-arabasi-kucuk-ahsap-saksi-03.jpg
AW159: DM-102 | AX159: DM-102 Doğal Lamine 12 kalın LADİN Ahşap Masa 80 x 200cm | AY159: Adet | AZ159: DM-102 | BA159: catalog/kutuk-masa/dm-101/lamine-ladin-12-kalin-kutuk-masa-fiyatlari-kayalarkereste.com-kutuk-dogal-agac-mobilya-012.jpg | BB159: 928 | BD159: http://www.kayalarkereste.com/image/catalog/kutuk-masa/dm-101/lamine-ladin-12-kalin-kutuk-masa-fiyatlari-kayalarkereste.com-kutuk-dogal-agac-mobilya-012.jpg
AW160: DM-111 | AX160: DM-111 Doğal Kütük Ağaç Masa Tablası | AY160: Adet | AZ160: DM-111 | BA160: catalog/kutuk-masa/dm-111/kutuk-dogal-agac-masa-tabla-fiyatlari-www.kayalarkereste.com-04.jpg | BB160: 2424.4 | BD160: http://www.kayalarkereste.com/image/catalog/kutuk-masa/dm-111/kutuk-dogal-agac-masa-tabla-fiyatlari-www.kayalarkereste.com-04.jpg
AW161: DM-112 | AX161: DM-112-Doğal Kütük Ağaç Masa Tablası | AY161: Adet | AZ161: DM-112 | BA161: catalog/kutuk-masa/IMG_E3393.JPG | BB161: 2534.6 | BD161: http://www.kayalarkereste.com/image/catalog/kutuk-masa/IMG_E3393.JPG
AW162: AV-110 | AX162: Ahşap Bungalov Kulube-Ev (AV-110) | AY162: Adet | AZ162: AV-110 | BA162: catalog/Ev/av-110/av-110-bungalov-ahsap-ev-kutuk--kulube-ev-fiyatlari-yapimi-maliyeti-resimleri-gebze-www.kayalarahsap.com-03.jpg | BB162: 11136 | BD162: http://www.kayalarkereste.com/image/catalog/Ev/av-110/av-110-bungalov-ahsap-ev-kutuk--kulube-ev-fiyatlari-yapimi-maliyeti-resimleri-gebze-www.kayalarahsap.com-03.jpg
AW163: KT-105 | AX163: KT-105 Ahşap Kütük - Bungalov Ev Profil | AY163: M2 | AZ163: KT-105 | BA163: catalog/Profil/Kutuk-Ev/KT-105/KT-105-kutuk-ahsap-bungalov-ev-profil-5-kalin-15-genislik-03.jpg | BB163: 129.92 | BD163: http://www.kayalarkereste.com/image/catalog/Profil/Kutuk-Ev/KT-105/KT-105-kutuk-ahsap-bungalov-ev-profil-5-kalin-15-genislik-03.jpg
AW164: KT-110 | AX164: KT-110 Ahşap Kütük - Bungalov Ev Profil | AY164: M2 | AZ164: KT-110 | BA164: catalog/Profil/Kutuk-Ev/KT-110/kt-110-kutuk-ahsap-bungalov-ev-ahsap-profil-10-kalin-15-genislik-02.jpg | BB164: 179.8 | BD164: http://www.kayalarkereste.com/image/catalog/Profil/Kutuk-Ev/KT-110/kt-110-kutuk-ahsap-bungalov-ev-ahsap-profil-10-kalin-15-genislik-02.jpg
AW165: KT-118 | AX165: KT-118 Ahşap Kütük - Bungalov Ev Profil | AY165: M2 | AZ165: KT-118 | BA165: catalog/Profil/Kutuk-Ev/KT-118/kt-118-lamine-kutuk-ev-profil-ahsab-15cm-x-18cm-01.jpg | BB165: 568.4 | BD165: http://www.kayalarkereste.com/image/catalog/Profil/Kutuk-Ev/KT-118/kt-118-lamine-kutuk-ev-profil-ahsab-15cm-x-18cm-01.jpg
AW166: LM-108 | AX166: Lambiri -1. Sınıf SİBİRYA (LM-108) | AY166: M2 | AZ166: LM-108 | BA166: catalog/Profil/Lambiri-Rabita/LM-108-ahsap-lambiri-fiyatlari-sibirya-lambiri-rabita-cesitleri-resimleri-01.jpg | BB166: 48 | BD166: http://www.kayalarkereste.com/image/catalog/Profil/Lambiri-Rabita/LM-108-ahsap-lambiri-fiyatlari-sibirya-lambiri-rabita-cesitleri-resimleri-01.jpg
AW167: BT-101 | AX167: TEAK Burma Kereste (1.4 cm, 2 cm, 4 cm, 5.3 cm, 6.5 cm kalınlık) x (53 mm geniş) x (90-170 cm arası boy) BT-101 | AY167: M3 | AZ167: BT-101 | BA167: catalog/silinmis-kereste/ks-113-iroko-silinmis-profil-ahsap-kereste-78mm-x-16mm-01.jpg | BB167: 4725 | BD167: http://www.kayalarkereste.com/image/catalog/silinmis-kereste/ks-113-iroko-silinmis-profil-ahsap-kereste-78mm-x-16mm-01.jpg
AW168: BT-102 | AX168: TEAK Burma Kereste (1.4 cm, 2 cm, 4 cm, 5.3 cm, 6.5 cm kalınlık) x (78 mm geniş) x (90-170 cm boy) BT-102 | AY168: M3 | AZ168: BT-102 | BA168: catalog/silinmis-kereste/ks-113-iroko-silinmis-profil-ahsap-kereste-78mm-x-16mm-01.jpg | BB168: 5145 | BD168: http://www.kayalarkereste.com/image/catalog/silinmis-kereste/ks-113-iroko-silinmis-profil-ahsap-kereste-78mm-x-16mm-01.jpg
AW169: BT-103 | AX169: TEAK Burma Kereste (1.4 cm, 2 cm, 4 cm, 5.3 cm, 6.5 cm kalınlık) x (53 mm geniş) x (180-290 cm boy) BT-103 | AY169: M3 | AZ169: BT-103 | BA169: catalog/silinmis-kereste/ks-113-iroko-silinmis-profil-ahsap-kereste-78mm-x-16mm-01.jpg | BB169: 5250 | BD169: http://www.kayalarkereste.com/image/catalog/silinmis-kereste/ks-113-iroko-silinmis-profil-ahsap-kereste-78mm-x-16mm-01.jpg
AW170: BT-104 | AX170: TEAK Burma Kereste (1.4 cm, 2 cm, 4 cm, 5.3 cm, 6.5 cm kalınlık) x (78 mm geniş) x (180-290 cm boy) BT-104 | AY170: M3 | AZ170: BT-104 | BA170: catalog/silinmis-kereste/ks-113-iroko-silinmis-profil-ahsap-kereste-78mm-x-16mm-01.jpg | BB170: 5617 | BD170: http://www.kayalarkereste.com/image/catalog/silinmis-kereste/ks-113-iroko-silinmis-profil-ahsap-kereste-78mm-x-16mm-01.jpg
AW171: BT-105 | AX171: TEAK Burma Kereste (1.4 cm, 2 cm, 4 cm, 5.3 cm, 6.5 cm kalınlık) x (103 mm geniş) x (180-290 cm boy) BT-105 | AY171: M3 | AZ171: BT-105 | BA171: catalog/silinmis-kereste/ks-113-iroko-silinmis-profil-ahsap-kereste-78mm-x-16mm-01.jpg | BB171: 6030 | BD171: http://www.kayalarkereste.com/image/catalog/silinmis-kereste/ks-113-iroko-silinmis-profil-ahsap-kereste-78mm-x-16mm-01.jpg
AW172: BT-106 | AX172: TEAK Burma Kereste (1.4 cm, 2 cm, 4 cm, 5.3 cm, 6.5 cm kalınlık) x (130 mm geniş) x (180-290 cm boy) BT-106 | AY172: M3 | AZ172: BT-106 | BA172: catalog/silinmis-kereste/ks-113-iroko-silinmis-profil-ahsap-kereste-78mm-x-16mm-01.jpg | BB172: 6142 | BD172: http://www.kayalarkereste.com/image/catalog/silinmis-kereste/ks-113-iroko-silinmis-profil-ahsap-kereste-78mm-x-16mm-01.jpg
AW173: BT-107 | AX173: TEAK Burma Kereste (1.4 cm, 2 cm, 4 cm, 5.3 cm, 6.5 cm kalınlık) x (155 mm geniş) x (180-290 cm boy) BT-107 | AY173: M3 | AZ173: BT-107 | BA173: catalog/silinmis-kereste/ks-113-iroko-silinmis-profil-ahsap-kereste-78mm-x-16mm-01.jpg | BB173: 6300 | BD173: http://www.kayalarkereste.com/image/catalog/silinmis-kereste/ks-113-iroko-silinmis-profil-ahsap-kereste-78mm-x-16mm-01.jpg
AW174: BT-108 | AX174: TEAK Burma Kereste (1.4 cm, 2 cm, 4 cm, 5.3 cm, 6.5 cm kalınlık) x (180-260 mm geniş) x (180-290 cm boy) BT-108 | AY174: M3 | AZ174: BT-108 | BA174: catalog/silinmis-kereste/ks-113-iroko-silinmis-profil-ahsap-kereste-78mm-x-16mm-01.jpg | BB174: 6825 | BD174: http://www.kayalarkereste.com/image/catalog/silinmis-kereste/ks-113-iroko-silinmis-profil-ahsap-kereste-78mm-x-16mm-01.jpg
AW175: BT-109 | AX175: TEAK Burma Kereste (1.4 cm, 2 cm, 4 cm, 5.3 cm, 6.5 cm kalınlık) x (280 mm uzeri geniş) x (180-290 cm boy) BT-109 | AY175: M3 | AZ175: BT-109 | BA175: catalog/silinmis-kereste/ks-113-iroko-silinmis-profil-ahsap-kereste-78mm-x-16mm-01.jpg | BB175: 7350 | BD175: http://www.kayalarkereste.com/image/catalog/silinmis-kereste/ks-113-iroko-silinmis-profil-ahsap-kereste-78mm-x-16mm-01.jpg
AW176: BT-110 | AX176: TEAK Burma Kereste (5.5 cm, 6.5 cm, 10 cm ve üzeri kalınlık) x (10 - 13 cm geniş) x (300 cm üzeri boy) BT-110 | AY176: M3 | AZ176: BT-110 | BA176: catalog/silinmis-kereste/ks-113-iroko-silinmis-profil-ahsap-kereste-78mm-x-16mm-01.jpg | BB176: 6825 | BD176: http://www.kayalarkereste.com/image/catalog/silinmis-kereste/ks-113-iroko-silinmis-profil-ahsap-kereste-78mm-x-16mm-01.jpg
AW177: BT-111 | AX177: TEAK Burma Kereste (5.5 cm, 6.5 cm, 10 cm ve üzeri kalınlık) x (15,5 - 18 cm geniş) x (300 cm üzeri boy) BT-111 | AY177: M3 | AZ177: BT-111 | BA177: catalog/silinmis-kereste/ks-113-iroko-silinmis-profil-ahsap-kereste-78mm-x-16mm-01.jpg | BB177: 7080 | BD177: http://www.kayalarkereste.com/image/catalog/silinmis-kereste/ks-113-iroko-silinmis-profil-ahsap-kereste-78mm-x-16mm-01.jpg
AW178: =HYPERLINK(BD178,AZ178) -> BT-112 | AX178: TEAK Burma Kereste (5.5 cm, 6.5 cm, 10 cm ve üzeri kalınlık) x (18 - 26 cm geniş) x (300 cm üzeri boy) BT-112 | AY178: M3 | AZ178: BT-112 | BA178: catalog/silinmis-kereste/ks-113-iroko-silinmis-profil-ahsap-kereste-78mm-x-16mm-01.jpg | BB178: 7350 | BD178: http://www.kayalarkereste.com/image/catalog/silinmis-kereste/ks-113-iroko-silinmis-profil-ahsap-kereste-78mm-x-16mm-01.jpg
AW179: BT-113 | AX179: TEAK Burma Kereste (5.5 cm, 6.5 cm, 10 cm ve üzeri kalınlık) x (28 cm üzeri geniş) x (300 cm üzeri boy) BT-113 | AY179: M3 | AZ179: BT-113 | BA179: catalog/silinmis-kereste/ks-113-iroko-silinmis-profil-ahsap-kereste-78mm-x-16mm-01.jpg | BB179: 7880 | BD179: http://www.kayalarkereste.com/image/catalog/silinmis-kereste/ks-113-iroko-silinmis-profil-ahsap-kereste-78mm-x-16mm-01.jpg
AW180: BT-121 | AX180: TEAK Burma Kereste (1 cm kalınlık x 5 cm geniş) x (90 - 170 cm arası boy) BT-121 | AY180: M2 | AZ180: BT-121 | BA180: catalog/Profil/silinmis-profil-kereste/bt-121-123-teak-profil-ahsap-silinmis-kereste-50mm-x-10mm.jpg | BB180: 65 | BD180: http://www.kayalarkereste.com/image/catalog/Profil/silinmis-profil-kereste/bt-121-123-teak-profil-ahsap-silinmis-kereste-50mm-x-10mm.jpg
AW181: BT-122 | AX181: TEAK Burma Kereste (1 cm kalınlık x 7,5 cm geniş) x (90 - 170 cm arası boy) BT-122 | AY181: M2 | AZ181: BT-122 | BA181: catalog/silinmis-kereste/ks-113-iroko-silinmis-profil-ahsap-kereste-78mm-x-16mm-01.jpg | BB181: 71 | BD181: http://www.kayalarkereste.com/image/catalog/silinmis-kereste/ks-113-iroko-silinmis-profil-ahsap-kereste-78mm-x-16mm-01.jpg
AW182: BT-123 | AX182: TEAK Burma Kereste (1 cm kalınlık x 5 cm geniş) x (180 - 240 cm arası boy) BT-123 | AY182: M2 | AZ182: BT-123 | BA182: catalog/Profil/silinmis-profil-kereste/bt-121-123-teak-profil-ahsap-silinmis-kereste-50mm-x-10mm.jpg | BB182: 75 | BD182: http://www.kayalarkereste.com/image/catalog/Profil/silinmis-profil-kereste/bt-121-123-teak-profil-ahsap-silinmis-kereste-50mm-x-10mm.jpg
AW183: BT-124 | AX183: TEAK Burma Kereste (1 cm kalınlık x 7,5 cm geniş) x (180 - 240 cm arası boy) BT-124 | AY183: M2 | AZ183: BT-124 | BA183: catalog/silinmis-kereste/ks-113-iroko-silinmis-profil-ahsap-kereste-78mm-x-16mm-01.jpg | BB183: 80 | BD183: http://www.kayalarkereste.com/image/catalog/silinmis-kereste/ks-113-iroko-silinmis-profil-ahsap-kereste-78mm-x-16mm-01.jpg
AW184: BT-125 | AX184: TEAK Burma Kereste (1 cm kalınlık x 9,5 cm geniş) x (180 - 240 cm arası boy) BT-125 | AY184: M2 | AZ184: BT-125 | BA184: catalog/silinmis-kereste/ks-113-iroko-silinmis-profil-ahsap-kereste-78mm-x-16mm-01.jpg | BB184: 85 | BD184: http://www.kayalarkereste.com/image/catalog/silinmis-kereste/ks-113-iroko-silinmis-profil-ahsap-kereste-78mm-x-16mm-01.jpg
AW185: BT-126 | AX185: TEAK Burma Kereste (1 cm kalınlık x 12,5 cm geniş) x (180 - 240 cm arası boy) BT-126 | AY185: M2 | AZ185: BT-126 | BA185: catalog/silinmis-kereste/ks-113-iroko-silinmis-profil-ahsap-kereste-78mm-x-16mm-01.jpg | BB185: 90 | BD185: http://www.kayalarkereste.com/image/catalog/silinmis-kereste/ks-113-iroko-silinmis-profil-ahsap-kereste-78mm-x-16mm-01.jpg
AW186: BT-131 | AX186: TEAK Burma DECK işlenmiş (1,8 cm kalınlık x 5 cm geniş) x (90 - 170 cm arası boy) BT-131 | AY186: M2 | AZ186: BT-131 | BA186: catalog/silinmis-kereste/ks-113-iroko-silinmis-profil-ahsap-kereste-78mm-x-16mm-01.jpg | BB186: 85 | BD186: http://www.kayalarkereste.com/image/catalog/silinmis-kereste/ks-113-iroko-silinmis-profil-ahsap-kereste-78mm-x-16mm-01.jpg
AW187: XP-01 | AX187: Epoksi Masa Tablası XP-01 | AY187: Adet | AZ187: XP-01 | BA187: catalog/Epoxi-Masa/epoksi-ahsap-ceviz-mese-kestane-masa-XP-01.jpg | BB187: 4060 | BD187: http://www.kayalarkereste.com/image/catalog/Epoxi-Masa/epoksi-ahsap-ceviz-mese-kestane-masa-XP-01.jpg
AW188: BT-132 | AX188: TEAK Burma DECK işlenmiş (1,8 cm kalınlık x 5 cm geniş) x (90 - 170 cm arası boy) BT-132 | AY188: M2 | AZ188: BT-132 | BA188: catalog/silinmis-kereste/ks-113-iroko-silinmis-profil-ahsap-kereste-78mm-x-16mm-01.jpg | BB188: 79 | BD188: http://www.kayalarkereste.com/image/catalog/silinmis-kereste/ks-113-iroko-silinmis-profil-ahsap-kereste-78mm-x-16mm-01.jpg
AW189: BT-133 | AX189: TEAK Burma DECK işlenmiş (1,8 cm kalınlık x 95 mm geniş) x (90 - 170 cm arası boy) BT-133 | AY189: M2 | AZ189: BT-133 | BA189: catalog/silinmis-kereste/ks-113-iroko-silinmis-profil-ahsap-kereste-78mm-x-16mm-01.jpg | BB189: 85 | BD189: http://www.kayalarkereste.com/image/catalog/silinmis-kereste/ks-113-iroko-silinmis-profil-ahsap-kereste-78mm-x-16mm-01.jpg
AW190: BT-134 | AX190: TEAK Burma DECK işlenmiş (1,8 cm kalınlık x 125 mm geniş) x (90 - 170 cm arası boy) BT-134 | AY190: M2 | AZ190: BT-134 | BA190: catalog/silinmis-kereste/ks-113-iroko-silinmis-profil-ahsap-kereste-78mm-x-16mm-01.jpg | BB190: 90 | BD190: http://www.kayalarkereste.com/image/catalog/silinmis-kereste/ks-113-iroko-silinmis-profil-ahsap-kereste-78mm-x-16mm-01.jpg
AW191: BT-135 | AX191: TEAK Burma DECK işlenmiş (1,8 cm kalınlık x 50 mm geniş) x (180 - 240 cm arası boy) BT-135 | AY191: M2 | AZ191: BT-135 | BA191: catalog/silinmis-kereste/ks-113-iroko-silinmis-profil-ahsap-kereste-78mm-x-16mm-01.jpg | BB191: 85 | BD191: http://www.kayalarkereste.com/image/catalog/silinmis-kereste/ks-113-iroko-silinmis-profil-ahsap-kereste-78mm-x-16mm-01.jpg
AW192: BT-136 | AX192: TEAK Burma DECK işlenmiş (1,8 cm kalınlık x 75 mm geniş) x (180 - 240 cm arası boy) BT-136 | AY192: M2 | AZ192: BT-136 | BA192: catalog/silinmis-kereste/ks-113-iroko-silinmis-profil-ahsap-kereste-78mm-x-16mm-01.jpg | BB192: 89 | BD192: http://www.kayalarkereste.com/image/catalog/silinmis-kereste/ks-113-iroko-silinmis-profil-ahsap-kereste-78mm-x-16mm-01.jpg
AW193: BT-137 | AX193: TEAK Burma DECK işlenmiş (1,8 cm kalınlık x 90 mm geniş) x (180 - 240 cm arası boy) BT-137 | AY193: M2 | AZ193: BT-137 | BA193: catalog/silinmis-kereste/ks-113-iroko-silinmis-profil-ahsap-kereste-78mm-x-16mm-01.jpg | BB193: 99 | BD193: http://www.kayalarkereste.com/image/catalog/silinmis-kereste/ks-113-iroko-silinmis-profil-ahsap-kereste-78mm-x-16mm-01.jpg
AW194: BT-138 | AX194: TEAK Burma DECK işlenmiş (1,8 cm kalınlık x 125 mm geniş) x (180 - 240 cm arası boy) BT-138 | AY194: M2 | AZ194: BT-138 | BA194: catalog/silinmis-kereste/ks-113-iroko-silinmis-profil-ahsap-kereste-78mm-x-16mm-01.jpg | BB194: 115 | BD194: http://www.kayalarkereste.com/image/catalog/silinmis-kereste/ks-113-iroko-silinmis-profil-ahsap-kereste-78mm-x-16mm-01.jpg
AW195: BT-151 | AX195: TEAK Burma DECK işlenmiş (2,4 cm kalınlık x 5 cm geniş) x (90 - 170 cm arası boy) BT-151 | AY195: M2 | AZ195: BT-151 | BA195: catalog/silinmis-kereste/ks-113-iroko-silinmis-profil-ahsap-kereste-78mm-x-16mm-01.jpg | BB195: 93 | BD195: http://www.kayalarkereste.com/image/catalog/silinmis-kereste/ks-113-iroko-silinmis-profil-ahsap-kereste-78mm-x-16mm-01.jpg
AW196: BT-152 | AX196: TEAK Burma DECK işlenmiş (2,4 cm kalınlık x 7,5 cm geniş) x (90 - 170 cm arası boy) BT-152 | AY196: M2 | AZ196: BT-152 | BA196: catalog/silinmis-kereste/ks-113-iroko-silinmis-profil-ahsap-kereste-78mm-x-16mm-01.jpg | BB196: 99 | BD196: http://www.kayalarkereste.com/image/catalog/silinmis-kereste/ks-113-iroko-silinmis-profil-ahsap-kereste-78mm-x-16mm-01.jpg
AW197: BT-153 | AX197: TEAK Burma DECK işlenmiş (2,4 cm kalınlık x 9,5 cm geniş) x (90 - 170 cm arası boy) BT-153 | AY197: M2 | AZ197: BT-153 | BA197: catalog/silinmis-kereste/ks-113-iroko-silinmis-profil-ahsap-kereste-78mm-x-16mm-01.jpg | BB197: 110 | BD197: http://www.kayalarkereste.com/image/catalog/silinmis-kereste/ks-113-iroko-silinmis-profil-ahsap-kereste-78mm-x-16mm-01.jpg
AW198: BT-154 | AX198: TEAK Burma DECK işlenmiş (2,4 cm kalınlık x 12,5 cm geniş) x (90 - 170 cm arası boy) BT-154 | AY198: M2 | AZ198: BT-154 | BA198: catalog/silinmis-kereste/ks-113-iroko-silinmis-profil-ahsap-kereste-78mm-x-16mm-01.jpg | BB198: 125 | BD198: http://www.kayalarkereste.com/image/catalog/silinmis-kereste/ks-113-iroko-silinmis-profil-ahsap-kereste-78mm-x-16mm-01.jpg
AW199: BT-155 | AX199: TEAK Burma DECK işlenmiş (2,4 cm kalınlık x 5 cm geniş) x (180 - 240 cm arası boy) BT-155 | AY199: M2 | AZ199: BT-155 | BA199: catalog/silinmis-kereste/ks-113-iroko-silinmis-profil-ahsap-kereste-78mm-x-16mm-01.jpg | BB199: 120 | BD199: http://www.kayalarkereste.com/image/catalog/silinmis-kereste/ks-113-iroko-silinmis-profil-ahsap-kereste-78mm-x-16mm-01.jpg
AW200: BT-156 | AX200: TEAK Burma DECK işlenmiş (2,4 cm kalınlık x 7,5 cm geniş) x (180 - 240 cm arası boy) BT-156 | AY200: M2 | AZ200: BT-156 | BA200: catalog/silinmis-kereste/ks-113-iroko-silinmis-profil-ahsap-kereste-78mm-x-16mm-01.jpg | BB200: 130 | BD200: http://www.kayalarkereste.com/image/catalog/silinmis-kereste/ks-113-iroko-silinmis-profil-ahsap-kereste-78mm-x-16mm-01.jpg
... 57 more rows

Sheet TEKLİF Resim
F2: Demka Kereste
B3: Konu :
B4: Firma :
B5: İlgili :
B6: Tarih : | C6: =NOW() -> 2020-03-26T14:07:08.290
B7: Mail :
B8: Opsiyon :
B9: Vade : | C9: Nakit
B10: Teslimat : | C10: Fabrikamızda kamyon üstü teslim
B11: Stok : | C11: Yarı Hazır Mamül
V12: 1 Ad. cm
R14: Kalın Ölç Fiyatı | V14: kapattığı | W14: Fiyat | X14: 1 m3 kapattığı | Y14: aktif satır
B15: KOD | D15: Cinsi | F15: En | G15: Kln | H15: Boy | I15: Miktar | K15: Fiyat | L15: Dm3 | M15: Tutar | R15: EN | S15: Kln | T15: Fiyat | U15: M3 /ad. | V15: genişlik | W15: M2 | X15: Alan | Y15: Kapattığı M2 | AE15: KOD | AF15: Ürün İsmi | AG15: Açıklama | AH15: Tane mi | AI15: Net Ölçü Fiyatı | AJ15: +kdv | AK15: Boy | AL15: Kln | AM15: En | AO15: Fiyatı m3 | AQ15: kln | AR15: en | AT15: genişlik kaç cm dir ? | AU15: m2 Fiyatı | AV15: Kapattığı alan
AO16: =IFERROR(AI16*AM16*AL16/AR16/AQ16,"") -> 
A17: =IFERROR(HYPERLINK((VLOOKUP(B17,BB:BF,5,FALSE)),"█"),"1") -> █ | B17: lm-108 | D17: =IFERROR(VLOOKUP(B17,AE:AF,2,FALSE),"") -> Lambiri 1.Sınıf Ukrayna | E17: =IF(IFERROR(VLOOKUP(D17,AF:AH,3,FALSE),"")<>"","a","") ->  | F17: =IFERROR(VLOOKUP(B17,AE:AT,14,FALSE),"") -> 10 | G17: =IFERROR(VLOOKUP(B17,AE:AT,13,FALSE),"") -> 2.6 | H17: =IFERROR(VLOOKUP(B17,AE:AK,7,FALSE),"") -> 300 | I17: 200 | K17: =IFERROR(VLOOKUP(B17,AE:AI,5,FALSE),"") -> 1650 | L17: =IFERROR((F17*G17*H17*I17)/1000,"") -> 1560 | M17: =IFERROR(IF(E17="a",K17*I17,IF(L17<>"",K17*L17/1000,"")),"") -> 2574 | P17: =IFERROR(IF(E17="a",(K17*I17)/1,IF(L17<>"",K17*L17/1000,"")),"") -> 2574 | R17: =IF(COUNTA(F17)>=1,IF(F17<4,2.6,IF(F17<5.1,5,IF(F17<10.1,10,IF(F17<15,15)))),"") -> 10 | S17: =IFERROR(IF(G17<=2.6,2.6,IF(G17<5.1,5,IF(G17<10.1,10,IF(G17<15,15)))),"") -> 2.6 | T17: =IFERROR(F17*G17*K17/R17/S17,"") -> 1650 | U17: =IFERROR(IF(I17<>"",(1000/H17/G17/F17*1000),""),"") -> 128.2051282 | V17: =IFERROR(VLOOKUP(D17,AF:AT,15,FALSE),"") -> 7.8 | W17: =IFERROR(K17/((100/F17/G17)*V17),"") -> 55 | X17: =IFERROR((100/F17/G17)*V17,"") -> 30 | Y17: =IFERROR(V17*H17*I17/10000,"") -> 46.8 | AA17: =IFERROR(HYPERLINK((VLOOKUP(AB17,BB:BF,5,FALSE))," ████ Kod: "),"Kod :") -> ████ Kod: | AB17: KT-118 | AE17: KR-107 | AF17: Kereste 5 x 10 Ukrayna | AG17: Ukrayna inşaatlık | AI17: 990 | AJ17: =AI17*0.18 -> 178.2 | AK17: 300 | AL17: 5 | AM17: 10 | AO17: 990 | AQ17: 5 | AR17: 10 | AU17: =IFERROR(AI17/((100/AQ17/AR17)*AT17),"") ->  | AV17: =IF(AH17<>"","",IFERROR((100/AQ17/AR17)*AT17,"")) -> 0 | AX17: =IFERROR(VLOOKUP(B17,AY:BC,5,FALSE),"") -> catalog/Profil/Lambiri-Rabita/LM-108-ahsap-lambiri-fiyatlari-sibirya-lambiri-rabita-cesitleri-resimleri-01.jpg | AY17: 0 | AZ17: name(tr) | BA17: sku | BB17: model | BC17: image_name | BD17: price
A18: =IFERROR(HYPERLINK((VLOOKUP(B18,BB:BF,5,FALSE)),"█"),"2") -> █ | B18: LM-103 | D18: Lambiri Extra Ukrayna | F18: 12 | G18: 6 | H18: 300 | I18: 250 | K18: 1800 | L18: 5400 | M18: =IFERROR(IF(E18="a",K18*I18,IF(L18<>"",K18*L18/1000,"")),"") -> 9720 | P18: 9720 | R18: 15 | S18: 10 | T18: 864 | U18: 46.2962963 | V18: 11 | W18: 117.8181818 | X18: 15.27777778 | Y18: 82.5 | AA18: Cins : | AB18: =CONCATENATE(IFERROR(VLOOKUP(AB17,AE:AF,2,FALSE),"")," - ",IFERROR(VLOOKUP(AB17,AE:AG,3,FALSE),"")) -> Kütük Ev Duvar Profil Sibirya Lamine - Sibirya Lamine | AE18: KR-108 | AF18: Kereste 10 x 10 Ukrayna | AG18: Ukrayna inşaatlık | AI18: 990 | AJ18: 178.2 | AK18: 300 | AL18: 10 | AM18: 10 | AO18: 990 | AQ18: 10 | AR18: 10 | AV18: 0 | AX18: catalog/lambiri-ahsap/LM-100-Lambiri-Extra-03.jpg | AY18: =HYPERLINK(BF18,BB18) -> PM-103 | AZ18: PM-103 Piknik Masa | BA18: Adet | BB18: PM-103 | BC18: catalog/Piknik-Masa/PM-103/PM-103-piknik-masa-ucuz-fiyatlari-imalati-resimleri- www.kayalarkereste.com-01.jpg | BD18: 870
A19: =IFERROR(HYPERLINK((VLOOKUP(B19,BB:BF,5,FALSE)),"█"),"3") -> █ | B19: KS-100 | D19: KS-100 silinmiş Sibirya | F19: 10 | G19: 5 | H19: 400 | I19: 120 | K19: 2300 | L19: 2400 | M19: 5520 | P19: 5520 | R19: 10 | S19: 5 | T19: 2300 | U19: 50 | V19: 0 | X19: 0 | Y19: 0 | AA19: En : | AB19: =IFERROR(VLOOKUP(AB17,AE:AM,9,FALSE),"") -> 15 | AE19: KR-101 | AF19: Kereste 41 x 91 Ukrayna | AG19: Ukrayna inşaatlık | AI19: 990 | AJ19: 178.2 | AK19: 300 | AL19: 4.1 | AM19: 9.1 | AO19: 738.738 | AQ19: 5 | AR19: 10 | AV19: 0 | AX19: catalog/silinmis-kereste/ks-101-cam-dogramalik-silinmis-sinif-kereste-5x10-01.jpg | AY19: SA-102 | AZ19: SA-102 Ahşap Salıncak | BA19: Adet | BB19: SA-102 | BC19: catalog/Piknik-Masa/SA-102/SA-102-ahsap-salincak-fiyatlari-esitleri-istanbul-08.jpg | BD19: 2300 | BF19: =CONCATENATE($AY$1, BC19) -> catalog/Piknik-Masa/SA-102/SA-102-ahsap-salincak-fiyatlari-esitleri-istanbul-08.jpg
A20: =IFERROR(HYPERLINK((VLOOKUP(B20,BB:BF,5,FALSE)),"█"),"4") -> █ | B20: KS-107 | D20: KS-107 silinmiş Sibirya | F20: 12.5 | G20: 6.5 | H20: 600 | I20: 300 | K20: 2300 | L20: 14625 | M20: 33637.5 | P20: 33637.5 | R20: 15 | S20: 10 | T20: 1245.833333 | U20: 20.51282051 | V20: 0 | X20: 0 | Y20: 0 | AA20: Net Kalınlık : | AB20: =IFERROR(VLOOKUP(AB17,AE:AQ,8,FALSE),"") -> 13.5 | AE20: KR-102 | AF20: Kereste 91 x 91 Ukrayna 11111111111111 22222222222222222 | AG20: Ukrayna inşaatlık | AH20: b | AI20: 990 | AJ20: 178.2 | AK20: 300 | AL20: 9.1 | AM20: 9.1 | AO20: 819.819 | AQ20: 10 | AR20: 10 | AX20: catalog/silinmis-kereste/ks-103-cam-dogramalik-silinmis-sinif-kereste-5x15-01.jpg | AY20: PM-104 | AZ20: PM-104 Piknik Masa | BA20: Adet | BB20: PM-104 | BC20: catalog/Piknik-Masa/PM-104/pm-104-piknik-masa-fiyatlari-01.jpg | BD20: 928 | BF20: catalog/Piknik-Masa/PM-104/pm-104-piknik-masa-fiyatlari-01.jpg
A21: =IFERROR(HYPERLINK((VLOOKUP(B21,BB:BF,5,FALSE)),"█"),"5") -> █ | B21: LM-112 | D21: OSB 11mm Ukrayna | E21: a | F21: 122 | G21: 1.1 | H21: 244 | K21: 58 | L21: 0 | M21: 0 | P21: 0 | R21: FALSE | S21: 2.6 | V21: 122 | W21: 0.638 | X21: 90.90909091 | Y21: 0 | AA21: Önceki Ham Kalınlık : | AB21: =IFERROR(VLOOKUP(AB17,AE:AQ,13,FALSE),"") -> 15 | AE21: KR-103 | AF21: Kereste 43 x 93 Ukrayna | AG21: Ukrayna inşaatlık | AI21: 990 | AJ21: 178.2 | AK21: 300 | AL21: 4.3 | AM21: 9.3 | AO21: 791.802 | AQ21: 5 | AR21: 10 | AV21: 0 | AX21: catalog/lambiri-ahsap/lm-112-iroko-lambiri-95mm-18mm-86mmkapatır-01.jpg | AY21: PM-106 | AZ21: PM-106 Piknik Masa | BA21: Adet | BB21: PM-106 | BC21: catalog/Piknik-Masa/PM-106/pm-106-ahsap-piknik-kir-masa-03.jpg | BD21: 638 | BF21: catalog/Piknik-Masa/PM-106/pm-106-ahsap-piknik-kir-masa-03.jpg
A22: =IFERROR(HYPERLINK((VLOOKUP(B22,BB:BF,5,FALSE)),"█"),"6") -> 6 | R22: FALSE | S22: FALSE | AA22: Boy : | AB22: =IFERROR(VLOOKUP(AB17,AE:BF,27,FALSE),"") -> 0 | AE22: KR-102 | AF22: Kereste 93 x 93 Ukrayna | AG22: Ukrayna inşaatlık | AI22: 990 | AJ22: 178.2 | AK22: 300 | AL22: 9.3 | AM22: 9.3 | AO22: 856.251 | AQ22: 10 | AR22: 10 | AV22: 0 | AX22: image_name | AY22: PM-107 | AZ22: PM-107 Piknik Masa | BA22: Adet | BB22: PM-107 | BC22: catalog/Piknik-Masa/PM-107/PM-107-metal-dokum-ayakli-ahsap-maun-bahce-dis-mekan-masa-01.jpg | BD22: 672.8 | BF22: catalog/Piknik-Masa/PM-107/PM-107-metal-dokum-ayakli-ahsap-maun-bahce-dis-mekan-masa-01.jpg
A23: =IFERROR(HYPERLINK((VLOOKUP(B23,BB:BF,5,FALSE)),"█"),"7") -> 7 | F23: =IFERROR(VLOOKUP(B23,AE:AT,14,FALSE),"") ->  | R23: FALSE | S23: FALSE | AA23: 1 adet kapattığı genşlik: | AB23: =IFERROR(VLOOKUP(AB17,AE:AT,16,FALSE),"") -> 13.5 | AE23: KR-105 | AF23: Kereste 45 x 95 Ukrayna | AG23: Ukrayna inşaatlık | AI23: 990 | AJ23: 178.2 | AK23: 300 | AL23: 4.5 | AM23: 9.5 | AO23: 846.45 | AQ23: 5 | AR23: 10 | AV23: 0 | AX23: image_name | AY23: PM-108 | AZ23: PM-108 Piknik Masa | BA23: Adet | BB23: PM-108 | BC23: catalog/Piknik-Masa/PM-108/pm-108-ahsap-masa-fiyatlari-resimleri-02.jpg | BD23: 348 | BF23: catalog/Piknik-Masa/PM-108/pm-108-ahsap-masa-fiyatlari-resimleri-02.jpg
A24: =IFERROR(HYPERLINK((VLOOKUP(B24,BB:BF,5,FALSE)),"█"),"8") -> 8 | R24: FALSE | S24: FALSE | AA24: Kapatığı Alan : | AB24: =((1000/AB21/AB19)*AB23)/10 -> 6 | AE24: KR-106 | AF24: Kereste 95 x 95 Ukrayna | AG24: Ukrayna inşaatlık | AI24: 990 | AJ24: 178.2 | AK24: 300 | AL24: 9.5 | AM24: 9.5 | AO24: 893.475 | AQ24: 10 | AR24: 10 | AV24: 0 | AX24: image_name | AY24: PM-109 | AZ24: PM-109 Piknik Masa | BA24: Adet | BB24: PM-109 | BC24: catalog/Piknik-Masa/PM-109/pm-109-ahsap-piknik-masa-fiyatlari-09.jpg | BD24: 928 | BF24: catalog/Piknik-Masa/PM-109/pm-109-ahsap-piknik-masa-fiyatlari-09.jpg
A25: =IFERROR(HYPERLINK((VLOOKUP(B25,BB:BF,5,FALSE)),"█"),"9") -> 9 | R25: FALSE | S25: FALSE | AA25: M3 ü kaç Adet : | AB25: =1000000/AB19/AB21/AB22 ->  | AE25: KR-100 | AF25: Tahta -10-..-20 Ukrayna | AG25: Ukrayna inşaatlık | AI25: 990 | AJ25: 178.2 | AK25: 300 | AL25: 2.2 | AM25: 10 | AO25: 837.6923077 | AQ25: 2.6 | AR25: 10 | AV25: 0 | AX25: image_name | AY25: PM-111 | AZ25: PM-111 Ahşap Piknik Masa | BA25: Adet | BB25: PM-111 | BC25: catalog/Piknik-Masa/pm-111/pm-111-ahsap-piknik-masa-yaslanmali-ucuz-fiyatari-www.parkbahcemobilya.com-03.jpg | BD25: 696 | BF25: catalog/Piknik-Masa/pm-111/pm-111-ahsap-piknik-masa-yaslanmali-ucuz-fiyatari-www.parkbahcemobilya.com-03.jpg
A26: =IFERROR(HYPERLINK((VLOOKUP(B26,BB:BF,5,FALSE)),"█"),"10") -> 10 | R26: FALSE | S26: FALSE | AA26: M2' si kaç Adet : | AB26: =1/(AB22*AB23)*10000 ->  | AE26: LM-108 | AF26: Lambiri 1.Sınıf Ukrayna | AG26: Sibirya | AI26: 1650 | AJ26: 297 | AK26: 300 | AL26: 2.2 | AM26: 10 | AO26: 1396.153846 | AQ26: 2.6 | AR26: 10 | AT26: 7.8 | AU26: 55 | AV26: 30 | AX26: image_name | AY26: PM-110 | AZ26: PM-110 Piknik Masa | BA26: Adet | BB26: PM-110 | BC26: catalog/Piknik-Masa/pm-110/pm-110-piknik-masa-ucuz-fiyatlari-03.jpg | BD26: 1044 | BF26: catalog/Piknik-Masa/pm-110/pm-110-piknik-masa-ucuz-fiyatlari-03.jpg
S27: 2.6 | AA27: Tanesi Kaç Dm3 : | AB27: =AB19*AB20*AB22/1000 -> 0 | AE27: LM-103 | AF27: Lambiri Extra Ukrayna | AG27: Ukrayna | AI27: 1800 | AJ27: 324 | AK27: 300 | AL27: 2.6 | AM27: 12 | AO27: 1800 | AQ27: 2.6 | AR27: 12 | AT27: 11 | AU27: 51.05454545 | AV27: 35.25641026 | AX27: image_name | AY27: PA-126 | AZ27: PA-126 Çocuk Oyun Parkı | BA27: Adet | BB27: PA-126 | BC27: catalog/Oyun-Park/PA-126/oyun-parki-fiyatlari-salincak-tahterevan-www.ahsapfiyatlistesi.com-PA-126-02.jpg | BD27: 4700 | BF27: catalog/Oyun-Park/PA-126/oyun-parki-fiyatlari-salincak-tahterevan-www.ahsapfiyatlistesi.com-PA-126-02.jpg
B28: NOT ; | P28: =IFERROR(IF(E28="a",(K28*I28)/1,IF(K29<>"",K28*K29/1000,"")),"") -> 0 | S28: 2.6 | U28: =IFERROR(IF(I28<>"",(1000/H29/G28/F28*1000),""),"") ->  | Y28: =IFERROR(V28*H29*I28/10000,"") ->  | AA28: 1 m3 Fiyatı : | AB28: Kapattığı Alan x m2 Fiyatı | AE28: LM-101 | AF28: Lambiri 1.Sn. Ukrayna | AG28: Ukrayna | AI28: 1550 | AJ28: 279 | AK28: 300 | AL28: 2.6 | AM28: 10 | AO28: 1550 | AQ28: 2.6 | AR28: 10 | AT28: 7.8 | AU28: 51.66666667 | AV28: 30 | AY28: PA-127 | AZ28: PA-127 Çocuk Oyun Parkı | BA28: Adet | BB28: PA-127 | BC28: catalog/Oyun-Park/PA-127/ahsap-cocuk-oyun-parki-fiyatlari-www.ahsapfiyatlistesi.com-PA-127-05.jpg | BD28: 7540 | BF28: catalog/Oyun-Park/PA-127/ahsap-cocuk-oyun-parki-fiyatlari-www.ahsapfiyatlistesi.com-PA-127-05.jpg
H29: Toplam Mik. | J29: : | K29: =SUM(L17:L26) -> 23985 | P29: =IFERROR(IF(E29="a",(#REF!*I29)/1,IF(L29<>"",#REF!*L29/1000,"")),"") ->  | R29: =IF(COUNTA(#REF!)>=1,IF(#REF!<4,2.6,IF(#REF!<5.1,5,IF(#REF!<10.1,10,IF(#REF!<15,15)))),"") ->  | S29: 2.6 | T29: =IFERROR(#REF!*G29*#REF!/R29/S29,"") ->  | U29: =IFERROR(IF(I29<>"",(1000/H30/G29/#REF!*1000),""),"") ->  | W29: =IFERROR(#REF!/((100/#REF!/G29)*V29),"") ->  | X29: =IFERROR((100/#REF!/G29)*V29,"") ->  | Y29: =IFERROR(V29*H30*I29/10000,"") ->  | AA29: Nakliye : | AB29: Hariç | AE29: LM-102 | AF29: Lambiri 2.Sn. Ukrayna | AG29: Ukrayna | AI29: 1450 | AJ29: 261 | AK29: 300 | AL29: 2.6 | AM29: 10 | AO29: 1450 | AQ29: 2.6 | AR29: 10 | AT29: 7.8 | AU29: 48.33333333 | AV29: 30 | AX29: image_name | AY29: PA-128 | AZ29: PA-128 Çocuk Oyun Parkı | BA29: Adet | BB29: PA-128 | BC29: catalog/Oyun-Park/PA-128/ahsap-cocuk-oyun-parki-fiyatlari-www-ahsapfiyatlistesi-com-PA-128-02.jpg | BD29: 4640 | BF29: catalog/Oyun-Park/PA-128/ahsap-cocuk-oyun-parki-fiyatlari-www-ahsapfiyatlistesi-com-PA-128-02.jpg
H30: Ara Toplam | J30: : | K30: =SUM(M17:M26) -> 51451.5 | R30: =IF(COUNTA(#REF!)>=1,IF(#REF!<4,2.6,IF(#REF!<5.1,5,IF(#REF!<10.1,10,IF(#REF!<15,15)))),"") ->  | S30: 2.6 | T30: =IFERROR(#REF!*G30*K30/R30/S30,"") ->  | U30: =IFERROR(IF(I30<>"",(1000/#REF!/G30/#REF!*1000),""),"") ->  | W30: =IFERROR(K30/((100/#REF!/G30)*V30),"") ->  | X30: =IFERROR((100/#REF!/G30)*V30,"") ->  | Y30: =IFERROR(V30*#REF!*I30/10000,"") ->  | AA30: Koruyucu : | AB30: İsteğe göre Emprenye Katkılı Su bazlı ahşap koruyucu boya uygulanabilir. fiyat sorunuz | AE30: LM-112 | AF30: OSB 11mm Ukrayna | AG30: 1 | AH30: b | AI30: 58 | AJ30: 10.44 | AK30: 244 | AL30: 1.1 | AM30: 122 | AO30: 58 | AQ30: 1.1 | AR30: 122 | AT30: 122 | AU30: 0.638 | AV30: =IF(AH30<>"","",IFERROR((100/AQ30/AR30)*AT30,"")) ->  | AX30: image_name | AY30: PA-129 | AZ30: PA-129 Çocuk Oyun Parkı | BA30: Adet | BB30: PA-129 | BC30: catalog/Oyun-Park/PA-129/ahsap-oyun-parki-salincak-tahterevan-fiyatlari-www.ahsapfiyatlistesi.com-PA-129-01.jpg | BD30: 4500 | BF30: catalog/Oyun-Park/PA-129/ahsap-oyun-parki-salincak-tahterevan-fiyatlari-www.ahsapfiyatlistesi.com-PA-129-01.jpg
J31: : | S31: 2.6 | AA31: Teslim Süresi : | AB31: Ortalama 1 ile 15 gün arası | AE31: LM-113 | AF31: OSB 9mm Ukrayna | AH31: a | AI31: 53 | AJ31: 9.54 | AK31: 244 | AL31: 0.9 | AM31: 122 | AO31: 53 | AQ31: 0.9 | AR31: 122 | AT31: 122 | AU31: 0.477 | AV31: =IF(AH31<>"","",IFERROR((100/AQ31/AR31)*AT31,"")) ->  | AX31: image_name | AY31: PA-130 | AZ31: PA-130 Çocuk Oyun Parkı | BA31: Adet | BB31: PA-130 | BC31: catalog/Oyun-Park/PA-130/PA-130-havuzlu-platform-cocuk-oyun-parkı-01.jpg | BD31: 7540 | BF31: catalog/Oyun-Park/PA-130/PA-130-havuzlu-platform-cocuk-oyun-parkı-01.jpg
H32: Toplam KDV | J32: : | K32: =K30*0.18 -> 9261.27 | R32: =IF(COUNTA(H32)>=1,IF(H32<4,2.6,IF(H32<5.1,5,IF(H32<10.1,10,IF(H32<15,15)))),"") -> FALSE | S32: 2.6 | T32: =IFERROR(H32*G32*K32/R32/S32,"") ->  | U32: =IFERROR(IF(I32<>"",(1000/#REF!/G32/H32*1000),""),"") ->  | W32: =IFERROR(K32/((100/H32/G32)*V32),"") ->  | X32: =IFERROR((100/H32/G32)*V32,"") ->  | Y32: =IFERROR(V32*#REF!*I32/10000,"") ->  | AA32: Garanti : | AB32: 5 Yıl | AE32: LM-114 | AF32: Alın Tahtası Ukrayna | AG32: Ukrayna | AH32: a | AI32: 30 | AJ32: 5.4 | AK32: 300 | AL32: 2.2 | AM32: 20 | AO32: 25.38461538 | AQ32: 2.6 | AR32: 20 | AX32: image_name | AY32: AC-101 | AZ32: Ahşap Çit Korkuluk AC-101 | BA32: Metre | BB32: AC-101 | BC32: catalog/cit-korkuluk/AC-101/AC-101-çit-korkuluk-trabzan-ahşap-korkuluk-03.JPG | BD32: 139.2 | BF32: catalog/cit-korkuluk/AC-101/AC-101-çit-korkuluk-trabzan-ahşap-korkuluk-03.JPG
H33: Ödenen | J33: : | K33: =SUM(L21:L30) -> 0 | R33: =IF(COUNTA(H33)>=1,IF(H33<4,2.6,IF(H33<5.1,5,IF(H33<10.1,10,IF(H33<15,15)))),"") -> FALSE | S33: 2.6 | T33: =IFERROR(H33*G33*K33/R33/S33,"") ->  | U33: =IFERROR(IF(I33<>"",(1000/#REF!/G33/H33*1000),""),"") ->  | W33: =IFERROR(K33/((100/H33/G33)*V33),"") ->  | X33: =IFERROR((100/H33/G33)*V33,"") ->  | Y33: =IFERROR(V33*#REF!*I33/10000,"") ->  | AA33: Bakım : | AB33: İlk bakım 1 sene sonra, takip eden bakımlar yaklaşık 2 yılda bir yapılmalıdır. | AE33: LM-115 | AF33: süpürgelik Ukrayna | AG33: Ukrayna | AH33: m | AI33: 2 | AJ33: 0.36 | AK33: 300 | AL33: 2.2 | AM33: 5 | AO33: 2 | AQ33: 2.2 | AR33: 5 | AX33: image_name | AY33: AC-102 | AZ33: Ahşap Çit Korkuluk AC-102 | BA33: Metre | BB33: AC-102 | BC33: 2018/02/ac-102-ahsap-cit-korkuluk-fiyatlari-tuzla-pendik-gebze-04.jpg | BD33: 98.6 | BF33: 2018/02/ac-102-ahsap-cit-korkuluk-fiyatlari-tuzla-pendik-gebze-04.jpg
H34: Kalan | J34: : | K34: =K30+K32-K33 -> 60712.77 | R34: =IF(COUNTA(H34)>=1,IF(H34<4,2.6,IF(H34<5.1,5,IF(H34<10.1,10,IF(H34<15,15)))),"") -> FALSE | S34: 2.6 | T34: =IFERROR(H34*G34*K34/R34/S34,"") ->  | U34: =IFERROR(IF(I34<>"",(1000/#REF!/G34/H34*1000),""),"") ->  | W34: =IFERROR(K34/((100/H34/G34)*V34),"") ->  | X34: =IFERROR((100/H34/G34)*V34,"") ->  | Y34: =IFERROR(V34*#REF!*I34/10000,"") ->  | AE34: LM-116 | AF34: Cephe 12 cm geniş Ukrayna | AG34: Ukrayna | AI34: 1700 | AJ34: 306 | AK34: 400 | AL34: 3.5 | AM34: 12 | AO34: 1700 | AQ34: 3.5 | AR34: 12 | AT34: 9.9 | AU34: 72.12121212 | AV34: 23.57142857 | AX34: image_name | AY34: AC-103 | AZ34: Ahşap Çit Korkuluk AC-103 | BA34: Metre | BB34: AC-103 | BC34: catalog/cit-korkuluk/AC-103/ahsap-cit-korkuluk-modelleri-fiyatlari-AC-103-01.jpg | BD34: 139.2 | BF34: catalog/cit-korkuluk/AC-103/ahsap-cit-korkuluk-modelleri-fiyatlari-AC-103-01.jpg
S35: 2.6
S36: 2.6
S37: 2.6
S38: 2.6
S39: 2.6 | AA39: 1 m2 Fiyatı : | AB39: =IFERROR((VLOOKUP(AB17,AE:AI,5,FALSE)/Kapatığı_Alan),"") -> 533.3333333 | AE39: KS-100 | AF39: KS-100 silinmiş Sibirya | AG39: 5 x 10 Sibirya | AI39: 2300 | AJ39: 414 | AK39: 400 | AL39: 5 | AM39: 10 | AO39: 2300 | AQ39: 5 | AR39: 10 | AV39: 0 | AY39: AC-104 | AZ39: Ahşap Çit Korkuluk AC-104 | BA39: Metre | BB39: AC-104 | BC39: catalog/cit-korkuluk/AC-104/ac-104-ahsap-cit-korkuluk-modelleri-fiyatlari-resimleri-www.kayalarkereste.com-07.jpg | BD39: 139.2 | BF39: catalog/cit-korkuluk/AC-104/ac-104-ahsap-cit-korkuluk-modelleri-fiyatlari-resimleri-www.kayalarkereste.com-07.jpg
S40: 2.6 | AE40: KS-101 | AF40: KS-101 silinmiş Sibirya | AG40: 5 x 10 Ukrayna | AI40: 1700 | AJ40: 306 | AK40: 300 | AL40: 5 | AM40: 10 | AO40: 1700 | AQ40: 5 | AR40: 10 | AV40: 0 | AY40: VH-107 | AZ40: Ahşap Çocuk Oyun Evi | BA40: Adet | BB40: VH-107 | BC40: catalog/cocuk-evi/VH-107/cocuk-oyun-evi-oyun-bahce-fiyatlari-modelleri-www.ahsapfiyatlistesi.com-vh-107-05.JPG | BD40: 6500 | BF40: catalog/cocuk-evi/VH-107/cocuk-oyun-evi-oyun-bahce-fiyatlari-modelleri-www.ahsapfiyatlistesi.com-vh-107-05.JPG
AE41: KS-103 | AF41: KS-103 silinmiş Sibirya | AG41: 5 x 15 Sibirya | AI41: 2300 | AJ41: 414 | AK41: 400 | AL41: 5 | AM41: 10 | AO41: 2300 | AQ41: 5 | AR41: 10 | AV41: 0 | AY41: VH-108 | AZ41: Ahşap Çocuk Oyun Evi | BA41: Adet | BB41: VH-108 | BC41: catalog/cocuk-evi/VH-108/oyun-evi-www.ahsapfiyatlistesi.com-VH-108-01.JPG | BD41: 6500 | BF41: catalog/cocuk-evi/VH-108/oyun-evi-www.ahsapfiyatlistesi.com-VH-108-01.JPG
AE42: KS-106 | AF42: KS-106 silinmiş Sibirya | AG42: 5 x 12,5 Sibirya | AI42: 2300 | AJ42: 414 | AK42: 400 | AL42: 5 | AM42: 12.5 | AO42: 2300 | AQ42: 5 | AR42: 12.5 | AV42: 0 | AY42: KK-101 | AZ42: Köpek Kulubesi KK-101 | BA42: Adet | BB42: KK-101 | BC42: catalog/kopek-kulube/KK-101/kk-101-kopek-kulube-evi-fiyatlari-www.kayalarahsap.com-01.jpg | BD42: 672.8 | BF42: catalog/kopek-kulube/KK-101/kk-101-kopek-kulube-evi-fiyatlari-www.kayalarahsap.com-01.jpg
AE43: KS-107 | AF43: KS-107 silinmiş Sibirya | AG43: 6,5 x 12,5 Ladin | AI43: 2300 | AJ43: 414 | AK43: 600 | AL43: 6.5 | AM43: 12.5 | AO43: 2300 | AQ43: 6.5 | AR43: 12.5 | AV43: 0 | AY43: KK-102 | AZ43: Köpek Kulubesi KK-102 | BA43: Adet | BB43: KK-102 | BC43: catalog/kopek evi/KK-102/kk-102-kopek-kulube-evi-fiyatlari-resimleri-www.kayalarahsap.com-03.jpg | BD43: 522 | BF43: catalog/kopek evi/KK-102/kk-102-kopek-kulube-evi-fiyatlari-resimleri-www.kayalarahsap.com-03.jpg
AE44: LM-122 | AF44: Alın Tahtası | AG44: Ukrayna Sınıf Çam | AH44: t | AI44: 30 | AJ44: 5.4 | AK44: 300 | AL44: 2.2 | AM44: 20 | AO44: 30 | AQ44: 2.2 | AR44: 20 | AT44: 300 | AU44: 0.044 | AY44: KK-103 | AZ44: Köpek Kulubesi KK-103 | BA44: Adet | BB44: KK-103 | BC44: catalog/kopek-kulube/KK-103/kk-103-kopek-kulube-evi-fiyatlari-hayvan-barinak-fiyatlari-www.kayalarahsap.com-01.jpg | BD44: 522 | BF44: catalog/kopek-kulube/KK-103/kk-103-kopek-kulube-evi-fiyatlari-hayvan-barinak-fiyatlari-www.kayalarahsap.com-01.jpg
AE45: LM-123 | AJ45: 0 | AY45: KK-104 | AZ45: Köpek Kulubesi KK-104 | BA45: Adet | BB45: KK-104 | BC45: catalog/kopek-kulube/KK-104/kk-104-kopek-kulube-evi-hayvan-barinak-fiyatlari-www.kayalarahsap.com-01.JPG | BD45: 522 | BF45: catalog/kopek-kulube/KK-104/kk-104-kopek-kulube-evi-hayvan-barinak-fiyatlari-www.kayalarahsap.com-01.JPG
AJ46: 0 | AY46: KK-105 | AZ46: Köpek Kulubesi KK-105 | BA46: Adet | BB46: KK-105 | BC46: catalog/kopek-kulube/KK-105/kk-105-ahsap-kopek-kulube-fıyatları-kocaeli-gebze-www.kayalarkereste.com-02.JPG | BD46: 754 | BF46: catalog/kopek-kulube/KK-105/kk-105-ahsap-kopek-kulube-fıyatları-kocaeli-gebze-www.kayalarkereste.com-02.JPG
AJ47: 0 | AY47: PR-101 | AZ47: Ahşap Pergola | BA47: M2 | BB47: PR-101 | BC47: catalog/pergola/PR-101/PR-101-ahsap-kamelya-pergola-fiyatlari-www.kayalarahsap.com-02.jpg | BD47: 406 | BF47: catalog/pergola/PR-101/PR-101-ahsap-kamelya-pergola-fiyatlari-www.kayalarahsap.com-02.jpg
U48: 4.1 | V48: x | W48: 9.1 | X48: ölçü ve | Y48: 930 | Z48: TL den alınan kereste | AE48: YB-101 | AF48: Ahşap Yalı Baskı | AG48: Ukrayna | AI48: 1700 | AJ48: 306 | AK48: 300 | AL48: 1.8 | AM48: 12 | AO48: 1176.923077 | AQ48: 2.6 | AR48: 12 | AT48: 9.9 | AU48: 53.57575758 | AV48: 31.73076923 | AY48: PR-105 | AZ48: Ahşap Pergola | BA48: M2 | BB48: PR-105 | BC48: catalog/pergola/PR-105/PR-105-ahsap-kamelya-gazebo-pergola-fiyatlari-www.kayalarahsap.com-02.jpg | BD48: 406 | BF48: catalog/pergola/PR-105/PR-105-ahsap-kamelya-gazebo-pergola-fiyatlari-www.kayalarahsap.com-02.jpg
AE49: YB-102 | AF49: Ahşap Yalı Baskı Sibirya | AG49: Sibirya | AI49: 2300 | AJ49: 414 | AK49: 400 | AL49: 3.5 | AM49: 12.5 | AO49: 2300 | AQ49: 3.5 | AR49: 12.5 | AT49: 11 | AU49: 91.47727273 | AV49: 25.14285714 | AY49: PR-106 | AZ49: Ahşap Pergola | BA49: M2 | BB49: PR-106 | BC49: catalog/pergola/PR-106/PR-106-pergola-gazebo-konsol-pergola-veranda-ahsap-pergole-fiyatlari-01.jpg | BD49: 406 | BF49: catalog/pergola/PR-106/PR-106-pergola-gazebo-konsol-pergola-veranda-ahsap-pergole-fiyatlari-01.jpg
U50: =IF(COUNTA(U48)>=1,IF(U48<4,2.6,IF(U48<5.1,5,IF(U48<10.1,10,IF(U48<15,15)))),"") -> 5 | V50: x | W50: =IF(COUNTA(W48)>=1,IF(U50=2.6,10,IF(W48<5,5,IF(W48<10.1,10,IF(U48<15,15)))),"") -> 10 | X50: olarak | Y50: =U48*W48*Y48/U50/W50 -> 693.966 | Z50: TL ye mal olmuş Olur | AE50: YB-103 | AF50: Ahşap Yalı Baskı Sibirya | AG50: Sibirya | AI50: 2300 | AJ50: 414 | AK50: 400 | AL50: 4.5 | AM50: 15 | AO50: 2070 | AQ50: 5 | AR50: 15 | AT50: 13.8 | AU50: 125 | AV50: 18.4 | AY50: PR-107 | AZ50: Ahşap Pergola & Jeneratör Kabin | BA50: Adet | BB50: PR-107 | BC50: catalog/pergola/PR-107 JENERATÖR KABİNİ/PR-107-pergola-gazebo-konsol-pergola-veranda-ahsap-jenerator-kabini-01.jpg | BD50: 2552 | BF50: catalog/pergola/PR-107 JENERATÖR KABİNİ/PR-107-pergola-gazebo-konsol-pergola-veranda-ahsap-jenerator-kabini-01.jpg
AE51: YB-104 | AF51: Ahşap Yalı Baskı yuvarlak Sibirya | AG51: Sibirya | AI51: 2300 | AJ51: 414 | AK51: 400 | AL51: 4.5 | AM51: 15 | AO51: 2070 | AQ51: 5 | AR51: 15 | AT51: 13.8 | AU51: 125 | AV51: 18.4 | AY51: AV-102 | AZ51: Ahşap Bungalov Ev (AV-102) | BA51: M2 | BB51: AV-102 | BC51: catalog/Ev/AV-102/av-102-kutuk-ev-bungalov-ahsap-ev-fiyatlari-ahsap-ev-yapimi-maliyeti-resimleri-www.kayalarkereste.com-01.jpg | BD51: 1740 | BF51: catalog/Ev/AV-102/av-102-kutuk-ev-bungalov-ahsap-ev-fiyatlari-ahsap-ev-yapimi-maliyeti-resimleri-www.kayalarkereste.com-01.jpg
AE52: YB-105 | AF52: Ahşap Yalı Baskı Sibirya | AG52: Sibirya | AI52: 2300 | AJ52: 414 | AK52: 400 | AL52: 4.5 | AM52: 20 | AO52: 2070 | AQ52: 5 | AR52: 20 | AT52: 18.8 | AU52: 122.3404255 | AV52: 18.8 | AY52: AV-105 | AZ52: Ahşap Bungalov Ev - (AV-105) | BA52: Adet | BB52: AV-105 | BC52: catalog/Ev/av-105/av-105-ahsap-ev-bungalov-fiyatlari-ahsap-evi-maliyeti-resimleri-gebze-sile-istanbul-www.kayalarkereste.com-06.jpg | BD52: 12760 | BF52: catalog/Ev/av-105/av-105-ahsap-ev-bungalov-fiyatlari-ahsap-evi-maliyeti-resimleri-gebze-sile-istanbul-www.kayalarkereste.com-06.jpg
AE53: YB-106 | AF53: Ahşap Yalı Baskı Fin-İsves | AG53: Fin - İsveç çamı | AI53: 3800 | AJ53: 684 | AK53: 400 | AL53: 2.4 | AM53: 23 | AO53: 3040 | AQ53: 3 | AR53: 23 | AT53: 21 | AU53: 124.8571429 | AV53: 30.43478261 | AY53: AV-106 | AZ53: Ahşap Bungalov Ev (AV-106) | BA53: M2 | BB53: AV-106 | BC53: catalog/Ev/av-106/av-106-ahsap-ev-bungalov-fiyatlari-ahsap-ev-yapimi-maliyeti-resimleri-gebze-www.kayalarkereste.com-01.jpg | BD53: 1566 | BF53: catalog/Ev/av-106/av-106-ahsap-ev-bungalov-fiyatlari-ahsap-ev-yapimi-maliyeti-resimleri-gebze-www.kayalarkereste.com-01.jpg
AY54: AV-107 | AZ54: Ahşap Bungalov Ev (AV-107) | BA54: M2 | BB54: AV-107 | BC54: catalog/Ev/AV-107 KANTAR/KM-140-kamelya-ahsap-dinlenme-sigara-icme-alani-fiyatlari-gebze-kocaeli-tuzla-pendik-istanbul-ahsap-ev-www.kayalarkerest~15.jpg | BD54: 1102 | BF54: catalog/Ev/AV-107 KANTAR/KM-140-kamelya-ahsap-dinlenme-sigara-icme-alani-fiyatlari-gebze-kocaeli-tuzla-pendik-istanbul-ahsap-ev-www.kayalarkerest~15.jpg
AE55: KT-105 | AF55: Kütük Ev Duvar Profil Sibirya | AG55: Sibirya | AI55: 2300 | AJ55: 414 | AK55: 400 | AL55: 4.5 | AM55: 15 | AO55: 2070 | AQ55: 5 | AR55: 15 | AT55: 13.8 | AU55: 125 | AV55: 18.4 | AY55: AV-108 | AZ55: Ahşap Bungalov Ev (AV-108) | BA55: M2 | BB55: AV-108 | BC55: catalog/Ev/av-108/av-108-bungalov-ahsap-ev-kutuk-ev-fiyatlari-yapimi-maliyeti-resimleri-gebze-www.kayalarahsap.com-01.jpg | BD55: 1566 | BF55: catalog/Ev/av-108/av-108-bungalov-ahsap-ev-kutuk-ev-fiyatlari-yapimi-maliyeti-resimleri-gebze-www.kayalarahsap.com-01.jpg
AE56: KT-110 | AF56: Kütük Ev Duvar Profil Ukrayna | AG56: Ukrayna | AI56: 2000 | AJ56: 360 | AK56: 600 | AL56: 9 | AM56: 15 | AO56: 1800 | AQ56: 10 | AR56: 15 | AT56: 13.5 | AU56: 222.2222222 | AV56: 9 | AY56: B-101 | AZ56: BANK Döküm ve Metal Ayaklı B-101 | BA56: Adet | BB56: B-101 | BC56: catalog/Bank/B-101/b-101-Bank-13-citali-ergonomik-ucuz-bank-gebze-www.parkbahcemobilya.com-www.ahsapfiyatlistesi.com-08.jpg | BD56: 485 | BF56: catalog/Bank/B-101/b-101-Bank-13-citali-ergonomik-ucuz-bank-gebze-www.parkbahcemobilya.com-www.ahsapfiyatlistesi.com-08.jpg
AE57: KT-118 | AF57: Kütük Ev Duvar Profil Sibirya Lamine | AG57: Sibirya Lamine | AI57: 3200 | AJ57: 576 | AK57: 600 | AL57: 13.5 | AM57: 15 | AO57: 2880 | AQ57: 15 | AR57: 15 | AT57: 13.5 | AU57: 533.3333333 | AV57: 6 | AY57: B-102 | AZ57: BANK Döküm ve Metal Ayaklı + Kolluk (B-102) | BA57: Adet | BB57: B-102 | BC57: catalog/Bank/B-102/b-102-dokum-ayakli-kollu-bank-fiyatlari-gebze-istanbul-kocaeli-izmit-www.kayalarkereste.com-01.jpg | BD57: 0 | BF57: catalog/Bank/B-102/b-102-dokum-ayakli-kollu-bank-fiyatlari-gebze-istanbul-kocaeli-izmit-www.kayalarkereste.com-01.jpg
AY58: B-103 | AZ58: BANK Döküm ve Metal Ayaklı - Klasik | BA58: Adet | BB58: B-103 | BC58: catalog/Bank/B-103/b-103-ahsap-dokum-ayakli-oturma-bank-fiyatlari-www.parkbahcemobilya.com-01.jpg | BD58: 340 | BF58: catalog/Bank/B-103/b-103-ahsap-dokum-ayakli-oturma-bank-fiyatlari-www.parkbahcemobilya.com-01.jpg
AY59: KB-201 | AZ59: BANK - Ahşap Ayaklı KB-201 | BA59: Adet | BB59: KB-201 | BC59: catalog/Bank/KB-201/kb-201-ahsap-bank-masa-modelleri-fiyatlari-resimleri-www.parkbahcemobilya.com-03.jpg | BD59: 139.2 | BF59: catalog/Bank/KB-201/kb-201-ahsap-bank-masa-modelleri-fiyatlari-resimleri-www.parkbahcemobilya.com-03.jpg
AY60: K-204 | AZ60: BANK Döküm ve Metal Ayaklı - Kollu | BA60: Adet | BB60: K-204 | BC60: catalog/Bank/K-204/kd-204-dokum-ayakli-kollu-ahsap-bank-modelleri-fiyatlari-resimleri-gebze-www.parkbahcemobilya.com-01.jpg | BD60: 565 | BF60: catalog/Bank/K-204/kd-204-dokum-ayakli-kollu-ahsap-bank-modelleri-fiyatlari-resimleri-gebze-www.parkbahcemobilya.com-01.jpg
AY61: K-219 | AZ61: BANK Döküm ve Metal Ayaklı - Klasik Kollu | BA61: Adet | BB61: K-219 | BC61: catalog/Bank/K-219/k-219-dokum-ayakli-kollu-ahsap-bank-modelleri-fiyatlari-resimleri-www.parkbahcemobilya.com-02.jpg | BD61: 560 | BF61: catalog/Bank/K-219/k-219-dokum-ayakli-kollu-ahsap-bank-modelleri-fiyatlari-resimleri-www.parkbahcemobilya.com-02.jpg
AY62: KD-203 | AZ62: BANK Döküm ve Metal Ayaklı - Kollu | BA62: Adet | BB62: KD-203 | BC62: catalog/Bank/KD-203/kd-203-ahsap-dokum-ayakli-kollu-bank-fiyatlari-resimleri-www.parkbahcemobilya.com-08.jpg | BD62: 720 | BF62: catalog/Bank/KD-203/kd-203-ahsap-dokum-ayakli-kollu-bank-fiyatlari-resimleri-www.parkbahcemobilya.com-08.jpg
AY63: UB-97 | AZ63: BANK Yuvarlak Oturum Maun veya İroko | BA63: Adet | BB63: UB-97 | BC63: catalog/Bank/UB-97/ub-97-ahsap-maun-dis-mekan-yuvarlak-metal-ayakli-bank-oturma-gruplari-fiyatlari-resimleri-www.parkbahcemobilya.com-01.JPG | BD63: 4234 | BF63: catalog/Bank/UB-97/ub-97-ahsap-maun-dis-mekan-yuvarlak-metal-ayakli-bank-oturma-gruplari-fiyatlari-resimleri-www.parkbahcemobilya.com-01.JPG
AY64: B-104 | AZ64: BANK Döküm ve Metal Ayaklı B-104 | BA64: Adet | BB64: B-104 | BC64: catalog/Bank/B-104/b-104-metal-ayali-yaslanmasiz-soyunma-odasi-bank-fiyatlari-gebze-istanbul-www.parkbahcemobilya.com-02.jpg | BD64: 266.8 | BF64: catalog/Bank/B-104/b-104-metal-ayali-yaslanmasiz-soyunma-odasi-bank-fiyatlari-gebze-istanbul-www.parkbahcemobilya.com-02.jpg
AY65: B-105 | AZ65: BANK Döküm ve Metal Ayaklı - Soyunma odaları için | BA65: Adet | BB65: B-105 | BC65: catalog/Bank/B-105/b-105-soyunma-odasi-bank-fiyatlari-www.parkbahcemobilya.com-01.jpg | BD65: 285 | BF65: catalog/Bank/B-105/b-105-soyunma-odasi-bank-fiyatlari-www.parkbahcemobilya.com-01.jpg
AY66: DC-101 | AZ66: DECK Ahşap ÇAM 18 mm DC-101 | BA66: M2 | BB66: DC-101 | BC66: catalog/deck/cam-dc-101/dc-101-cam-deck-ahsap-profil-yer-doseme-01.jpg | BD66: 57 | BF66: catalog/deck/cam-dc-101/dc-101-cam-deck-ahsap-profil-yer-doseme-01.jpg
AY67: KR-101 | AZ67: İnşaatlık Kereste (41 x 91) - (91 x 91) [KR-101] | BA67: M3 | BB67: KR-101 | BC67: catalog/Kereste/Kereste_paket.JPG | BD67: 990 | BF67: catalog/Kereste/Kereste_paket.JPG
AY68: LM-111 | AZ68: İROKO Lambiri - Rabıta 130mm (LM-111) | BA68: M2 | BB68: LM-111 | BC68: catalog/lambiri-ahsap/lm-111-iroko-lambiri-130mm-18mm-120mmkapatir-01.jpg | BD68: 30 | BF68: catalog/lambiri-ahsap/lm-111-iroko-lambiri-130mm-18mm-120mmkapatir-01.jpg
AY69: LM-101 | AZ69: Lambiri - Rabıta 1. Sınıf (LM-101) | BA69: M2 | BB69: LM-101 | BC69: catalog/lambiri-ahsap/LM-101-Lambiri 1-Sinif-01.jpg | BD69: 52 | BF69: catalog/lambiri-ahsap/LM-101-Lambiri 1-Sinif-01.jpg
AY70: LM-102 | AZ70: Lambiri - Rabıta 2. Standart Sınıf Lambiri Rabıta (LM-102) | BA70: M2 | BB70: LM-102 | BC70: catalog/lambiri-ahsap/LM-102-Lambiri 2-Sinif-01.jpg | BD70: 45 | BF70: catalog/lambiri-ahsap/LM-102-Lambiri 2-Sinif-01.jpg
AY71: LM-104 | AZ71: Ahşap Süpürgelik | BA71: Metre | BB71: LM-104 | BC71: catalog/lambiri-ahsap/supurgelik-5lik-a.jpg | BD71: 2.03 | BF71: catalog/lambiri-ahsap/supurgelik-5lik-a.jpg
AY72: LM-103 | AZ72: Lambiri - Rabıta Extra Sınıf (LM-103) | BA72: M2 | BB72: LM-103 | BC72: catalog/lambiri-ahsap/LM-100-Lambiri-Extra-03.jpg | BD72: 60 | BF72: catalog/lambiri-ahsap/LM-100-Lambiri-Extra-03.jpg
AY73: LM-112 | AZ73: İROKO Lambiri - Rabıta 95 mm geniş (lm-112) | BA73: M2 | BB73: LM-112 | BC73: catalog/lambiri-ahsap/lm-112-iroko-lambiri-95mm-18mm-86mmkapatır-01.jpg | BD73: 30 | BF73: catalog/lambiri-ahsap/lm-112-iroko-lambiri-95mm-18mm-86mmkapatır-01.jpg
AY74: LM-113 | AZ74: İROKO Lambiri - Rabıta 95 mm geniş (LM-113) | BA74: M2 | BB74: LM-113 | BC74: catalog/lambiri-ahsap/lm-113-iroko-rabita-yer-doseme-10cm-x-45cm-12mm-95mmkapatir-01.jpg | BD74: 30 | BF74: catalog/lambiri-ahsap/lm-113-iroko-rabita-yer-doseme-10cm-x-45cm-12mm-95mmkapatir-01.jpg
AY75: KS-101 | AZ75: 5 x 10 Silinmiş Kereste Ukrayna -KS-101 | BA75: M3 | BB75: KS-101 | BC75: catalog/silinmis-kereste/ks-101-cam-dogramalik-silinmis-sinif-kereste-5x10-01.jpg | BD75: 1700 | BF75: catalog/silinmis-kereste/ks-101-cam-dogramalik-silinmis-sinif-kereste-5x10-01.jpg
AY76: KS-102 | AZ76: 10 x 10 Silinmiş Kereste UKRAYNA KS-102 | BA76: M3 | BB76: KS-102 | BC76: catalog/silinmis-kereste/ks-102-cam-dogramalik-silinmis-sinif-kereste-10x10-01.jpg | BD76: 1700 | BF76: catalog/silinmis-kereste/ks-102-cam-dogramalik-silinmis-sinif-kereste-10x10-01.jpg
AY77: KS-103 | AZ77: 5 x 15 Silinmiş Kereste Sibirya -KS-103 | BA77: M3 | BB77: KS-103 | BC77: catalog/silinmis-kereste/ks-103-cam-dogramalik-silinmis-sinif-kereste-5x15-01.jpg | BD77: 2300 | BF77: catalog/silinmis-kereste/ks-103-cam-dogramalik-silinmis-sinif-kereste-5x15-01.jpg
AY78: KS-104 | AZ78: 3,5x15 Silinmiş Kereste Sibirya KS-104 | BA78: M3 | BB78: KS-104 | BC78: catalog/silinmis-kereste/ks-104-cam-ladin-dogramalik-silinmis-sinif-kereste-35x125-01.jpg | BD78: 2300 | BF78: catalog/silinmis-kereste/ks-104-cam-ladin-dogramalik-silinmis-sinif-kereste-35x125-01.jpg
I79: =IFERROR(VLOOKUP(F79,AF:AG,2,FALSE),"") ->  | AY79: KS-105 | AZ79: 3,5 x 12,5 Silinmiş Kereste SİBİRYA KS-105 | BA79: M3 | BB79: KS-105 | BC79: catalog/silinmis-kereste/ks-103-cam-dogramalik-silinmis-sinif-kereste-5x15-01.jpg | BD79: 2300 | BF79: catalog/silinmis-kereste/ks-103-cam-dogramalik-silinmis-sinif-kereste-5x15-01.jpg
AY80: KM-101 | AZ80: Kamelya - Çardak -101 | BA80: Adet | BB80: KM-101 | BC80: catalog/Kamelya-cardak/KM-101/KM-101-ucuz-ahsap-cardak-kamelya-kameriye-ahsap-ev-gazebo-pergola-kutuk-ev-pergole-fiyatlari-gebze-www.kayalarahsap.com-01.jpg | BD80: 20880 | BF80: catalog/Kamelya-cardak/KM-101/KM-101-ucuz-ahsap-cardak-kamelya-kameriye-ahsap-ev-gazebo-pergola-kutuk-ev-pergole-fiyatlari-gebze-www.kayalarahsap.com-01.jpg
AY81: KM-102 | AZ81: Kamelya & Çardak -102 | BA81: Adet | BB81: KM-102 | BC81: catalog/Kamelya-cardak/KM-102/KM-102-ucuz-ahsap-cardak-kamelya-kameriye-gazebo-pergola-pergole-fiyatlari-gebze-www.kayalarahsap.com-08.jpg | BD81: 6670 | BF81: catalog/Kamelya-cardak/KM-102/KM-102-ucuz-ahsap-cardak-kamelya-kameriye-gazebo-pergola-pergole-fiyatlari-gebze-www.kayalarahsap.com-08.jpg
AY82: =HYPERLINK(BF82,BB82) -> KM-103 | AZ82: Kamelya - Çardak -103 | BA82: Adet | BB82: KM-103 | BC82: catalog/Kamelya-cardak/KM-103/KM-103-ucuz-ahsap-cardak-kamelya-kameriye-gazebo-pergola-pergole-fiyatlari-www.kayalarahsap.com-02.jpg | BD82: 5800 | BF82: catalog/Kamelya-cardak/KM-103/KM-103-ucuz-ahsap-cardak-kamelya-kameriye-gazebo-pergola-pergole-fiyatlari-www.kayalarahsap.com-02.jpg
AY83: KM-107 | AZ83: Kamelya - Çardak -107 | BA83: Adet | BB83: KM-107 | BC83: catalog/Kamelya-cardak/KM-106/kamelya-cardak-www.parkbahcemobilya.com-km-107-16.jpg | BD83: 2320 | BF83: catalog/Kamelya-cardak/KM-106/kamelya-cardak-www.parkbahcemobilya.com-km-107-16.jpg
AY84: KM-105 | AZ84: Kamelya - Çardak KM-105 | BA84: Adet | BB84: KM-105 | BC84: catalog/Kamelya-cardak/KM-105/KM-105-cardak-kamelya-seyyar-gazebo-ucuz-ahsap-kamelya-cardak-www.kayalarahsap.com-04.jpg | BD84: 3770 | BF84: catalog/Kamelya-cardak/KM-105/KM-105-cardak-kamelya-seyyar-gazebo-ucuz-ahsap-kamelya-cardak-www.kayalarahsap.com-04.jpg
AU85: =IFERROR(AI85/((100/AQ85/AR85)*AT85),"") ->  | AY85: KM-104 | AZ85: Kamelya - Çardak KM-104 | BA85: Adet | BB85: KM-104 | BC85: catalog/Kamelya-cardak/KM-104/KM-104-ahsap-ucuz-cardak-kamelya-kameriye-gazebo-fiyatlari-www.kayalarahsap.com-01.jpg | BD85: 7540 | BF85: catalog/Kamelya-cardak/KM-104/KM-104-ahsap-ucuz-cardak-kamelya-kameriye-gazebo-fiyatlari-www.kayalarahsap.com-01.jpg
AU86: =IFERROR(AI86/((100/AQ86/AR86)*AT86),"") ->  | AY86: VH-109 | AZ86: Ahşap Çocuk Oyun Evi VH-109 | BA86: Adet | BB86: VH-109 | BC86: catalog/cocuk-evi/VH-109/VH-109-cocuk-ahsap-oyun-evi-gebze-tuzla-pendik-istanbul-fiyatlari-07.JPG | BD86: 6728 | BF86: =CONCATENATE($AY$1, BC86) -> catalog/cocuk-evi/VH-109/VH-109-cocuk-ahsap-oyun-evi-gebze-tuzla-pendik-istanbul-fiyatlari-07.JPG
AU87: =IFERROR(AI87/((100/AQ87/AR87)*AT87),"") ->  | AY87: KM-108 | AZ87: Kamelya - Çardak KM-108 | BA87: Adet | BB87: KM-108 | BC87: catalog/Kamelya-cardak/KM-108/KM-108-kamelya-cardak-ucuz-kameriye-fiyatlari-www.parkbahcemobilya.com-www.ahsapfiyatlistesi.com-km-108-02.jpg | BD87: 7540 | BF87: catalog/Kamelya-cardak/KM-108/KM-108-kamelya-cardak-ucuz-kameriye-fiyatlari-www.parkbahcemobilya.com-www.ahsapfiyatlistesi.com-km-108-02.jpg
AU88: =IFERROR(AI88/((100/AQ88/AR88)*AT88),"") ->  | AY88: KM-124 | AZ88: Kamelya - Çardak KM-124 | BA88: Adet | BB88: KM-124 | BC88: catalog/Kamelya-cardak/KM-124_Demir_200cm/km-124-demir-kamelya-ahsap-08.jpg | BD88: 3944 | BF88: catalog/Kamelya-cardak/KM-124_Demir_200cm/km-124-demir-kamelya-ahsap-08.jpg
AY89: KM-125 | AZ89: Kamelya - Çardak KM-125 | BA89: Adet | BB89: KM-125 | BC89: catalog/Kamelya-cardak/KM-125 6GEN 5-15 DIREKLI/KM-125-kamelya-kare-dikdortgen-ahsap-dinlenme-cardak-gazebo-ucuz-kameriye-pergola-fiyatlari-www.kayalarkereste.com-32.jpg | BD89: 6670 | BF89: catalog/Kamelya-cardak/KM-125 6GEN 5-15 DIREKLI/KM-125-kamelya-kare-dikdortgen-ahsap-dinlenme-cardak-gazebo-ucuz-kameriye-pergola-fiyatlari-www.kayalarkereste.com-32.jpg
AY90: KM-126 | AZ90: Kamelya - Çardak KM-126 | BA90: M2 | BB90: KM-126 | BC90: catalog/Kamelya-cardak/KM-126 DIKDORTGEN cATALcA/KM-126-kamelya-kare-dikdortgen-ahsap-dinlenme-cardak-gazebo-ucuz-kameriye-fiyatlari-www.kayalarkereste.com-02.jpg | BD90: 638 | BF90: catalog/Kamelya-cardak/KM-126 DIKDORTGEN cATALcA/KM-126-kamelya-kare-dikdortgen-ahsap-dinlenme-cardak-gazebo-ucuz-kameriye-fiyatlari-www.kayalarkereste.com-02.jpg
AY91: KM-127 | AZ91: Kamelya - Çardak KM-127 | BA91: Adet | BB91: KM-127 | BC91: catalog/Kamelya-cardak/KM-127 KARE KAMELYA/KM-127-kamelya-ahsap-dinlenme-cardak-gazebo-kameriye-fiyatlari-resimleri-www.kayalarkereste.com-06.jpg | BD91: 6670 | BF91: catalog/Kamelya-cardak/KM-127 KARE KAMELYA/KM-127-kamelya-ahsap-dinlenme-cardak-gazebo-kameriye-fiyatlari-resimleri-www.kayalarkereste.com-06.jpg
AY92: KM-128 | AZ92: Kamelya - Çardak KM-128 | BA92: Adet | BB92: KM-128 | BC92: catalog/Kamelya-cardak/KM-128 SEKIZGEN KAMELYA 5-15 DiREKLi/KM-128-kamelya-sekizgen-www.kayalarkereste.com-07.jpg | BD92: 9860 | BF92: catalog/Kamelya-cardak/KM-128 SEKIZGEN KAMELYA 5-15 DiREKLi/KM-128-kamelya-sekizgen-www.kayalarkereste.com-07.jpg
AY93: KM-129 | AZ93: Kamelya - Çardak KM-129 | BA93: M2 | BB93: KM-129 | BC93: catalog/Kamelya-cardak/KM-129 ARIMPEKS -BEMAS/KM-129-kamelya-cardak-pergola-fiyatlari-dinlenme-alani-ahsap-sigara-icme-alani-www.kayalarkereste.com-17.jpg | BD93: 812 | BF93: catalog/Kamelya-cardak/KM-129 ARIMPEKS -BEMAS/KM-129-kamelya-cardak-pergola-fiyatlari-dinlenme-alani-ahsap-sigara-icme-alani-www.kayalarkereste.com-17.jpg
AY94: KM-130 | AZ94: Kamelya - Çardak KM-130 | BA94: Adet | BB94: KM-130 | BC94: catalog/Kamelya-cardak/KM-130 SEKIZGEN SAPKALI cAPRAZ KORKULUK/KM-130-kamelya-cardak-fiyatlari-gazebo-pargola-www.kayalarahsap-www.parkbahcemobilya.com-01.jpg | BD94: 10208 | BF94: catalog/Kamelya-cardak/KM-130 SEKIZGEN SAPKALI cAPRAZ KORKULUK/KM-130-kamelya-cardak-fiyatlari-gazebo-pargola-www.kayalarahsap-www.parkbahcemobilya.com-01.jpg
AY95: KM-131 | AZ95: Kamelya - Çardak KM-131 | BA95: M2 | BB95: KM-131 | BC95: catalog/Kamelya-cardak/KM-131-TOYOTETSU-MERKEZ/KM-131-ahsap-sigara icme-dinlenme-kamelya-cardak-alani-www.kayalarkereste.com-01.jpg | BD95: 812 | BF95: catalog/Kamelya-cardak/KM-131-TOYOTETSU-MERKEZ/KM-131-ahsap-sigara icme-dinlenme-kamelya-cardak-alani-www.kayalarkereste.com-01.jpg
AY96: KM-132 | AZ96: Kamelya - Çardak 132 | BA96: Adet | BB96: KM-132 | BC96: catalog/Kamelya-cardak/KM-132/KM-132-kamelya-ahsap-dinlenme-sigara-icme-cardak-www.kayalarkereste.com-08.jpg | BD96: 6670 | BF96: catalog/Kamelya-cardak/KM-132/KM-132-kamelya-ahsap-dinlenme-sigara-icme-cardak-www.kayalarkereste.com-08.jpg
AY97: KM-134 | AZ97: Kamelya - Çardak 134 | BA97: Adet | BB97: KM-134 | BC97: catalog/Kamelya-cardak/KM-134 CARDAK/KM-134-kamelya-ahsap-dinlenme-sigara-icme-cardak-gazebo-kameriye-fiyatlari-gebze-www.kayalarkereste.com-15.jpg | BD97: 3016 | BF97: catalog/Kamelya-cardak/KM-134 CARDAK/KM-134-kamelya-ahsap-dinlenme-sigara-icme-cardak-gazebo-kameriye-fiyatlari-gebze-www.kayalarkereste.com-15.jpg
AY98: KM-135 | AZ98: Kamelya - Çardak 135 | BA98: Adet | BB98: KM-135 | BC98: catalog/Kamelya-cardak/KM-135-KAMELYA-CARDAK/KM-135-kamelya-ahsap-cardak-gazebo-kameriye-fiyatlari-istanbul-www.kayalarkereste.com-01.jpg | BD98: 6670 | BF98: catalog/Kamelya-cardak/KM-135-KAMELYA-CARDAK/KM-135-kamelya-ahsap-cardak-gazebo-kameriye-fiyatlari-istanbul-www.kayalarkereste.com-01.jpg
AY99: KM-136 | AZ99: Kamelya - Çardak Bahçe Dinlenme Alanı 136 | BA99: M2 | BB99: KM-136 | BC99: catalog/Kamelya-cardak/KM-136 BAHCE KAMELYA/KM-136-bahce-kamelya-ahsap-cardak-gazebo-kameriye-fiyatlari-istanbul-www.kayalarkereste.com-01.jpg | BD99: 1102 | BF99: catalog/Kamelya-cardak/KM-136 BAHCE KAMELYA/KM-136-bahce-kamelya-ahsap-cardak-gazebo-kameriye-fiyatlari-istanbul-www.kayalarkereste.com-01.jpg
AY100: KM-137 | AZ100: Kamelya - Çardak platform 137 | BA100: Adet | BB100: KM-137 | BC100: catalog/Kamelya-cardak/KM-137 PLATFORM/km-137-platform-kamelya-cardak-fiyatlari-www.kayalarahsap.com-01.jpg | BD100: 7656 | BF100: catalog/Kamelya-cardak/KM-137 PLATFORM/km-137-platform-kamelya-cardak-fiyatlari-www.kayalarahsap.com-01.jpg
AY101: KM-138 | AZ101: Kamelya - Çardak Kapalı dinlenme Alanı 138 | BA101: M2 | BB101: KM-138 | BC101: catalog/Kamelya-cardak/KM-138 TOYOTETSU PC/KM-138-kamelya-ahsap-cardak-dinlenme-sigara-icme-alani-kameriye-fiyatlaril-gebze-www.kayalarkereste.com-01.jpg | BD101: 1102 | BF101: catalog/Kamelya-cardak/KM-138 TOYOTETSU PC/KM-138-kamelya-ahsap-cardak-dinlenme-sigara-icme-alani-kameriye-fiyatlaril-gebze-www.kayalarkereste.com-01.jpg
AY102: KM-139 | AZ102: Kamelya - Çardak platform 139 | BA102: M2 | BB102: KM-139 | BC102: catalog/Kamelya-cardak/KM-139 TOYOTETSU PRES/KM-139-kamelya-ahsap-cardak-dinlenme-sigara-icme-alani-fiyatlari-gebze-kocaeli-istanbul-www.kayalarkereste.com-01.jpg | BD102: 1102 | BF102: catalog/Kamelya-cardak/KM-139 TOYOTETSU PRES/KM-139-kamelya-ahsap-cardak-dinlenme-sigara-icme-alani-fiyatlari-gebze-kocaeli-istanbul-www.kayalarkereste.com-01.jpg
AY103: KM-141 | AZ103: Kamelya - Çardak platform 141 | BA103: M2 | BB103: KM-141 | BC103: catalog/Kamelya-cardak/KM-141 DENSO HUUN/KM-141-kamelya-ahsap-cardak-dinlenme-sigara-icme-alani-fiyatlari-gebze-kocaeli-izmit-istanbul-www.kayalarkereste.com-11.jpg | BD103: 1102 | BF103: catalog/Kamelya-cardak/KM-141 DENSO HUUN/KM-141-kamelya-ahsap-cardak-dinlenme-sigara-icme-alani-fiyatlari-gebze-kocaeli-izmit-istanbul-www.kayalarkereste.com-11.jpg
AY104: KM-142 | AZ104: Kamelya - Çardak platform 142 | BA104: M2 | BB104: KM-142 | BC104: catalog/Kamelya-cardak/KM-142/KM-142-kamelya-ahsap-cardak-dinlenme-sigara-icme-alani-fiyatlari-gebze-kocaeli-izmit-istanbul-www.kayalarkereste.com-08.jpg | BD104: 1102 | BF104: catalog/Kamelya-cardak/KM-142/KM-142-kamelya-ahsap-cardak-dinlenme-sigara-icme-alani-fiyatlari-gebze-kocaeli-izmit-istanbul-www.kayalarkereste.com-08.jpg
AY105: KM-143 | AZ105: Kamelya - Çardak platform 143 | BA105: M2 | BB105: KM-143 | BC105: catalog/Kamelya-cardak/KM-143/km-143-ahsap-dinlenme-sigara-icme-alani-kamelya-fiyatlari-gebze-kocaeli-tuzla-pendik-istanbul-ahsap-ev-www.kayalarkereste~9.jpg | BD105: 1102 | BF105: catalog/Kamelya-cardak/KM-143/km-143-ahsap-dinlenme-sigara-icme-alani-kamelya-fiyatlari-gebze-kocaeli-tuzla-pendik-istanbul-ahsap-ev-www.kayalarkereste~9.jpg
AY106: KM-144 | AZ106: Kamelya - Çardak platform 144 | BA106: Adet | BB106: KM-144 | BC106: catalog/Kamelya-cardak/KM-144/KM-144-kamelya-cardak-kameriye-gazebo-pargola-fiyatlari-www.kayalarahsap-www.kayalarkereste.com-6.jpg | BD106: 6670 | BF106: catalog/Kamelya-cardak/KM-144/KM-144-kamelya-cardak-kameriye-gazebo-pargola-fiyatlari-www.kayalarahsap-www.kayalarkereste.com-6.jpg
AY107: KM-145 | AZ107: Kamelya - Çardak 145 | BA107: M2 | BB107: KM-145 | BC107: catalog/Kamelya-cardak/KM-145 KIA/KM-145-kamelya-kis-bahce-cardak-pargola-fiyatlari-www.kayalarkereste.com-01.jpg | BD107: 812 | BF107: catalog/Kamelya-cardak/KM-145 KIA/KM-145-kamelya-kis-bahce-cardak-pargola-fiyatlari-www.kayalarkereste.com-01.jpg
AY108: KM-146 | AZ108: Kamelya - Çardak 146 | BA108: Adet | BB108: KM-146 | BC108: catalog/Kamelya-cardak/KM-146 BODYCOTE/KM-146-kamelya-kis-bahce-cardak-fabrika-sigara-icme-alani-fiyatlari-www.kayalarkereste.com-03.jpg | BD108: 5800 | BF108: catalog/Kamelya-cardak/KM-146 BODYCOTE/KM-146-kamelya-kis-bahce-cardak-fabrika-sigara-icme-alani-fiyatlari-www.kayalarkereste.com-03.jpg
AY109: KM-147 | AZ109: Kamelya - Çardak 147 | BA109: Adet | BB109: KM-147 | BC109: 2018/02/KM-147-kemer-kamelya-ahsap-dinlenme-alani-kis-bahcesi-cardak-gazebo-fiyatlari-www.kayalarkereste.com- 06.jpg | BD109: 7540 | BF109: 2018/02/KM-147-kemer-kamelya-ahsap-dinlenme-alani-kis-bahcesi-cardak-gazebo-fiyatlari-www.kayalarkereste.com- 06.jpg
AY110: KM-148 | AZ110: Kamelya - Çardak 148 | BA110: M2 | BB110: KM-148 | BC110: catalog/Kamelya-cardak/KM-148 MORYAYLA/bahce-kamelya-km-148-04.jpg | BD110: 812 | BF110: catalog/Kamelya-cardak/KM-148 MORYAYLA/bahce-kamelya-km-148-04.jpg
AY111: KM-150 | AZ111: Kamelya - Çardak 150 | BA111: Adet | BB111: KM-150 | BC111: catalog/Kamelya-cardak/KM-150/KM-150-kamelya-ahsap-kis-bahce-cardak-fiyatlari-ucuz-kameriye-www.kayalarkereste.com-13.jpg | BD111: 6000 | BF111: catalog/Kamelya-cardak/KM-150/KM-150-kamelya-ahsap-kis-bahce-cardak-fiyatlari-ucuz-kameriye-www.kayalarkereste.com-13.jpg
AY112: KM-151 | AZ112: Kamelya - Çardak 151 | BA112: Adet | BB112: KM-151 | BC112: catalog/Kamelya-cardak/KM-151 BOSAL/ahsap-cardak-kamelya-dinlenme-sigara-icme-alani-gebze-pelitli-balcik-www.kayalarkereste.com-km-148-03.jpg | BD112: 12000 | BF112: catalog/Kamelya-cardak/KM-151 BOSAL/ahsap-cardak-kamelya-dinlenme-sigara-icme-alani-gebze-pelitli-balcik-www.kayalarkereste.com-km-148-03.jpg
AY113: KM-152 | AZ113: Kamelya - Fabrika Dinlenme Alanı Çardak 152 | BA113: Adet | BB113: KM-152 | BC113: catalog/Kamelya-cardak/KM-152 FATER/KM-152-kamelya-ahsap-cardak-fiyatlari-ucuz-kameriye-www.kayalarkereste.com-01.jpg | BD113: 8000 | BF113: catalog/Kamelya-cardak/KM-152 FATER/KM-152-kamelya-ahsap-cardak-fiyatlari-ucuz-kameriye-www.kayalarkereste.com-01.jpg
AY114: KM-153 | AZ114: Kamelya - Çardak 153 | BA114: Adet | BB114: KM-153 | BC114: catalog/Kamelya-cardak/KM-153/km-153-ahsap-kamelya-bahce-platform-dinlenme-alani-04.jpg | BD114: 4200 | BF114: catalog/Kamelya-cardak/KM-153/km-153-ahsap-kamelya-bahce-platform-dinlenme-alani-04.jpg
AY115: KM-154 | AZ115: Kamelya - Çardak 154 | BA115: Adet | BB115: KM-154 | BC115: catalog/Kamelya-cardak/KM-154/cardak-kamelya-gazebo-ahsap-oturma-dinlenme-alani-kartal-pendik-gebze-www.kayalarahsap.com-KM-154-01.jpg | BD115: 5500 | BF115: catalog/Kamelya-cardak/KM-154/cardak-kamelya-gazebo-ahsap-oturma-dinlenme-alani-kartal-pendik-gebze-www.kayalarahsap.com-KM-154-01.jpg
AY116: KM-155 | AZ116: Kamelya - Çardak 155 | BA116: Adet | BB116: KM-155 | BC116: catalog/Kamelya-cardak/KM-155 SANGO UZUN/cardak-kamelya-gazebo-ahsap-sigara-icme-oturma-dinlenme-alani-sango-gebze-www.kayalarahsap.com-KM-155-01.jpg | BD116: 19800 | BF116: catalog/Kamelya-cardak/KM-155 SANGO UZUN/cardak-kamelya-gazebo-ahsap-sigara-icme-oturma-dinlenme-alani-sango-gebze-www.kayalarahsap.com-KM-155-01.jpg
AY117: KM-156 | AZ117: Kamelya - Çardak 156 | BA117: Adet | BB117: KM-156 | BC117: catalog/Kamelya-cardak/KM-156/cardak-kamelya-gazebo-ahsap-sigara-icme-oturma-dinlenme-alani-sango-gebze-www.kayalarahsap.com-KM-156-01.jpg | BD117: 9000 | BF117: catalog/Kamelya-cardak/KM-156/cardak-kamelya-gazebo-ahsap-sigara-icme-oturma-dinlenme-alani-sango-gebze-www.kayalarahsap.com-KM-156-01.jpg
AY118: KM-157 | AZ118: Kamelya - Çardak 157 | BA118: Adet | BB118: KM-157 | BC118: catalog/Kamelya-cardak/KM-157 AYDINLI YAVUZHAN 4X4/KM-157-kamelya-ahsap-kis-bahce-cardak-gazebo-fiyatlari-ucuz-kamelya-kameriye-www.kayalarkereste.com-04.jpg | BD118: 9600 | BF118: catalog/Kamelya-cardak/KM-157 AYDINLI YAVUZHAN 4X4/KM-157-kamelya-ahsap-kis-bahce-cardak-gazebo-fiyatlari-ucuz-kamelya-kameriye-www.kayalarkereste.com-04.jpg
AY119: KM-158 | AZ119: Kamelya - Çardak 158 | BA119: Adet | BB119: KM-158 | BC119: catalog/Kamelya-cardak/KM-158/KM-158-kamelya-ahsap-cardak-gazebo-kameriye-ucuz-kamelya-fiyatlari-istanbul-gebze-www.kayalarkereste.com-07.JPG | BD119: 9600 | BF119: catalog/Kamelya-cardak/KM-158/KM-158-kamelya-ahsap-cardak-gazebo-kameriye-ucuz-kamelya-fiyatlari-istanbul-gebze-www.kayalarkereste.com-07.JPG
AY120: KM-159 | AZ120: Kamelya - Çardak 159 | BA120: Adet | BB120: KM-159 | BC120: catalog/Kamelya-cardak/KM-159 TUZLA YAVUZHAN 3,5 X 3,5/km-159-cardak-ahsap-kamelya-tuzla-pendik-gebze-gazebo-ucuz-kamelya-fiyatlari-www.kayalarkereste.com-02.jpg | BD120: 8150 | BF120: catalog/Kamelya-cardak/KM-159 TUZLA YAVUZHAN 3,5 X 3,5/km-159-cardak-ahsap-kamelya-tuzla-pendik-gebze-gazebo-ucuz-kamelya-fiyatlari-www.kayalarkereste.com-02.jpg
AY121: KM-160 | AZ121: Kamelya - Çardak 160 | BA121: Adet | BB121: KM-160 | BC121: catalog/Kamelya-cardak/KM-160 AYDINLI YAVUZHAN 3X5/KM-160-kamelya-kis-bahce-cardak-site-dinlenme-alani-cardak-fiyatlari-gebze-tuzla-pendik-www.kayalarkereste.com-01.jpg | BD121: 10500 | BF121: catalog/Kamelya-cardak/KM-160 AYDINLI YAVUZHAN 3X5/KM-160-kamelya-kis-bahce-cardak-site-dinlenme-alani-cardak-fiyatlari-gebze-tuzla-pendik-www.kayalarkereste.com-01.jpg
AY122: KM-162 | AZ122: Serender - Nayla 162 | BA122: Adet | BB122: KM-162 | BC122: catalog/Kamelya-cardak/KM-162/km-162-nayla-serender-cift-katli-kamelya-ahsap-nayla-serender-fiyatlari-www.kayalarkereste.com-01.jpg | BD122: 18000 | BF122: catalog/Kamelya-cardak/KM-162/km-162-nayla-serender-cift-katli-kamelya-ahsap-nayla-serender-fiyatlari-www.kayalarkereste.com-01.jpg
AY123: KM-163 | AZ123: Kamelya - Çardak 163 | BA123: Adet | BB123: KM-163 | BC123: catalog/Kamelya-cardak/KM-163/km-163-ahsap-sekizgen-yuvarlak-kamelya-cardak-gazebo-fiyatlari-gebze-tuzla-pendik-kurtkoy-www.kayalarkereste.com-07.jpg | BD123: 9600 | BF123: catalog/Kamelya-cardak/KM-163/km-163-ahsap-sekizgen-yuvarlak-kamelya-cardak-gazebo-fiyatlari-gebze-tuzla-pendik-kurtkoy-www.kayalarkereste.com-07.jpg
AY124: PA-131 | AZ124: PA-131 Çocuk Oyun Parkı | BA124: Adet | BB124: PA-131 | BC124: catalog/Oyun-Park/PA-131/cocuk-oyun-parki-gebze-ahsap-oyun-alani-fiyatlari-www.ahsapfiyatlistesi.com-PA-131-01.jpg | BD124: 7540 | BF124: catalog/Oyun-Park/PA-131/cocuk-oyun-parki-gebze-ahsap-oyun-alani-fiyatlari-www.ahsapfiyatlistesi.com-PA-131-01.jpg
AY125: UK-101 | AZ125: TAVUK ve KANATLI HAYVAN KÜMESİ 101 | BA125: Adet | BB125: UK-101 | BC125: catalog/kumes/UK-101/IMG_1923.jpg | BD125: 2204 | BF125: catalog/kumes/UK-101/IMG_1923.jpg
AY126: UK-102 | AZ126: TAVUK ve KANATLI HAYVAN KÜMESİ 102 | BA126: Adet | BB126: UK-102 | BC126: catalog/kumes/UK-102/IMG_1678.jpg | BD126: 2204 | BF126: catalog/kumes/UK-102/IMG_1678.jpg
AY127: UK-103 | AZ127: TAVUK ve KANATLI HAYVAN KÜMESİ 103 | BA127: Adet | BB127: UK-103 | BC127: catalog/kumes/UK-103/ahsap-tavuk-guvercin-kumes-uk-103-03.jpg | BD127: 3306 | BF127: catalog/kumes/UK-103/ahsap-tavuk-guvercin-kumes-uk-103-03.jpg
AY128: UK-104 | AZ128: TAVUK ve KANATLI HAYVAN KÜMESİ 104 | BA128: Adet | BB128: UK-104 | BC128: catalog/kumes/UK-104/ahsap-tavuk-kumesi-uk-104-01.jpg | BD128: 3306 | BF128: catalog/kumes/UK-104/ahsap-tavuk-kumesi-uk-104-01.jpg
AY129: KU-102 | AZ129: AHŞAP KÖPRU KU-102 | BA129: Metre | BB129: KU-102 | BC129: catalog/kopru/KU-102/ku-102-ahsap-kopru-cesitleri-fiyatlari-resimleri-gebze-kocaeli-istanbul-1.jpg | BD129: 754 | BF129: catalog/kopru/KU-102/ku-102-ahsap-kopru-cesitleri-fiyatlari-resimleri-gebze-kocaeli-istanbul-1.jpg
AY130: AS-101 | AZ130: Ahşap Saksı 101 | BA130: Adet | BB130: AS-101 | BC130: catalog/saksi/AS-101/AS-101-ahsap-saksi-fiyatlari-ahsap-saksi-imalati-buyuk-ahsap saksi-ahsap-saksi-fiyatlari-www.kayalarahsap.com-01.jpg | BD130: 522 | BF130: catalog/saksi/AS-101/AS-101-ahsap-saksi-fiyatlari-ahsap-saksi-imalati-buyuk-ahsap saksi-ahsap-saksi-fiyatlari-www.kayalarahsap.com-01.jpg
AY131: AS-102 | AZ131: Ahşap Saksı 102 | BA131: Adet | BB131: AS-102 | BC131: catalog/saksi/AS-102/AS-102-ahsap-saksi-fiyatlari-ahsap-saksi-imalati-buyuk-maun-ahsap saksi-ahsap-saksi-fiyatlari-www.kayalarahsap.com-03.jpg | BD131: 638 | BF131: catalog/saksi/AS-102/AS-102-ahsap-saksi-fiyatlari-ahsap-saksi-imalati-buyuk-maun-ahsap saksi-ahsap-saksi-fiyatlari-www.kayalarahsap.com-03.jpg
AY132: AS-103 | AZ132: Ahşap Saksı 103 | BA132: Adet | BB132: AS-103 | BC132: catalog/saksi/AS-103/AS-103-maun-ahsap-saksi-fiyatlari-ahsap-saksi-imalati-buyuk-maun-ahsap saksi-ahsap-saksi-fiyatlari-www.kayalarahsap.com-01.jpg | BD132: 638 | BF132: catalog/saksi/AS-103/AS-103-maun-ahsap-saksi-fiyatlari-ahsap-saksi-imalati-buyuk-maun-ahsap saksi-ahsap-saksi-fiyatlari-www.kayalarahsap.com-01.jpg
AY133: AS-105 | AZ133: Ahşap Saksı 105 | BA133: Adet | BB133: AS-105 | BC133: catalog/saksi/AS-105/AS-105-maun-ahsap-saksi-fiyatlari-ahsap-saksi-imalati-buyuk-maun-6gen-ahsap-saksi-ahsap-saksi-fiyatlari-www.kayalarahsap.~3.jpg | BD133: 348 | BF133: catalog/saksi/AS-105/AS-105-maun-ahsap-saksi-fiyatlari-ahsap-saksi-imalati-buyuk-maun-6gen-ahsap-saksi-ahsap-saksi-fiyatlari-www.kayalarahsap.~3.jpg
AY134: AS-106 | AZ134: Ahşap Saksı 106 | BA134: Adet | BB134: AS-106 | BC134: catalog/saksi/AS-106/AS-106-ahsap-saksi-fiyatlari-ahsap-saksi-imalati-buyuk-konik-8gen-ahsap-saksi-ahsap-saksi-fiyatlari-www.kayalarahsap.com-02.jpg | BD134: 278.4 | BF134: catalog/saksi/AS-106/AS-106-ahsap-saksi-fiyatlari-ahsap-saksi-imalati-buyuk-konik-8gen-ahsap-saksi-ahsap-saksi-fiyatlari-www.kayalarahsap.com-02.jpg
AY135: AS-107 | AZ135: Ahşap Saksı 107 | BA135: Adet | BB135: AS-107 | BC135: catalog/saksi/AS-107/AS-107-ahsap-saksi-fiyatlari-ahsap-saksi-imalati-buyuk-uzun-8gen-ahsap-saksi-ahsap-saksi-fiyatlari-www.kayalarahsap.com-01.jpg | BD135: 278.4 | BF135: catalog/saksi/AS-107/AS-107-ahsap-saksi-fiyatlari-ahsap-saksi-imalati-buyuk-uzun-8gen-ahsap-saksi-ahsap-saksi-fiyatlari-www.kayalarahsap.com-01.jpg
AY136: AS-108 | AZ136: Ahşap Saksı 108 | BA136: Adet | BB136: AS-108 | BC136: catalog/saksi/AS-108/AS-108-ahsap-saksi-fiyatlari-ahsap-saksi-imalati-buyuk-uzun-8gen-ahsap-saksi-ahsap-saksi-fiyatlari-resimleri-www.kayalara~3.jpg | BD136: 278.4 | BF136: catalog/saksi/AS-108/AS-108-ahsap-saksi-fiyatlari-ahsap-saksi-imalati-buyuk-uzun-8gen-ahsap-saksi-ahsap-saksi-fiyatlari-resimleri-www.kayalara~3.jpg
AY137: AS-109 | AZ137: Ahşap Saksı 109 | BA137: Adet | BB137: AS-109 | BC137: catalog/saksi/AS-109/AS-109-ahsap-saksi-fiyatlari-ahsap-saksi-imalati-buyuk-uzun-7gen-ahsap-saksi-yedi-gen-ahsap-saksi-cesitleri-resimleri-yed~3.jpg | BD137: 278.4 | BF137: catalog/saksi/AS-109/AS-109-ahsap-saksi-fiyatlari-ahsap-saksi-imalati-buyuk-uzun-7gen-ahsap-saksi-yedi-gen-ahsap-saksi-cesitleri-resimleri-yed~3.jpg
AY138: AS-110 | AZ138: Ahşap Saksı 110 | BA138: Adet | BB138: AS-110 | BC138: catalog/Saksi/AS-110/AS-110-ahsap-saksi-fiyatlari-ahsap-saksi-imalati-6gen-altigen-ahsap-saksi-ahsap-saksi-cesitleri-resimleri-ahsap-saksi-fiyat-www.kayalarahsap.com-052.jpg | BD138: 278.4 | BF138: catalog/Saksi/AS-110/AS-110-ahsap-saksi-fiyatlari-ahsap-saksi-imalati-6gen-altigen-ahsap-saksi-ahsap-saksi-cesitleri-resimleri-ahsap-saksi-fiyat-www.kayalarahsap.com-052.jpg
AY139: AS-112 | AZ139: Ahşap Saksı 112 | BA139: Adet | BB139: AS-112 | BC139: catalog/saksi/AS-112/AS-112-ahsap-saksi-fiyatlari-ahsap-saksi-imalati-dikdortgen-ahsap-saksi-ahsap-saksi-cesitleri-resimleri-ahsap-saksi-fiyat~1.jpg | BD139: 371.2 | BF139: catalog/saksi/AS-112/AS-112-ahsap-saksi-fiyatlari-ahsap-saksi-imalati-dikdortgen-ahsap-saksi-ahsap-saksi-cesitleri-resimleri-ahsap-saksi-fiyat~1.jpg
AY140: AS-113 | AZ140: Ahşap Saksı 113 | BA140: Adet | BB140: AS-113 | BC140: catalog/saksi/AS-113/AS-113-ahsap-saksi-fiyatlari-ahsap-saksi-imalati-uzun-dikdortgen-ahsap-saksi-ahsap-saksi-cesitleri-resimleri-ahsap-saksi-~1.jpg | BD140: 371.2 | BF140: catalog/saksi/AS-113/AS-113-ahsap-saksi-fiyatlari-ahsap-saksi-imalati-uzun-dikdortgen-ahsap-saksi-ahsap-saksi-cesitleri-resimleri-ahsap-saksi-~1.jpg
AY141: AS-114 | AZ141: Ahşap Saksı 114 | BA141: Adet | BB141: AS-114 | BC141: catalog/saksi/AS-114/AS-114-ahsap-saksi-fiyatlari-ahsap-saksi-imalati-dikdortgen-ahsap-saksi-ahsap-saksi-ciceklik-cesitleri-resimleri-ahsap-sa~2.jpg | BD141: 371.2 | BF141: catalog/saksi/AS-114/AS-114-ahsap-saksi-fiyatlari-ahsap-saksi-imalati-dikdortgen-ahsap-saksi-ahsap-saksi-ciceklik-cesitleri-resimleri-ahsap-sa~2.jpg
AY142: AS-117 | AZ142: Ahşap Saksı 117 | BA142: Adet | BB142: AS-117 | BC142: catalog/saksi/AS-117-EL-ARABA-SAKSI/AS-117-ahsap-saksi-fiyatlari-el-arabasi-saksi-tekerlekli-araba-saksi-kayalarkereste.com-05.jpg | BD142: 638 | BF142: catalog/saksi/AS-117-EL-ARABA-SAKSI/AS-117-ahsap-saksi-fiyatlari-el-arabasi-saksi-tekerlekli-araba-saksi-kayalarkereste.com-05.jpg
AY143: AS-118 | AZ143: Ahşap Saksı 118 | BA143: Adet | BB143: AS-118 | BC143: catalog/saksi/AS-118/AS-118-ahsap-saksi-fiyatlari-ahsap-saksi-imalati-uzun-dikdortgen-ahsap-saksi-ahsap-saksi-cesitleri-resimleri-ahsap-saksi-~1.jpg | BD143: 371.2 | BF143: catalog/saksi/AS-118/AS-118-ahsap-saksi-fiyatlari-ahsap-saksi-imalati-uzun-dikdortgen-ahsap-saksi-ahsap-saksi-cesitleri-resimleri-ahsap-saksi-~1.jpg
AY144: AS-119 | AZ144: Ahşap Saksı 119 | BA144: Adet | BB144: AS-119 | BC144: catalog/saksi/AS-119/AS-119-ahsap-saksi-fiyatlari-ahsap-saksi-imalati-6gen-altigen-ahsap-saksi-ahsap-saksi-cesitleri-resimleri-ahsap-saksi-fiy~1.jpg | BD144: 278.4 | BF144: catalog/saksi/AS-119/AS-119-ahsap-saksi-fiyatlari-ahsap-saksi-imalati-6gen-altigen-ahsap-saksi-ahsap-saksi-cesitleri-resimleri-ahsap-saksi-fiy~1.jpg
AY145: AS-120 | AZ145: Ahşap Saksı 120 | BA145: Adet | BB145: AS-120 | BC145: catalog/saksi/AS-120/AS-120-ahsap-saksi-fiyatlari-ahsap-saksi-imalati-yuksek-ahsap-saksi-uzun-ahsap-saksi-cesitleri-resimleri-ahsap-saksi-fiya~2.jpg | BD145: 406 | BF145: catalog/saksi/AS-120/AS-120-ahsap-saksi-fiyatlari-ahsap-saksi-imalati-yuksek-ahsap-saksi-uzun-ahsap-saksi-cesitleri-resimleri-ahsap-saksi-fiya~2.jpg
AY146: =HYPERLINK(BF146,BB146) -> AS-122 | AZ146: Ahşap Saksı 122 | BA146: Metre | BB146: AS-122 | BC146: catalog/saksi/AS-122/ahsap-panel-saksi-fiyatlari-modelleri-istanbul-kocaeli-www.kayalarkereste.com-as-122-05.jpg | BD146: 417.6 | BF146: catalog/saksi/AS-122/ahsap-panel-saksi-fiyatlari-modelleri-istanbul-kocaeli-www.kayalarkereste.com-as-122-05.jpg
AY147: AS-123 | AZ147: Ahşap Saksı 123 | BA147: Adet | BB147: AS-123 | BC147: catalog/saksi/AS-123 AT ARBASI/AS-123-at-arabasi-ahsap-saksi-01.jpg | BD147: 2552 | BF147: catalog/saksi/AS-123 AT ARBASI/AS-123-at-arabasi-ahsap-saksi-01.jpg
AY148: AV-109 | AZ148: Ahşap Bungalov Yalı baskı Ev (AV-109) | BA148: m2 | BB148: AV-109 | BC148: catalog/Ev/av-109/ahsap-bungalov-ev-av-109-00.jpg | BD148: 1566 | BF148: catalog/Ev/av-109/ahsap-bungalov-ev-av-109-00.jpg
AY149: YB-101 | AZ149: 1,8 x 12 Ahşap Cephe Kaplama Yalı Baskı YB-101 | BA149: M2 | BB149: YB-101 | BC149: catalog/ahsap-cephe-kaplama/YB-101-12-en-2.5-kalin-duz/yb-101-yali-baski-bungalow-ev-cephe-kaplama-www.kayalarahsap.com-04.JPG | BD149: 55.68 | BF149: catalog/ahsap-cephe-kaplama/YB-101-12-en-2.5-kalin-duz/yb-101-yali-baski-bungalow-ev-cephe-kaplama-www.kayalarahsap.com-04.JPG
AY150: YB-102 | AZ150: 3,5 x 12,5 Ahşap Cephe Kaplama Yalı Baskı YB-102 | BA150: M2 | BB150: YB-102 | BC150: catalog/ahsap-cephe-kaplama/YB-102-12-EN-5-kalin-duz/ahsap-yali-baski-cephe-kaplama-03.jpg | BD150: 90.48 | BF150: =CONCATENATE($AY$1, BC150) -> catalog/ahsap-cephe-kaplama/YB-102-12-EN-5-kalin-duz/ahsap-yali-baski-cephe-kaplama-03.jpg
AY151: YB-103 | AZ151: 5 x 15 Ahşap Cephe Kaplama Yalı Baskı DÜZ YB-103 | BA151: M2 | BB151: YB-103 | BC151: catalog/ahsap-cephe-kaplama/YB-103-15-en-5-kalin-duz/YaliBaski_5_duz_b.JPG | BD151: 125.28 | BF151: catalog/ahsap-cephe-kaplama/YB-103-15-en-5-kalin-duz/YaliBaski_5_duz_b.JPG
AY152: YB-104 | AZ152: 5 x 15 Ahşap Cephe Kaplama Yalı Baskı Yuvarlak Yuzey YB-104 | BA152: M2 | BB152: YB-104 | BC152: catalog/ahsap-cephe-kaplama/YB-104-15-en-5-kalin-yuvarlak/IMG_5117.JPG | BD152: 125.28 | BF152: catalog/ahsap-cephe-kaplama/YB-104-15-en-5-kalin-yuvarlak/IMG_5117.JPG
AY153: YB-105 | AZ153: 5 x 20 Ahşap Yalı Baskı Dış Cephe Kaplama Düz Yüzey YB-105 | BA153: M2 | BB153: YB-105 | BC153: catalog/ahsap-cephe-kaplama/YB-105-20-en-5-kalin-duz/YB-105-ahsap-kutuk-yali-baski-bungalow-ev-cephe-kaplama--kutuk-ev-profil-www.kayalarahsap.com-01.jpg | BD153: 125 | BF153: catalog/ahsap-cephe-kaplama/YB-105-20-en-5-kalin-duz/YB-105-ahsap-kutuk-yali-baski-bungalow-ev-cephe-kaplama--kutuk-ev-profil-www.kayalarahsap.com-01.jpg
AY154: YB-106 | AZ154: 3 x 23 Geniş Ahşap Yalı Baskı Dış Cephe Kaplama Düz Yüzey YB-106 | BA154: M2 | BB154: YB-106 | BC154: catalog/ahsap-cephe-kaplama/YB-106-23-en-3.5-kalin-duz/YB-106-ahsap-tarihi-eser-ev-dekorasyon-ahsap-yali-baski-bungalow-ev-cephe-kaplama-kutuk-ev-profil-www.kayalarahsap.com-03.jpg | BD154: 195 | BF154: catalog/ahsap-cephe-kaplama/YB-106-23-en-3.5-kalin-duz/YB-106-ahsap-tarihi-eser-ev-dekorasyon-ahsap-yali-baski-bungalow-ev-cephe-kaplama-kutuk-ev-profil-www.kayalarahsap.com-03.jpg
AY155: YB-107 | AZ155: 5 x 12,5 Yalı Baskı Dış Cephe Kaplama Düz Yüzey YB-107 | BA155: M2 | BB155: YB-107 | BC155: catalog/ahsap-cephe-kaplama/YB-102-12-EN-5-kalin-duz/ahsap-yali-baski-cephe-kaplama-03.jpg | BD155: 125.28 | BF155: catalog/ahsap-cephe-kaplama/YB-102-12-EN-5-kalin-duz/ahsap-yali-baski-cephe-kaplama-03.jpg
AY156: KM-161 | AZ156: Kamelya - Çardak 161 | BA156: M2 | BB156: KM-161 | BC156: catalog/Kamelya-cardak/KM-161/cardak-kamelya-gazebo-ahsap-oturma-dinlenme-alani-kartal-pendik-gebze-imes-kocaeli-www.kayalarahsap.com-KM-161-06.jpg | BD156: 800 | BF156: catalog/Kamelya-cardak/KM-161/cardak-kamelya-gazebo-ahsap-oturma-dinlenme-alani-kartal-pendik-gebze-imes-kocaeli-www.kayalarahsap.com-KM-161-06.jpg
AY157: LM-107 | AZ157: Rabıta 1-2. Sınıf (LM-107) | BA157: M2 | BB157: LM-107 | BC157: catalog/lambiri-ahsap/LM-107-rabita-kalin-yer-doseme-www.kayalarkereste.com-02.jpg | BD157: 87 | BF157: catalog/lambiri-ahsap/LM-107-rabita-kalin-yer-doseme-www.kayalarkereste.com-02.jpg
AY158: DM-101 | AZ158: DM-101 Doğal Lamine 12 kalın LADİN Ahşap Masa 90 x 200cm | BA158: Adet | BB158: DM-101 | BC158: catalog/kutuk-masa/dm-101/lamine-ladin-12-kalin-kutuk-masa-fiyatlari-kayalarkereste.com-kutuk-dogal-agac-mobilya-01.jpg | BD158: 1102 | BF158: catalog/kutuk-masa/dm-101/lamine-ladin-12-kalin-kutuk-masa-fiyatlari-kayalarkereste.com-kutuk-dogal-agac-mobilya-01.jpg
AY159: AS-124 | AZ159: Doğal Lamine 12 kalın LADİN Ahşap Masa | BA159: Adet | BB159: AS-124 | BC159: catalog/saksi/as-124/AS-124-at-arabasi-kucuk-ahsap-saksi-03.jpg | BD159: 754 | BF159: catalog/saksi/as-124/AS-124-at-arabasi-kucuk-ahsap-saksi-03.jpg
AY160: DM-102 | AZ160: DM-102 Doğal Lamine 12 kalın LADİN Ahşap Masa 80 x 200cm | BA160: Adet | BB160: DM-102 | BC160: catalog/kutuk-masa/dm-101/lamine-ladin-12-kalin-kutuk-masa-fiyatlari-kayalarkereste.com-kutuk-dogal-agac-mobilya-012.jpg | BD160: 928 | BF160: catalog/kutuk-masa/dm-101/lamine-ladin-12-kalin-kutuk-masa-fiyatlari-kayalarkereste.com-kutuk-dogal-agac-mobilya-012.jpg
AY161: DM-111 | AZ161: DM-111 Doğal Kütük Ağaç Masa Tablası | BA161: Adet | BB161: DM-111 | BC161: catalog/kutuk-masa/dm-111/kutuk-dogal-agac-masa-tabla-fiyatlari-www.kayalarkereste.com-04.jpg | BD161: 2424.4 | BF161: catalog/kutuk-masa/dm-111/kutuk-dogal-agac-masa-tabla-fiyatlari-www.kayalarkereste.com-04.jpg
AY162: DM-112 | AZ162: DM-112-Doğal Kütük Ağaç Masa Tablası | BA162: Adet | BB162: DM-112 | BC162: catalog/kutuk-masa/IMG_E3393.JPG | BD162: 2534.6 | BF162: catalog/kutuk-masa/IMG_E3393.JPG
AY163: AV-110 | AZ163: Ahşap Bungalov Kulube-Ev (AV-110) | BA163: Adet | BB163: AV-110 | BC163: catalog/Ev/av-110/av-110-bungalov-ahsap-ev-kutuk--kulube-ev-fiyatlari-yapimi-maliyeti-resimleri-gebze-www.kayalarahsap.com-03.jpg | BD163: 11136 | BF163: catalog/Ev/av-110/av-110-bungalov-ahsap-ev-kutuk--kulube-ev-fiyatlari-yapimi-maliyeti-resimleri-gebze-www.kayalarahsap.com-03.jpg
AY164: KT-105 | AZ164: KT-105 Ahşap Kütük - Bungalov Ev Profil | BA164: M2 | BB164: KT-105 | BC164: catalog/Profil/Kutuk-Ev/KT-105/KT-105-kutuk-ahsap-bungalov-ev-profil-5-kalin-15-genislik-03.jpg | BD164: 129.92 | BF164: catalog/Profil/Kutuk-Ev/KT-105/KT-105-kutuk-ahsap-bungalov-ev-profil-5-kalin-15-genislik-03.jpg
AY165: KT-110 | AZ165: KT-110 Ahşap Kütük - Bungalov Ev Profil | BA165: M2 | BB165: KT-110 | BC165: catalog/Profil/Kutuk-Ev/KT-110/kt-110-kutuk-ahsap-bungalov-ev-ahsap-profil-10-kalin-15-genislik-02.jpg | BD165: 179.8 | BF165: catalog/Profil/Kutuk-Ev/KT-110/kt-110-kutuk-ahsap-bungalov-ev-ahsap-profil-10-kalin-15-genislik-02.jpg
AY166: KT-118 | AZ166: KT-118 Ahşap Kütük - Bungalov Ev Profil | BA166: M2 | BB166: KT-118 | BC166: catalog/Profil/Kutuk-Ev/KT-118/kt-118-lamine-kutuk-ev-profil-ahsab-15cm-x-18cm-01.jpg | BD166: 568.4 | BF166: catalog/Profil/Kutuk-Ev/KT-118/kt-118-lamine-kutuk-ev-profil-ahsab-15cm-x-18cm-01.jpg
AY167: LM-108 | AZ167: Lambiri -1. Sınıf SİBİRYA (LM-108) | BA167: M2 | BB167: LM-108 | BC167: catalog/Profil/Lambiri-Rabita/LM-108-ahsap-lambiri-fiyatlari-sibirya-lambiri-rabita-cesitleri-resimleri-01.jpg | BD167: 48 | BF167: catalog/Profil/Lambiri-Rabita/LM-108-ahsap-lambiri-fiyatlari-sibirya-lambiri-rabita-cesitleri-resimleri-01.jpg
AY168: BT-101 | AZ168: TEAK Burma Kereste (1.4 cm, 2 cm, 4 cm, 5.3 cm, 6.5 cm kalınlık) x (53 mm geniş) x (90-170 cm arası boy) BT-101 | BA168: M3 | BB168: BT-101 | BC168: catalog/silinmis-kereste/ks-113-iroko-silinmis-profil-ahsap-kereste-78mm-x-16mm-01.jpg | BD168: 4725 | BF168: catalog/silinmis-kereste/ks-113-iroko-silinmis-profil-ahsap-kereste-78mm-x-16mm-01.jpg
AY169: BT-102 | AZ169: TEAK Burma Kereste (1.4 cm, 2 cm, 4 cm, 5.3 cm, 6.5 cm kalınlık) x (78 mm geniş) x (90-170 cm boy) BT-102 | BA169: M3 | BB169: BT-102 | BC169: catalog/silinmis-kereste/ks-113-iroko-silinmis-profil-ahsap-kereste-78mm-x-16mm-01.jpg | BD169: 5145 | BF169: catalog/silinmis-kereste/ks-113-iroko-silinmis-profil-ahsap-kereste-78mm-x-16mm-01.jpg
AY170: BT-103 | AZ170: TEAK Burma Kereste (1.4 cm, 2 cm, 4 cm, 5.3 cm, 6.5 cm kalınlık) x (53 mm geniş) x (180-290 cm boy) BT-103 | BA170: M3 | BB170: BT-103 | BC170: catalog/silinmis-kereste/ks-113-iroko-silinmis-profil-ahsap-kereste-78mm-x-16mm-01.jpg | BD170: 5250 | BF170: catalog/silinmis-kereste/ks-113-iroko-silinmis-profil-ahsap-kereste-78mm-x-16mm-01.jpg
AY171: BT-104 | AZ171: TEAK Burma Kereste (1.4 cm, 2 cm, 4 cm, 5.3 cm, 6.5 cm kalınlık) x (78 mm geniş) x (180-290 cm boy) BT-104 | BA171: M3 | BB171: BT-104 | BC171: catalog/silinmis-kereste/ks-113-iroko-silinmis-profil-ahsap-kereste-78mm-x-16mm-01.jpg | BD171: 5617 | BF171: catalog/silinmis-kereste/ks-113-iroko-silinmis-profil-ahsap-kereste-78mm-x-16mm-01.jpg
AY172: BT-105 | AZ172: TEAK Burma Kereste (1.4 cm, 2 cm, 4 cm, 5.3 cm, 6.5 cm kalınlık) x (103 mm geniş) x (180-290 cm boy) BT-105 | BA172: M3 | BB172: BT-105 | BC172: catalog/silinmis-kereste/ks-113-iroko-silinmis-profil-ahsap-kereste-78mm-x-16mm-01.jpg | BD172: 6030 | BF172: catalog/silinmis-kereste/ks-113-iroko-silinmis-profil-ahsap-kereste-78mm-x-16mm-01.jpg
AY173: BT-106 | AZ173: TEAK Burma Kereste (1.4 cm, 2 cm, 4 cm, 5.3 cm, 6.5 cm kalınlık) x (130 mm geniş) x (180-290 cm boy) BT-106 | BA173: M3 | BB173: BT-106 | BC173: catalog/silinmis-kereste/ks-113-iroko-silinmis-profil-ahsap-kereste-78mm-x-16mm-01.jpg | BD173: 6142 | BF173: catalog/silinmis-kereste/ks-113-iroko-silinmis-profil-ahsap-kereste-78mm-x-16mm-01.jpg
AY174: BT-107 | AZ174: TEAK Burma Kereste (1.4 cm, 2 cm, 4 cm, 5.3 cm, 6.5 cm kalınlık) x (155 mm geniş) x (180-290 cm boy) BT-107 | BA174: M3 | BB174: BT-107 | BC174: catalog/silinmis-kereste/ks-113-iroko-silinmis-profil-ahsap-kereste-78mm-x-16mm-01.jpg | BD174: 6300 | BF174: catalog/silinmis-kereste/ks-113-iroko-silinmis-profil-ahsap-kereste-78mm-x-16mm-01.jpg
AY175: BT-108 | AZ175: TEAK Burma Kereste (1.4 cm, 2 cm, 4 cm, 5.3 cm, 6.5 cm kalınlık) x (180-260 mm geniş) x (180-290 cm boy) BT-108 | BA175: M3 | BB175: BT-108 | BC175: catalog/silinmis-kereste/ks-113-iroko-silinmis-profil-ahsap-kereste-78mm-x-16mm-01.jpg | BD175: 6825 | BF175: catalog/silinmis-kereste/ks-113-iroko-silinmis-profil-ahsap-kereste-78mm-x-16mm-01.jpg
AY176: BT-109 | AZ176: TEAK Burma Kereste (1.4 cm, 2 cm, 4 cm, 5.3 cm, 6.5 cm kalınlık) x (280 mm uzeri geniş) x (180-290 cm boy) BT-109 | BA176: M3 | BB176: BT-109 | BC176: catalog/silinmis-kereste/ks-113-iroko-silinmis-profil-ahsap-kereste-78mm-x-16mm-01.jpg | BD176: 7350 | BF176: catalog/silinmis-kereste/ks-113-iroko-silinmis-profil-ahsap-kereste-78mm-x-16mm-01.jpg
AY177: BT-110 | AZ177: TEAK Burma Kereste (5.5 cm, 6.5 cm, 10 cm ve üzeri kalınlık) x (10 - 13 cm geniş) x (300 cm üzeri boy) BT-110 | BA177: M3 | BB177: BT-110 | BC177: catalog/silinmis-kereste/ks-113-iroko-silinmis-profil-ahsap-kereste-78mm-x-16mm-01.jpg | BD177: 6825 | BF177: catalog/silinmis-kereste/ks-113-iroko-silinmis-profil-ahsap-kereste-78mm-x-16mm-01.jpg
AY178: BT-111 | AZ178: TEAK Burma Kereste (5.5 cm, 6.5 cm, 10 cm ve üzeri kalınlık) x (15,5 - 18 cm geniş) x (300 cm üzeri boy) BT-111 | BA178: M3 | BB178: BT-111 | BC178: catalog/silinmis-kereste/ks-113-iroko-silinmis-profil-ahsap-kereste-78mm-x-16mm-01.jpg | BD178: 7080 | BF178: catalog/silinmis-kereste/ks-113-iroko-silinmis-profil-ahsap-kereste-78mm-x-16mm-01.jpg
AY179: BT-112 | AZ179: TEAK Burma Kereste (5.5 cm, 6.5 cm, 10 cm ve üzeri kalınlık) x (18 - 26 cm geniş) x (300 cm üzeri boy) BT-112 | BA179: M3 | BB179: BT-112 | BC179: catalog/silinmis-kereste/ks-113-iroko-silinmis-profil-ahsap-kereste-78mm-x-16mm-01.jpg | BD179: 7350 | BF179: catalog/silinmis-kereste/ks-113-iroko-silinmis-profil-ahsap-kereste-78mm-x-16mm-01.jpg
AY180: BT-113 | AZ180: TEAK Burma Kereste (5.5 cm, 6.5 cm, 10 cm ve üzeri kalınlık) x (28 cm üzeri geniş) x (300 cm üzeri boy) BT-113 | BA180: M3 | BB180: BT-113 | BC180: catalog/silinmis-kereste/ks-113-iroko-silinmis-profil-ahsap-kereste-78mm-x-16mm-01.jpg | BD180: 7880 | BF180: catalog/silinmis-kereste/ks-113-iroko-silinmis-profil-ahsap-kereste-78mm-x-16mm-01.jpg
AY181: BT-121 | AZ181: TEAK Burma Kereste (1 cm kalınlık x 5 cm geniş) x (90 - 170 cm arası boy) BT-121 | BA181: M2 | BB181: BT-121 | BC181: catalog/Profil/silinmis-profil-kereste/bt-121-123-teak-profil-ahsap-silinmis-kereste-50mm-x-10mm.jpg | BD181: 65 | BF181: catalog/Profil/silinmis-profil-kereste/bt-121-123-teak-profil-ahsap-silinmis-kereste-50mm-x-10mm.jpg
AY182: BT-122 | AZ182: TEAK Burma Kereste (1 cm kalınlık x 7,5 cm geniş) x (90 - 170 cm arası boy) BT-122 | BA182: M2 | BB182: BT-122 | BC182: catalog/silinmis-kereste/ks-113-iroko-silinmis-profil-ahsap-kereste-78mm-x-16mm-01.jpg | BD182: 71 | BF182: catalog/silinmis-kereste/ks-113-iroko-silinmis-profil-ahsap-kereste-78mm-x-16mm-01.jpg
AY183: BT-123 | AZ183: TEAK Burma Kereste (1 cm kalınlık x 5 cm geniş) x (180 - 240 cm arası boy) BT-123 | BA183: M2 | BB183: BT-123 | BC183: catalog/Profil/silinmis-profil-kereste/bt-121-123-teak-profil-ahsap-silinmis-kereste-50mm-x-10mm.jpg | BD183: 75 | BF183: catalog/Profil/silinmis-profil-kereste/bt-121-123-teak-profil-ahsap-silinmis-kereste-50mm-x-10mm.jpg
AY184: BT-124 | AZ184: TEAK Burma Kereste (1 cm kalınlık x 7,5 cm geniş) x (180 - 240 cm arası boy) BT-124 | BA184: M2 | BB184: BT-124 | BC184: catalog/silinmis-kereste/ks-113-iroko-silinmis-profil-ahsap-kereste-78mm-x-16mm-01.jpg | BD184: 80 | BF184: catalog/silinmis-kereste/ks-113-iroko-silinmis-profil-ahsap-kereste-78mm-x-16mm-01.jpg
AY185: BT-125 | AZ185: TEAK Burma Kereste (1 cm kalınlık x 9,5 cm geniş) x (180 - 240 cm arası boy) BT-125 | BA185: M2 | BB185: BT-125 | BC185: catalog/silinmis-kereste/ks-113-iroko-silinmis-profil-ahsap-kereste-78mm-x-16mm-01.jpg | BD185: 85 | BF185: catalog/silinmis-kereste/ks-113-iroko-silinmis-profil-ahsap-kereste-78mm-x-16mm-01.jpg
AY186: BT-126 | AZ186: TEAK Burma Kereste (1 cm kalınlık x 12,5 cm geniş) x (180 - 240 cm arası boy) BT-126 | BA186: M2 | BB186: BT-126 | BC186: catalog/silinmis-kereste/ks-113-iroko-silinmis-profil-ahsap-kereste-78mm-x-16mm-01.jpg | BD186: 90 | BF186: catalog/silinmis-kereste/ks-113-iroko-silinmis-profil-ahsap-kereste-78mm-x-16mm-01.jpg
AY187: BT-131 | AZ187: TEAK Burma DECK işlenmiş (1,8 cm kalınlık x 5 cm geniş) x (90 - 170 cm arası boy) BT-131 | BA187: M2 | BB187: BT-131 | BC187: catalog/silinmis-kereste/ks-113-iroko-silinmis-profil-ahsap-kereste-78mm-x-16mm-01.jpg | BD187: 85 | BF187: catalog/silinmis-kereste/ks-113-iroko-silinmis-profil-ahsap-kereste-78mm-x-16mm-01.jpg
AY188: XP-01 | AZ188: Epoksi Masa Tablası XP-01 | BA188: Adet | BB188: XP-01 | BC188: catalog/Epoxi-Masa/epoksi-ahsap-ceviz-mese-kestane-masa-XP-01.jpg | BD188: 4060 | BF188: catalog/Epoxi-Masa/epoksi-ahsap-ceviz-mese-kestane-masa-XP-01.jpg
AY189: BT-132 | AZ189: TEAK Burma DECK işlenmiş (1,8 cm kalınlık x 5 cm geniş) x (90 - 170 cm arası boy) BT-132 | BA189: M2 | BB189: BT-132 | BC189: catalog/silinmis-kereste/ks-113-iroko-silinmis-profil-ahsap-kereste-78mm-x-16mm-01.jpg | BD189: 79 | BF189: catalog/silinmis-kereste/ks-113-iroko-silinmis-profil-ahsap-kereste-78mm-x-16mm-01.jpg
AY190: BT-133 | AZ190: TEAK Burma DECK işlenmiş (1,8 cm kalınlık x 95 mm geniş) x (90 - 170 cm arası boy) BT-133 | BA190: M2 | BB190: BT-133 | BC190: catalog/silinmis-kereste/ks-113-iroko-silinmis-profil-ahsap-kereste-78mm-x-16mm-01.jpg | BD190: 85 | BF190: catalog/silinmis-kereste/ks-113-iroko-silinmis-profil-ahsap-kereste-78mm-x-16mm-01.jpg
AY191: BT-134 | AZ191: TEAK Burma DECK işlenmiş (1,8 cm kalınlık x 125 mm geniş) x (90 - 170 cm arası boy) BT-134 | BA191: M2 | BB191: BT-134 | BC191: catalog/silinmis-kereste/ks-113-iroko-silinmis-profil-ahsap-kereste-78mm-x-16mm-01.jpg | BD191: 90 | BF191: catalog/silinmis-kereste/ks-113-iroko-silinmis-profil-ahsap-kereste-78mm-x-16mm-01.jpg
AY192: BT-135 | AZ192: TEAK Burma DECK işlenmiş (1,8 cm kalınlık x 50 mm geniş) x (180 - 240 cm arası boy) BT-135 | BA192: M2 | BB192: BT-135 | BC192: catalog/silinmis-kereste/ks-113-iroko-silinmis-profil-ahsap-kereste-78mm-x-16mm-01.jpg | BD192: 85 | BF192: catalog/silinmis-kereste/ks-113-iroko-silinmis-profil-ahsap-kereste-78mm-x-16mm-01.jpg
AY193: BT-136 | AZ193: TEAK Burma DECK işlenmiş (1,8 cm kalınlık x 75 mm geniş) x (180 - 240 cm arası boy) BT-136 | BA193: M2 | BB193: BT-136 | BC193: catalog/silinmis-kereste/ks-113-iroko-silinmis-profil-ahsap-kereste-78mm-x-16mm-01.jpg | BD193: 89 | BF193: catalog/silinmis-kereste/ks-113-iroko-silinmis-profil-ahsap-kereste-78mm-x-16mm-01.jpg
AY194: BT-137 | AZ194: TEAK Burma DECK işlenmiş (1,8 cm kalınlık x 90 mm geniş) x (180 - 240 cm arası boy) BT-137 | BA194: M2 | BB194: BT-137 | BC194: catalog/silinmis-kereste/ks-113-iroko-silinmis-profil-ahsap-kereste-78mm-x-16mm-01.jpg | BD194: 99 | BF194: catalog/silinmis-kereste/ks-113-iroko-silinmis-profil-ahsap-kereste-78mm-x-16mm-01.jpg
AY195: BT-138 | AZ195: TEAK Burma DECK işlenmiş (1,8 cm kalınlık x 125 mm geniş) x (180 - 240 cm arası boy) BT-138 | BA195: M2 | BB195: BT-138 | BC195: catalog/silinmis-kereste/ks-113-iroko-silinmis-profil-ahsap-kereste-78mm-x-16mm-01.jpg | BD195: 115 | BF195: catalog/silinmis-kereste/ks-113-iroko-silinmis-profil-ahsap-kereste-78mm-x-16mm-01.jpg
AY196: BT-151 | AZ196: TEAK Burma DECK işlenmiş (2,4 cm kalınlık x 5 cm geniş) x (90 - 170 cm arası boy) BT-151 | BA196: M2 | BB196: BT-151 | BC196: catalog/silinmis-kereste/ks-113-iroko-silinmis-profil-ahsap-kereste-78mm-x-16mm-01.jpg | BD196: 93 | BF196: catalog/silinmis-kereste/ks-113-iroko-silinmis-profil-ahsap-kereste-78mm-x-16mm-01.jpg
AY197: BT-152 | AZ197: TEAK Burma DECK işlenmiş (2,4 cm kalınlık x 7,5 cm geniş) x (90 - 170 cm arası boy) BT-152 | BA197: M2 | BB197: BT-152 | BC197: catalog/silinmis-kereste/ks-113-iroko-silinmis-profil-ahsap-kereste-78mm-x-16mm-01.jpg | BD197: 99 | BF197: catalog/silinmis-kereste/ks-113-iroko-silinmis-profil-ahsap-kereste-78mm-x-16mm-01.jpg
AY198: BT-153 | AZ198: TEAK Burma DECK işlenmiş (2,4 cm kalınlık x 9,5 cm geniş) x (90 - 170 cm arası boy) BT-153 | BA198: M2 | BB198: BT-153 | BC198: catalog/silinmis-kereste/ks-113-iroko-silinmis-profil-ahsap-kereste-78mm-x-16mm-01.jpg | BD198: 110 | BF198: catalog/silinmis-kereste/ks-113-iroko-silinmis-profil-ahsap-kereste-78mm-x-16mm-01.jpg
AY199: BT-154 | AZ199: TEAK Burma DECK işlenmiş (2,4 cm kalınlık x 12,5 cm geniş) x (90 - 170 cm arası boy) BT-154 | BA199: M2 | BB199: BT-154 | BC199: catalog/silinmis-kereste/ks-113-iroko-silinmis-profil-ahsap-kereste-78mm-x-16mm-01.jpg | BD199: 125 | BF199: catalog/silinmis-kereste/ks-113-iroko-silinmis-profil-ahsap-kereste-78mm-x-16mm-01.jpg
AY200: BT-155 | AZ200: TEAK Burma DECK işlenmiş (2,4 cm kalınlık x 5 cm geniş) x (180 - 240 cm arası boy) BT-155 | BA200: M2 | BB200: BT-155 | BC200: catalog/silinmis-kereste/ks-113-iroko-silinmis-profil-ahsap-kereste-78mm-x-16mm-01.jpg | BD200: 120 | BF200: catalog/silinmis-kereste/ks-113-iroko-silinmis-profil-ahsap-kereste-78mm-x-16mm-01.jpg
AY201: BT-156 | AZ201: TEAK Burma DECK işlenmiş (2,4 cm kalınlık x 7,5 cm geniş) x (180 - 240 cm arası boy) BT-156 | BA201: M2 | BB201: BT-156 | BC201: catalog/silinmis-kereste/ks-113-iroko-silinmis-profil-ahsap-kereste-78mm-x-16mm-01.jpg | BD201: 130 | BF201: catalog/silinmis-kereste/ks-113-iroko-silinmis-profil-ahsap-kereste-78mm-x-16mm-01.jpg
AY202: BT-157 | AZ202: TEAK Burma DECK işlenmiş (2,4 cm kalınlık x 9,5 cm geniş) x (180 - 240 cm arası boy) BT-157 | BA202: M2 | BB202: BT-157 | BC202: catalog/silinmis-kereste/ks-113-iroko-silinmis-profil-ahsap-kereste-78mm-x-16mm-01.jpg | BD202: 150 | BF202: catalog/silinmis-kereste/ks-113-iroko-silinmis-profil-ahsap-kereste-78mm-x-16mm-01.jpg
... 56 more rows

Sheet WEB İÇİN
A1: Demka Kereste | N1: KOPYALA
A10: Konu : | C10: Kamelya Teklifi
A11: Firma : | C11: Design Office
A12: İlgili : | C12: Yavuz Demircioğlu
A13: Tarih : | C13: 2019-11-08
A14: Mail : | C14: info@demkakereste.com
A15: Opsiyon : | C15: 15 Gün
A16: Vade : | C16: Nakit
A17: Teslimat : | C17: Yerinde kurulum nakliye dahil
A18: Stok : | C18: Yarı Hazır Mamül | V18: 1 Ad. cm
R19: Kalın Ölç Fiyatı | V19: kapattığı | W19: Fiyat | X19: 1 m3 kapattığı | Y19: aktif satır
A20: KOD | C20: Cinsi | E20: En | F20: Kln | G20: Boy | H20: Miktar | I20: Fiyat | J20: K.D.V | K20: m2 | L20: Tutar | R20: EN | S20: Kln | T20: Fiyat | U20: M3 /ad. | V20: genişlik | W20: M2 | X20: Alan | Y20: Kapattığı M2 | AE20: KOD | AF20: Ürün İsmi | AG20: Açıklama | AH20: Tane mi | AI20: Net Ölçü Fiyatı | AJ20: +kdv | AK20: Boy | AL20: Kln | AM20: En | AO20: Fiyatı m3 | AQ20: kln | AR20: en | AT20: genişlik kaç cm dir ? | AU20: m2 Fiyatı | AV20: Kapattığı alan
A21: lm-103 | C21: Ahşap Kamelya halı saha | D21: a | E21: 500 | G21: 400 | H21: 1 | I21: 1100 | L21: =IFERROR(IF(D21="a",(E21*G21*H21*I21/10000),IF(K21<>"",(I21+J21)*K21/1000,"")),"") -> 22000 | N21: =IFERROR(IF(D21="a",(J21*H21)/1,IF(K21<>"",J21*K21/1000,"")),"") -> 0 | O21: =IFERROR(IF(D21="a",(I21*H21)/1,IF(K21<>"",I21*K21/1000,"")),"") -> 1100 | R21: =IF(COUNTA(E21)>=1,IF(E21<4,2.6,IF(E21<5.1,5,IF(E21<10.1,10,IF(E21<15,15)))),"") -> FALSE | S21: =IFERROR(IF(F21<=2.6,2.6,IF(F21<5.1,5,IF(F21<10.1,10,IF(F21<15,15)))),"") -> 2.6 | T21: =IFERROR(E21*F21*I21/R21/S21,"") ->  | U21: =IFERROR(IF(H21<>"",(1000/G21/F21/E21*1000),""),"") ->  | V21: =IFERROR(VLOOKUP(C21,AF:AT,15,FALSE),"") ->  | W21: =IFERROR(I21/((100/E21/F21)*V21),"") ->  | X21: =IFERROR((100/E21/F21)*V21,"") ->  | Y21: =IFERROR(V21*G21*H21/10000,"") ->  | AA21: =IFERROR(HYPERLINK((VLOOKUP(AB21,BA:BE,5,FALSE))," ████ Kod: "),"Kod :") -> Kod : | AB21: LM-116 | AE21: KR-107 | AF21: Kereste 5 x 10 Ukrayna | AG21: Ukrayna inşaatlık | AI21: 990 | AJ21: =AI21*0.18 -> 178.2 | AK21: 300 | AL21: 5 | AM21: 10 | AO21: =IFERROR(AI21*AM21*AL21/AR21/AQ21,"") -> 990 | AQ21: 5 | AR21: 10 | AU21: =IFERROR(AI21/((100/AQ21/AR21)*AT21),"") ->  | AV21: =IF(AH21<>"","",IFERROR((100/AQ21/AR21)*AT21,"")) -> 0 | AY21: name(tr) | AZ21: sku | BA21: model | BB21: image_name | BC21: price | BV21: Kalınlık | BW21: En | BX21: 3 Boy Adet | BY21: 4 Boy Adet
A22: LM-113 | C22: Sehpa - masa | D22: a | E22: 60 | F22: 60 | G22: 120 | H22: 12 | I22: 500 | L22: =IFERROR(IF(D22="a",(I22+J22)*H22,IF(K22<>"",(I22+J22)*K22/1000,"")),"") -> 6000 | N22: =IFERROR(IF(D22="a",(J22*H22)/1,IF(K22<>"",J22*K22/1000,"")),"") -> 0 | O22: =IFERROR(IF(D22="a",(I22*H22)/1,IF(K22<>"",I22*K22/1000,"")),"") -> 6000 | R22: FALSE | S22: FALSE | U22: 2.314814815 | AA22: Cins : | AB22: =CONCATENATE(IFERROR(VLOOKUP(AB21,AE:AF,2,FALSE),"")," - ",IFERROR(VLOOKUP(AB21,AE:AG,3,FALSE),"")) -> Cephe 12 cm geniş Ukrayna - Ukrayna | AE22: KR-108 | AF22: Kereste 10 x 10 Ukrayna | AG22: Ukrayna inşaatlık | AI22: 990 | AJ22: 178.2 | AK22: 300 | AL22: 10 | AM22: 10 | AO22: 990 | AQ22: 10 | AR22: 10 | AV22: 0 | AX22: =HYPERLINK(BE22,BA22) ->  | AY22: PM-103 Piknik Masa | AZ22: Adet | BA22: PM-103 | BB22: catalog/Piknik-Masa/PM-103/PM-103-piknik-masa-ucuz-fiyatlari-imalati-resimleri- www.kayalarkereste.com-01.jpg | BC22: 870 | BE22: =CONCATENATE(#REF!, BB22) ->  | BU22: inşaatlık kereste | BV22: 91 | BW22: 41 | BX22: =1000000/300/5/10 -> 66.66666667 | BY22: =1000000/400/5/10 -> 50
A23: catalog/Piknik-Masa/PM-109/pm-109-ahsap-piknik-masa-fiyatlari-09 | C23: Sehpa - masa | D23: a | E23: 60 | F23: 60 | G23: 80 | H23: 17 | I23: 420 | L23: 7140 | N23: =IFERROR(IF(D23="a",(J23*H23)/1,IF(K23<>"",J23*K23/1000,"")),"") -> 0 | O23: =IFERROR(IF(D23="a",(I23*H23)/1,IF(K23<>"",I23*K23/1000,"")),"") -> 7140 | R23: FALSE | S23: FALSE | U23: 3.472222222 | AA23: En : | AB23: =IFERROR(VLOOKUP(AB21,AE:AM,9,FALSE),"") -> 12 | AE23: KR-101 | AF23: Kereste 41 x 91 Ukrayna | AG23: Ukrayna inşaatlık | AI23: 990 | AJ23: 178.2 | AK23: 300 | AL23: 4.1 | AM23: 9.1 | AO23: 738.738 | AQ23: 5 | AR23: 10 | AV23: 0 | AY23: SA-102 Ahşap Salıncak | AZ23: Adet | BA23: SA-102 | BB23: catalog/Piknik-Masa/SA-102/SA-102-ahsap-salincak-fiyatlari-esitleri-istanbul-08.jpg | BC23: 2300 | BE23: =CONCATENATE(#REF!, BB23) ->  | BU23: inşaatlık kereste | BV23: 91 | BW23: 91 | BX23: =1000000/300/10/10 -> 33.33333333 | BY23: =1000000/400/10/10 -> 25
A24: KS-100 | C24: Eski Kamelya Pileksi Camlar 4mm | D24: =IF(IFERROR(VLOOKUP(C24,AF:AH,3,FALSE),"")<>"","a","") ->  | E24: 154 | G24: 130 | H24: 14 | I24: 520 | K24: =E24*G24*H24/10000 -> 28.028 | L24: =K24*I24 -> 14574.56 | N24: 0 | O24: =IFERROR(IF(D24="a",(I24*H24)/1,IF(K24<>"",I24*K24/1000,"")),"") -> 14.57456 | R24: FALSE | S24: 2.6 | AA24: Net Kalınlık : | AB24: =IFERROR(VLOOKUP(AB21,AE:AQ,8,FALSE),"") -> 3.5 | AE24: KR-102 | AF24: Kereste 91 x 91 Ukrayna | AG24: Ukrayna inşaatlık | AH24: b | AI24: 990 | AJ24: 178.2 | AK24: 300 | AL24: 9.1 | AM24: 9.1 | AO24: 819.819 | AQ24: 10 | AR24: 10 | AY24: PM-104 Piknik Masa | AZ24: Adet | BA24: PM-104 | BB24: catalog/Piknik-Masa/PM-104/pm-104-piknik-masa-fiyatlari-01.jpg | BC24: 928 | BE24: =CONCATENATE(#REF!, BB24) ->  | BU24: inşaatlık kereste | BV24: 43 | BW24: 93 | BX24: =1000000/300/5/10 -> 66.66666667 | BY24: =1000000/400/5/10 -> 50
A25: LM-103 | C25: =IFERROR(VLOOKUP(A25,AE:AF,2,FALSE),"") -> Lambiri Extra Ukrayna | E25: =IFERROR(VLOOKUP(A25,AE:AT,14,FALSE),"") -> 12 | F25: =IFERROR(VLOOKUP(A25,AE:AT,13,FALSE),"") -> 2.6 | G25: =IFERROR(VLOOKUP(A25,AE:AK,7,FALSE),"") -> 300 | I25: =IFERROR(VLOOKUP(A25,AE:AI,5,FALSE),"") -> 1800 | K25: =IFERROR((E25*F25*G25*H25)/1000,"") -> 0 | L25: 0 | N25: 0 | O25: 0 | R25: 15 | S25: 2.6 | T25: 1440 | V25: 11 | W25: 51.05454545 | X25: 35.25641026 | Y25: 0 | AA25: Önceki Ham Kalınlık : | AB25: =IFERROR(VLOOKUP(AB21,AE:AQ,13,FALSE),"") -> 3.5 | AE25: KR-103 | AF25: Kereste 43 x 93 Ukrayna | AG25: Ukrayna inşaatlık | AI25: 990 | AJ25: 178.2 | AK25: 300 | AL25: 4.3 | AM25: 9.3 | AO25: 791.802 | AQ25: 5 | AR25: 10 | AV25: 0 | AY25: PM-106 Piknik Masa | AZ25: Adet | BA25: PM-106 | BB25: catalog/Piknik-Masa/PM-106/pm-106-ahsap-piknik-kir-masa-03.jpg | BC25: 638 | BE25: =CONCATENATE(#REF!, BB25) ->  | BU25: inşaatlık kereste | BV25: 93 | BW25: 93 | BX25: =1000000/300/10/10 -> 33.33333333 | BY25: =1000000/400/10/10 -> 25
C26: Ahşap Kamelya Ambar Bölüm | E26: 500 | G26: 500 | H26: 1 | I26: 1100 | L26: =IFERROR(IF(D21="a",(E26*G26*H26*I26/10000),IF(K21<>"",(I21+J21)*K21/1000,"")),"") -> 27500 | R26: FALSE | S26: FALSE | AA26: Boy : | AB26: =IFERROR(VLOOKUP(AB21,AE:AK,7,FALSE),"") -> 400 | AE26: KR-102 | AF26: Kereste 93 x 93 Ukrayna | AG26: Ukrayna inşaatlık | AI26: 990 | AJ26: 178.2 | AK26: 300 | AL26: 9.3 | AM26: 9.3 | AO26: 856.251 | AQ26: 10 | AR26: 10 | AV26: 0 | AY26: PM-107 Piknik Masa | AZ26: Adet | BA26: PM-107 | BB26: catalog/Piknik-Masa/PM-107/PM-107-metal-dokum-ayakli-ahsap-maun-bahce-dis-mekan-masa-01.jpg | BC26: 672.8 | BE26: =CONCATENATE(#REF!, BB26) ->  | BU26: inşaatlık kereste | BV26: 45 | BW26: 95 | BX26: =1000000/300/5/10 -> 66.66666667 | BY26: =1000000/400/5/10 -> 50
A27: LM-101 | C27: Lambiri 1.Sn. Ukrayna | E27: 10 | F27: 2.6 | G27: 300 | K27: 0 | N27: 0 | R27: 10 | S27: 2.6 | V27: 7.8 | X27: 30 | Y27: 0 | AA27: 1 adet kapattığı genşlik: | AB27: =IFERROR(VLOOKUP(AB21,AE:AT,16,FALSE),"") -> 9.9 | AE27: KR-105 | AF27: Kereste 45 x 95 Ukrayna | AG27: Ukrayna inşaatlık | AI27: 990 | AJ27: 178.2 | AK27: 300 | AL27: 4.5 | AM27: 9.5 | AO27: 846.45 | AQ27: 5 | AR27: 10 | AV27: 0 | AY27: PM-108 Piknik Masa | AZ27: Adet | BA27: PM-108 | BB27: catalog/Piknik-Masa/PM-108/pm-108-ahsap-masa-fiyatlari-resimleri-02.jpg | BC27: 348 | BE27: =CONCATENATE(#REF!, BB27) ->  | BU27: inşaatlık kereste | BV27: 95 | BW27: 95 | BX27: =1000000/300/10/10 -> 33.33333333 | BY27: =1000000/400/10/10 -> 25
A28: lm-102 | C28: Lambiri 2.Sn. Ukrayna | E28: 10 | F28: 2.6 | G28: 300 | I28: 1450 | K28: 0 | L28: 0 | N28: 0 | O28: 0 | R28: 10 | S28: 2.6 | T28: 1450 | V28: 7.8 | W28: 48.33333333 | X28: 30 | Y28: 0 | AA28: Kapatığı Alan : | AB28: =((1000/AB25/AB23)*AB27)/10 -> 23.57142857 | AE28: KR-106 | AF28: Kereste 95 x 95 Ukrayna | AG28: Ukrayna inşaatlık | AI28: 990 | AJ28: 178.2 | AK28: 300 | AL28: 9.5 | AM28: 9.5 | AO28: 893.475 | AQ28: 10 | AR28: 10 | AV28: 0 | AY28: PM-109 Piknik Masa | AZ28: Adet | BA28: PM-109 | BB28: catalog/Piknik-Masa/PM-109/pm-109-ahsap-piknik-masa-fiyatlari-09.jpg | BC28: 928 | BE28: =CONCATENATE(#REF!, BB28) ->  | BU28: inşaatlık kereste | BV28: 50 | BW28: 100 | BX28: =1000000/300/5/10 -> 66.66666667 | BY28: =1000000/400/5/10 -> 50
A29: LM-108 | C29: Lambiri 1.Sınıf Ukrayna | E29: 10 | F29: 2.6 | G29: 300 | I29: 1650 | K29: 0 | L29: 0 | N29: 0 | O29: 0 | R29: 10 | S29: 2.6 | T29: 1650 | V29: 7.8 | W29: 55 | X29: 30 | Y29: 0 | AA29: M3 ü kaç Adet : | AB29: =1000000/AB23/AB25/AB26 -> 59.52380952 | AE29: KR-100 | AF29: Tahta -10-..-20 Ukrayna | AG29: Ukrayna inşaatlık | AI29: 990 | AJ29: 178.2 | AK29: 300 | AL29: 2.2 | AM29: 10 | AO29: 837.6923077 | AQ29: 2.6 | AR29: 10 | AV29: 0 | AY29: PM-111 Ahşap Piknik Masa | AZ29: Adet | BA29: PM-111 | BB29: catalog/Piknik-Masa/pm-111/pm-111-ahsap-piknik-masa-yaslanmali-ucuz-fiyatari-www.parkbahcemobilya.com-03.jpg | BC29: 696 | BE29: =CONCATENATE(#REF!, BB29) ->  | BU29: inşaatlık kereste | BV29: 100 | BW29: 100 | BX29: =1000000/300/10/10 -> 33.33333333 | BY29: =1000000/400/10/10 -> 25
R30: FALSE | S30: FALSE | AA30: M2' si kaç Adet : | AB30: =1/(AB26*AB27)*10000 -> 2.525252525 | AE30: LM-108 | AF30: Lambiri 1.Sınıf Ukrayna | AG30: Sibirya | AI30: 1650 | AJ30: 297 | AK30: 300 | AL30: 2.2 | AM30: 10 | AO30: 1396.153846 | AQ30: 2.6 | AR30: 10 | AT30: 7.8 | AU30: 55 | AV30: 30 | AY30: PM-110 Piknik Masa | AZ30: Adet | BA30: PM-110 | BB30: catalog/Piknik-Masa/pm-110/pm-110-piknik-masa-ucuz-fiyatlari-03.jpg | BC30: 1044 | BE30: =CONCATENATE(#REF!, BB30) -> 
R31: FALSE | S31: FALSE | AA31: Tanesi Kaç Dm3 : | AB31: =AB23*AB24*AB26/1000 -> 16.8 | AE31: LM-103 | AF31: Lambiri Extra Ukrayna | AG31: Ukrayna | AI31: 1800 | AJ31: 324 | AK31: 300 | AL31: 2.6 | AM31: 12 | AO31: 1800 | AQ31: 2.6 | AR31: 12 | AT31: 11 | AU31: 51.05454545 | AV31: 35.25641026 | AY31: PA-126 Çocuk Oyun Parkı | AZ31: Adet | BA31: PA-126 | BB31: catalog/Oyun-Park/PA-126/oyun-parki-fiyatlari-salincak-tahterevan-www.ahsapfiyatlistesi.com-PA-126-02.jpg | BC31: 4700 | BE31: =CONCATENATE(#REF!, BB31) ->  | BU31: inşaatlık keresteler 5x10 ve 10x10 Tam ölçü hesaplanır. Kamyon bazında peşin satış fiyatıdır.
R32: FALSE | S32: FALSE | AA32: 1 m3 Fiyatı : | AB32: Kapattığı Alan x m2 Fiyatı | AE32: LM-101 | AF32: Lambiri 1.Sn. Ukrayna | AG32: Ukrayna | AI32: 1550 | AJ32: 279 | AK32: 300 | AL32: 2.6 | AM32: 10 | AO32: 1550 | AQ32: 2.6 | AR32: 10 | AT32: 7.8 | AU32: 51.66666667 | AV32: 30 | AY32: PA-127 Çocuk Oyun Parkı | AZ32: Adet | BA32: PA-127 | BB32: catalog/Oyun-Park/PA-127/ahsap-cocuk-oyun-parki-fiyatlari-www.ahsapfiyatlistesi.com-PA-127-05.jpg | BC32: 7540 | BE32: =CONCATENATE(#REF!, BB32) -> 
C33: =IFERROR(VLOOKUP(A33,AE:AF,2,FALSE),"") ->  | R33: FALSE | S33: FALSE | AA33: Nakliye : | AB33: Hariç | AE33: LM-102 | AF33: Lambiri 2.Sn. Ukrayna | AG33: Ukrayna | AI33: 1450 | AJ33: 261 | AK33: 300 | AL33: 2.6 | AM33: 10 | AO33: 1450 | AQ33: 2.6 | AR33: 10 | AT33: 7.8 | AU33: 48.33333333 | AV33: 30 | AY33: PA-128 Çocuk Oyun Parkı | AZ33: Adet | BA33: PA-128 | BB33: catalog/Oyun-Park/PA-128/ahsap-cocuk-oyun-parki-fiyatlari-www-ahsapfiyatlistesi-com-PA-128-02.jpg | BC33: 4640 | BE33: =CONCATENATE(#REF!, BB33) -> 
R34: FALSE | S34: FALSE | AA34: Koruyucu : | AB34: İsteğe göre Emprenye Katkılı Su bazlı ahşap koruyucu boya uygulanabilir. fiyat sorunuz | AE34: LM-112 | AF34: OSB 11mm Ukrayna | AG34: 1 | AH34: b | AI34: 58 | AJ34: 10.44 | AK34: 244 | AL34: 1.1 | AM34: 122 | AO34: 58 | AQ34: 1.1 | AR34: 122 | AT34: 122 | AU34: 0.638 | AV34: =IF(AH34<>"","",IFERROR((100/AQ34/AR34)*AT34,"")) ->  | AY34: PA-129 Çocuk Oyun Parkı | AZ34: Adet | BA34: PA-129 | BB34: catalog/Oyun-Park/PA-129/ahsap-oyun-parki-salincak-tahterevan-fiyatlari-www.ahsapfiyatlistesi.com-PA-129-01.jpg | BC34: 4500 | BE34: =CONCATENATE(#REF!, BB34) -> 
R35: FALSE | S35: FALSE | AA35: Teslim Süresi : | AB35: Ortalama 1 ile 15 gün arası | AE35: LM-113 | AF35: OSB 9mm Ukrayna | AH35: a | AI35: 53 | AJ35: 9.54 | AK35: 244 | AL35: 0.9 | AM35: 122 | AO35: 53 | AQ35: 0.9 | AR35: 122 | AT35: 122 | AU35: 0.477 | AV35: =IF(AH35<>"","",IFERROR((100/AQ35/AR35)*AT35,"")) ->  | AY35: PA-130 Çocuk Oyun Parkı | AZ35: Adet | BA35: PA-130 | BB35: catalog/Oyun-Park/PA-130/PA-130-havuzlu-platform-cocuk-oyun-parkı-01.jpg | BC35: 7540 | BE35: =CONCATENATE(#REF!, BB35) -> 
R36: FALSE | S36: FALSE | AA36: Garanti : | AB36: 5 Yıl | AE36: LM-114 | AF36: Alın Tahtası Ukrayna | AG36: Ukrayna | AH36: a | AI36: 30 | AJ36: 5.4 | AK36: 300 | AL36: 2.2 | AM36: 20 | AO36: 25.38461538 | AQ36: 2.6 | AR36: 20 | AY36: Ahşap Çit Korkuluk AC-101 | AZ36: Metre | BA36: AC-101 | BB36: catalog/cit-korkuluk/AC-101/AC-101-çit-korkuluk-trabzan-ahşap-korkuluk-03.JPG | BC36: 139.2 | BE36: =CONCATENATE(#REF!, BB36) -> 
D37: =IF(IFERROR(VLOOKUP(C37,AF:AH,3,FALSE),"")<>"","a","") ->  | E37: =IFERROR(VLOOKUP(A37,AE:AT,14,FALSE),"") ->  | F37: =IFERROR(VLOOKUP(A37,AE:AT,13,FALSE),"") ->  | G37: =IFERROR(VLOOKUP(A37,AE:AK,7,FALSE),"") ->  | I37: =IFERROR(VLOOKUP(A37,AE:AI,5,FALSE),"") ->  | K37: =IFERROR((E37*F37*G37*H37)/1000,"") ->  | L37: =IFERROR(IF(D37="a",(I37+J37)*H37,IF(K37<>"",(I37+J37)*K37/1000,"")),"") ->  | R37: FALSE | S37: FALSE | V37: =IFERROR(VLOOKUP(A37,AF:AT,15,FALSE),"") ->  | AA37: Bakım : | AB37: İlk bakım 1 sene sonra, takip eden bakımlar yaklaşık 2 yılda bir yapılmalıdır. | AE37: LM-115 | AF37: süpürgelik Ukrayna | AG37: Ukrayna | AH37: m | AI37: 2 | AJ37: 0.36 | AK37: 300 | AL37: 2.2 | AM37: 5 | AO37: 2 | AQ37: 2.2 | AR37: 5 | AY37: Ahşap Çit Korkuluk AC-102 | AZ37: Metre | BA37: AC-102 | BB37: 2018/02/ac-102-ahsap-cit-korkuluk-fiyatlari-tuzla-pendik-gebze-04.jpg | BC37: 98.6 | BE37: =CONCATENATE(#REF!, BB37) -> 
R38: FALSE | S38: FALSE | V38: =IFERROR(VLOOKUP(A38,AF:AT,15,FALSE),"") ->  | AE38: LM-116 | AF38: Cephe 12 cm geniş Ukrayna | AG38: Ukrayna | AI38: 1700 | AJ38: 306 | AK38: 400 | AL38: 3.5 | AM38: 12 | AO38: 1700 | AQ38: 3.5 | AR38: 12 | AT38: 9.9 | AU38: 72.12121212 | AV38: 23.57142857 | AY38: Ahşap Çit Korkuluk AC-103 | AZ38: Metre | BA38: AC-103 | BB38: catalog/cit-korkuluk/AC-103/ahsap-cit-korkuluk-modelleri-fiyatlari-AC-103-01.jpg | BC38: 139.2 | BE38: =CONCATENATE(#REF!, BB38) -> 
R39: FALSE | S39: FALSE | V39: =IFERROR(VLOOKUP(A39,AF:AT,15,FALSE),"") -> 
R40: FALSE | S40: FALSE | T40: =IFERROR(E40*F40*I46/R40/S40,"") ->  | U40: =IFERROR(IF(A46<>"",(1000/G40/F40/E40*1000),""),"") ->  | V40: =IFERROR(VLOOKUP(C40,AF:AT,15,FALSE),"") ->  | W40: =IFERROR(I46/((100/E40/F40)*V40),"") ->  | Y40: =IFERROR(V40*G40*A46/10000,"") -> 
R41: FALSE | S41: FALSE | T41: =IFERROR(E41*F41*I47/R41/S41,"") ->  | U41: =IFERROR(IF(A47<>"",(1000/G41/F41/E41*1000),""),"") ->  | V41: =IFERROR(VLOOKUP(C41,AF:AT,15,FALSE),"") ->  | W41: =IFERROR(I47/((100/E41/F41)*V41),"") ->  | Y41: =IFERROR(V41*G41*A47/10000,"") -> 
R42: FALSE | S42: FALSE | T42: =IFERROR(E42*F42*I48/R42/S42,"") ->  | U42: =IFERROR(IF(A48<>"",(1000/G42/F42/E42*1000),""),"") ->  | V42: =IFERROR(VLOOKUP(C42,AF:AT,15,FALSE),"") ->  | W42: =IFERROR(I48/((100/E42/F42)*V42),"") ->  | Y42: =IFERROR(V42*G42*A48/10000,"") -> 
I43: Toplam Dm3: | S43: 2.6 | T43: =IFERROR(E43*F43*#REF!/R43/S43,"") ->  | U43: =IFERROR(IF(#REF!<>"",(1000/G43/F43/E43*1000),""),"") ->  | V43: =IFERROR(VLOOKUP(A43,AF:AT,15,FALSE),"") ->  | W43: =IFERROR(#REF!/((100/E43/F43)*V43),"") ->  | Y43: =IFERROR(V43*G43*#REF!/10000,"") ->  | AA43: 1 m2 Fiyatı : | AB43: =IFERROR((VLOOKUP(AB21,AE:AI,5,FALSE)/Kapatığı_Alan),"") -> 72.12121212 | AE43: KS-100 | AF43: KS-100 silinmiş Sibirya | AG43: 5 x 10 Sibirya | AI43: 2300 | AJ43: 414 | AK43: 400 | AL43: 5 | AM43: 10 | AO43: 2300 | AQ43: 5 | AR43: 10 | AV43: 0 | AY43: Ahşap Çit Korkuluk AC-104 | AZ43: Metre | BA43: AC-104 | BB43: catalog/cit-korkuluk/AC-104/ac-104-ahsap-cit-korkuluk-modelleri-fiyatlari-resimleri-www.kayalarkereste.com-07.jpg | BC43: 139.2 | BE43: =CONCATENATE(#REF!, BB43) -> 
A44: Yeni yapılacak kamelyalara baca, oturaklar ve | I44: Ara Toplam : | K44: =SUM(L21:L42) -> 77214.56 | S44: 2.6 | T44: =IFERROR(E44*F44*I49/R44/S44,"") ->  | U44: =IFERROR(IF(A49<>"",(1000/G44/F44/E44*1000),""),"") ->  | V44: =IFERROR(VLOOKUP(A44,AF:AT,15,FALSE),"") ->  | W44: =IFERROR(I49/((100/E44/F44)*V44),"") ->  | Y44: =IFERROR(V44*G44*A49/10000,"") ->  | AE44: KS-101 | AF44: KS-101 silinmiş Sibirya | AG44: 5 x 10 Ukrayna | AI44: 1700 | AJ44: 306 | AK44: 300 | AL44: 5 | AM44: 10 | AO44: 1700 | AQ44: 5 | AR44: 10 | AV44: 0 | AY44: Ahşap Çocuk Oyun Evi | AZ44: Adet | BA44: VH-107 | BB44: catalog/cocuk-evi/VH-107/cocuk-oyun-evi-oyun-bahce-fiyatlari-modelleri-www.ahsapfiyatlistesi.com-vh-107-05.JPG | BC44: 6500 | BE44: =CONCATENATE(#REF!, BB44) -> 
A45: 4mm pileksi camlar dahildir eski kamelya pileksi camlar ayrıca | I45: İskonto : | AE45: KS-103 | AF45: KS-103 silinmiş Sibirya | AG45: 5 x 15 Sibirya | AI45: 2300 | AJ45: 414 | AK45: 400 | AL45: 5 | AM45: 10 | AO45: 2300 | AQ45: 5 | AR45: 10 | AV45: 0 | AY45: Ahşap Çocuk Oyun Evi | AZ45: Adet | BA45: VH-108 | BB45: catalog/cocuk-evi/VH-108/oyun-evi-www.ahsapfiyatlistesi.com-VH-108-01.JPG | BC45: 6500 | BE45: =CONCATENATE(#REF!, BB45) -> 
A46: fiyatlandırılmıştır. | I46: Toplam KDV : | K46: =K44*0.18 -> 13898.6208 | AE46: KS-106 | AF46: KS-106 silinmiş Sibirya | AG46: 5 x 12,5 Sibirya | AI46: 2300 | AJ46: 414 | AK46: 400 | AL46: 5 | AM46: 12.5 | AO46: 2300 | AQ46: 5 | AR46: 12.5 | AV46: 0 | AY46: Köpek Kulubesi KK-101 | AZ46: Adet | BA46: KK-101 | BB46: catalog/kopek-kulube/KK-101/kk-101-kopek-kulube-evi-fiyatlari-www.kayalarahsap.com-01.jpg | BC46: 672.8 | BE46: =CONCATENATE(#REF!, BB46) -> 
I47: Genel Toplam : | K47: =K46+K44 -> 91113.1808 | AE47: KS-107 | AF47: KS-107 silinmiş Sibirya | AG47: 6,5 x 12,5 Ladin | AI47: 2300 | AJ47: 414 | AK47: 600 | AL47: 6.5 | AM47: 12.5 | AO47: 2300 | AQ47: 6.5 | AR47: 12.5 | AV47: 0 | AY47: Köpek Kulubesi KK-102 | AZ47: Adet | BA47: KK-102 | BB47: catalog/kopek evi/KK-102/kk-102-kopek-kulube-evi-fiyatlari-resimleri-www.kayalarahsap.com-03.jpg | BC47: 522 | BE47: =CONCATENATE(#REF!, BB47) -> 
AE48: LM-122 | AF48: Alın Tahtası | AG48: Ukrayna Sınıf Çam | AH48: t | AI48: 30 | AJ48: 5.4 | AK48: 300 | AL48: 2.2 | AM48: 20 | AO48: 30 | AQ48: 2.2 | AR48: 20 | AT48: 300 | AU48: 0.044 | AY48: Köpek Kulubesi KK-103 | AZ48: Adet | BA48: KK-103 | BB48: catalog/kopek-kulube/KK-103/kk-103-kopek-kulube-evi-fiyatlari-hayvan-barinak-fiyatlari-www.kayalarahsap.com-01.jpg | BC48: 522 | BE48: =CONCATENATE(#REF!, BB48) -> 
AE49: LM-123 | AJ49: 0 | AY49: Köpek Kulubesi KK-104 | AZ49: Adet | BA49: KK-104 | BB49: catalog/kopek-kulube/KK-104/kk-104-kopek-kulube-evi-hayvan-barinak-fiyatlari-www.kayalarahsap.com-01.JPG | BC49: 522 | BE49: =CONCATENATE(#REF!, BB49) -> 
AJ50: 0 | AY50: Köpek Kulubesi KK-105 | AZ50: Adet | BA50: KK-105 | BB50: catalog/kopek-kulube/KK-105/kk-105-ahsap-kopek-kulube-fıyatları-kocaeli-gebze-www.kayalarkereste.com-02.JPG | BC50: 754 | BE50: =CONCATENATE(#REF!, BB50) -> 
AJ51: 0 | AY51: Ahşap Pergola | AZ51: M2 | BA51: PR-101 | BB51: catalog/pergola/PR-101/PR-101-ahsap-kamelya-pergola-fiyatlari-www.kayalarahsap.com-02.jpg | BC51: 406 | BE51: =CONCATENATE(#REF!, BB51) -> 
U52: 4.1 | V52: x | W52: 9.1 | X52: ölçü ve | Y52: 930 | Z52: TL den alınan kereste | AE52: YB-101 | AF52: Ahşap Yalı Baskı | AG52: Ukrayna | AI52: 1700 | AJ52: 306 | AK52: 300 | AL52: 1.8 | AM52: 12 | AO52: 1176.923077 | AQ52: 2.6 | AR52: 12 | AT52: 9.9 | AU52: 53.57575758 | AV52: 31.73076923 | AY52: Ahşap Pergola | AZ52: M2 | BA52: PR-105 | BB52: catalog/pergola/PR-105/PR-105-ahsap-kamelya-gazebo-pergola-fiyatlari-www.kayalarahsap.com-02.jpg | BC52: 406 | BE52: =CONCATENATE(#REF!, BB52) -> 
AE53: YB-102 | AF53: Ahşap Yalı Baskı Sibirya | AG53: Sibirya | AI53: 2300 | AJ53: 414 | AK53: 400 | AL53: 3.5 | AM53: 12.5 | AO53: 2300 | AQ53: 3.5 | AR53: 12.5 | AT53: 11 | AU53: 91.47727273 | AV53: 25.14285714 | AY53: Ahşap Pergola | AZ53: M2 | BA53: PR-106 | BB53: catalog/pergola/PR-106/PR-106-pergola-gazebo-konsol-pergola-veranda-ahsap-pergole-fiyatlari-01.jpg | BC53: 406 | BE53: =CONCATENATE(#REF!, BB53) -> 
U54: =IF(COUNTA(U52)>=1,IF(U52<4,2.6,IF(U52<5.1,5,IF(U52<10.1,10,IF(U52<15,15)))),"") -> 5 | V54: x | W54: =IF(COUNTA(W52)>=1,IF(U54=2.6,10,IF(W52<5,5,IF(W52<10.1,10,IF(U52<15,15)))),"") -> 10 | X54: olarak | Y54: =U52*W52*Y52/U54/W54 -> 693.966 | Z54: TL ye mal olmuş Olur | AE54: YB-103 | AF54: Ahşap Yalı Baskı Sibirya | AG54: Sibirya | AI54: 2300 | AJ54: 414 | AK54: 400 | AL54: 4.5 | AM54: 15 | AO54: 2070 | AQ54: 5 | AR54: 15 | AT54: 13.8 | AU54: 125 | AV54: 18.4 | AY54: Ahşap Pergola & Jeneratör Kabin | AZ54: Adet | BA54: PR-107 | BB54: catalog/pergola/PR-107 JENERATÖR KABİNİ/PR-107-pergola-gazebo-konsol-pergola-veranda-ahsap-jenerator-kabini-01.jpg | BC54: 2552 | BE54: =CONCATENATE(#REF!, BB54) -> 
AE55: YB-104 | AF55: Ahşap Yalı Baskı yuvarlak Sibirya | AG55: Sibirya | AI55: 2300 | AJ55: 414 | AK55: 400 | AL55: 4.5 | AM55: 15 | AO55: 2070 | AQ55: 5 | AR55: 15 | AT55: 13.8 | AU55: 125 | AV55: 18.4 | AY55: Ahşap Bungalov Ev (AV-102) | AZ55: M2 | BA55: AV-102 | BB55: catalog/Ev/AV-102/av-102-kutuk-ev-bungalov-ahsap-ev-fiyatlari-ahsap-ev-yapimi-maliyeti-resimleri-www.kayalarkereste.com-01.jpg | BC55: 1740 | BE55: =CONCATENATE(#REF!, BB55) -> 
AE56: YB-105 | AF56: Ahşap Yalı Baskı Sibirya | AG56: Sibirya | AI56: 2300 | AJ56: 414 | AK56: 400 | AL56: 4.5 | AM56: 20 | AO56: 2070 | AQ56: 5 | AR56: 20 | AT56: 18.8 | AU56: 122.3404255 | AV56: 18.8 | AY56: Ahşap Bungalov Ev - (AV-105) | AZ56: Adet | BA56: AV-105 | BB56: catalog/Ev/av-105/av-105-ahsap-ev-bungalov-fiyatlari-ahsap-evi-maliyeti-resimleri-gebze-sile-istanbul-www.kayalarkereste.com-06.jpg | BC56: 12760 | BE56: =CONCATENATE(#REF!, BB56) -> 
AE57: YB-106 | AF57: Ahşap Yalı Baskı Fin-İsves | AG57: Fin - İsveç çamı | AI57: 3800 | AJ57: 684 | AK57: 400 | AL57: 2.4 | AM57: 23 | AO57: 3040 | AQ57: 3 | AR57: 23 | AT57: 21 | AU57: 124.8571429 | AV57: 30.43478261 | AY57: Ahşap Bungalov Ev (AV-106) | AZ57: M2 | BA57: AV-106 | BB57: catalog/Ev/av-106/av-106-ahsap-ev-bungalov-fiyatlari-ahsap-ev-yapimi-maliyeti-resimleri-gebze-www.kayalarkereste.com-01.jpg | BC57: 1566 | BE57: =CONCATENATE(#REF!, BB57) -> 
AY58: Ahşap Bungalov Ev (AV-107) | AZ58: M2 | BA58: AV-107 | BB58: catalog/Ev/AV-107 KANTAR/KM-140-kamelya-ahsap-dinlenme-sigara-icme-alani-fiyatlari-gebze-kocaeli-tuzla-pendik-istanbul-ahsap-ev-www.kayalarkerest~15.jpg | BC58: 1102 | BE58: =CONCATENATE(#REF!, BB58) -> 
AE59: KT-105 | AF59: Kütük Ev Duvar Profil Sibirya | AG59: Sibirya | AI59: 2300 | AJ59: 414 | AK59: 400 | AL59: 4.5 | AM59: 15 | AO59: 2070 | AQ59: 5 | AR59: 15 | AT59: 13.8 | AU59: 125 | AV59: 18.4 | AY59: Ahşap Bungalov Ev (AV-108) | AZ59: M2 | BA59: AV-108 | BB59: catalog/Ev/av-108/av-108-bungalov-ahsap-ev-kutuk-ev-fiyatlari-yapimi-maliyeti-resimleri-gebze-www.kayalarahsap.com-01.jpg | BC59: 1566 | BE59: =CONCATENATE(#REF!, BB59) -> 
AE60: KT-110 | AF60: Kütük Ev Duvar Profil Ukrayna | AG60: Ukrayna | AI60: 2000 | AJ60: 360 | AK60: 600 | AL60: 9 | AM60: 15 | AO60: 1800 | AQ60: 10 | AR60: 15 | AT60: 13.5 | AU60: 222.2222222 | AV60: 9 | AY60: BANK Döküm ve Metal Ayaklı B-101 | AZ60: Adet | BA60: B-101 | BB60: catalog/Bank/B-101/b-101-Bank-13-citali-ergonomik-ucuz-bank-gebze-www.parkbahcemobilya.com-www.ahsapfiyatlistesi.com-08.jpg | BC60: 485 | BE60: =CONCATENATE(#REF!, BB60) -> 
AE61: KT-118 | AF61: Kütük Ev Duvar Profil Sibirya Lamine | AG61: Sibirya Lamine | AI61: 3200 | AJ61: 576 | AK61: 600 | AL61: 13.5 | AM61: 15 | AO61: 2880 | AQ61: 15 | AR61: 15 | AT61: 13.5 | AU61: 533.3333333 | AV61: 6 | AY61: BANK Döküm ve Metal Ayaklı + Kolluk (B-102) | AZ61: Adet | BA61: B-102 | BB61: catalog/Bank/B-102/b-102-dokum-ayakli-kollu-bank-fiyatlari-gebze-istanbul-kocaeli-izmit-www.kayalarkereste.com-01.jpg | BC61: 0 | BE61: =CONCATENATE(#REF!, BB61) -> 
AY62: BANK Döküm ve Metal Ayaklı - Klasik | AZ62: Adet | BA62: B-103 | BB62: catalog/Bank/B-103/b-103-ahsap-dokum-ayakli-oturma-bank-fiyatlari-www.parkbahcemobilya.com-01.jpg | BC62: 340 | BE62: =CONCATENATE(#REF!, BB62) -> 
AY63: BANK - Ahşap Ayaklı KB-201 | AZ63: Adet | BA63: KB-201 | BB63: catalog/Bank/KB-201/kb-201-ahsap-bank-masa-modelleri-fiyatlari-resimleri-www.parkbahcemobilya.com-03.jpg | BC63: 139.2 | BE63: =CONCATENATE(#REF!, BB63) -> 
AY64: BANK Döküm ve Metal Ayaklı - Kollu | AZ64: Adet | BA64: K-204 | BB64: catalog/Bank/K-204/kd-204-dokum-ayakli-kollu-ahsap-bank-modelleri-fiyatlari-resimleri-gebze-www.parkbahcemobilya.com-01.jpg | BC64: 565 | BE64: =CONCATENATE(#REF!, BB64) -> 
AY65: BANK Döküm ve Metal Ayaklı - Klasik Kollu | AZ65: Adet | BA65: K-219 | BB65: catalog/Bank/K-219/k-219-dokum-ayakli-kollu-ahsap-bank-modelleri-fiyatlari-resimleri-www.parkbahcemobilya.com-02.jpg | BC65: 560 | BE65: =CONCATENATE(#REF!, BB65) -> 
AY66: BANK Döküm ve Metal Ayaklı - Kollu | AZ66: Adet | BA66: KD-203 | BB66: catalog/Bank/KD-203/kd-203-ahsap-dokum-ayakli-kollu-bank-fiyatlari-resimleri-www.parkbahcemobilya.com-08.jpg | BC66: 720 | BE66: =CONCATENATE(#REF!, BB66) -> 
AY67: BANK Yuvarlak Oturum Maun veya İroko | AZ67: Adet | BA67: UB-97 | BB67: catalog/Bank/UB-97/ub-97-ahsap-maun-dis-mekan-yuvarlak-metal-ayakli-bank-oturma-gruplari-fiyatlari-resimleri-www.parkbahcemobilya.com-01.JPG | BC67: 4234 | BE67: =CONCATENATE(#REF!, BB67) -> 
AY68: BANK Döküm ve Metal Ayaklı B-104 | AZ68: Adet | BA68: B-104 | BB68: catalog/Bank/B-104/b-104-metal-ayali-yaslanmasiz-soyunma-odasi-bank-fiyatlari-gebze-istanbul-www.parkbahcemobilya.com-02.jpg | BC68: 266.8 | BE68: =CONCATENATE(#REF!, BB68) -> 
AY69: BANK Döküm ve Metal Ayaklı - Soyunma odaları için | AZ69: Adet | BA69: B-105 | BB69: catalog/Bank/B-105/b-105-soyunma-odasi-bank-fiyatlari-www.parkbahcemobilya.com-01.jpg | BC69: 285 | BE69: =CONCATENATE(#REF!, BB69) -> 
AY70: DECK Ahşap ÇAM 18 mm DC-101 | AZ70: M2 | BA70: DC-101 | BB70: catalog/deck/cam-dc-101/dc-101-cam-deck-ahsap-profil-yer-doseme-01.jpg | BC70: 57 | BE70: =CONCATENATE(#REF!, BB70) -> 
AY71: İnşaatlık Kereste (41 x 91) - (91 x 91) [KR-101] | AZ71: M3 | BA71: KR-101 | BB71: catalog/Kereste/Kereste_paket.JPG | BC71: 990 | BE71: =CONCATENATE(#REF!, BB71) -> 
AY72: İROKO Lambiri - Rabıta 130mm (LM-111) | AZ72: M2 | BA72: LM-111 | BB72: catalog/lambiri-ahsap/lm-111-iroko-lambiri-130mm-18mm-120mmkapatir-01.jpg | BC72: 30 | BE72: =CONCATENATE(#REF!, BB72) -> 
AY73: Lambiri - Rabıta 1. Sınıf (LM-101) | AZ73: M2 | BA73: LM-101 | BB73: catalog/lambiri-ahsap/LM-101-Lambiri 1-Sinif-01.jpg | BC73: 52 | BE73: =CONCATENATE(#REF!, BB73) -> 
AY74: Lambiri - Rabıta 2. Standart Sınıf Lambiri Rabıta (LM-102) | AZ74: M2 | BA74: LM-102 | BB74: catalog/lambiri-ahsap/LM-102-Lambiri 2-Sinif-01.jpg | BC74: 45 | BE74: =CONCATENATE(#REF!, BB74) -> 
AY75: Ahşap Süpürgelik | AZ75: Metre | BA75: LM-104 | BB75: catalog/lambiri-ahsap/supurgelik-5lik-a.jpg | BC75: 2.03 | BE75: =CONCATENATE(#REF!, BB75) -> 
AY76: Lambiri - Rabıta Extra Sınıf (LM-103) | AZ76: M2 | BA76: LM-103 | BB76: catalog/lambiri-ahsap/LM-100-Lambiri-Extra-03.jpg | BC76: 60 | BE76: =CONCATENATE(#REF!, BB76) -> 
AY77: İROKO Lambiri - Rabıta 95 mm geniş (lm-112) | AZ77: M2 | BA77: LM-112 | BB77: catalog/lambiri-ahsap/lm-112-iroko-lambiri-95mm-18mm-86mmkapatır-01.jpg | BC77: 30 | BE77: =CONCATENATE(#REF!, BB77) -> 
AY78: İROKO Lambiri - Rabıta 95 mm geniş (LM-113) | AZ78: M2 | BA78: LM-113 | BB78: catalog/lambiri-ahsap/lm-113-iroko-rabita-yer-doseme-10cm-x-45cm-12mm-95mmkapatir-01.jpg | BC78: 30 | BE78: =CONCATENATE(#REF!, BB78) -> 
AY79: 5 x 10 Silinmiş Kereste Ukrayna -KS-101 | AZ79: M3 | BA79: KS-101 | BB79: catalog/silinmis-kereste/ks-101-cam-dogramalik-silinmis-sinif-kereste-5x10-01.jpg | BC79: 1700 | BE79: =CONCATENATE(#REF!, BB79) -> 
AY80: 10 x 10 Silinmiş Kereste UKRAYNA KS-102 | AZ80: M3 | BA80: KS-102 | BB80: catalog/silinmis-kereste/ks-102-cam-dogramalik-silinmis-sinif-kereste-10x10-01.jpg | BC80: 1700 | BE80: =CONCATENATE(#REF!, BB80) -> 
AY81: 5 x 15 Silinmiş Kereste Sibirya -KS-103 | AZ81: M3 | BA81: KS-103 | BB81: catalog/silinmis-kereste/ks-103-cam-dogramalik-silinmis-sinif-kereste-5x15-01.jpg | BC81: 2300 | BE81: =CONCATENATE(#REF!, BB81) -> 
AY82: 3,5x15 Silinmiş Kereste Sibirya KS-104 | AZ82: M3 | BA82: KS-104 | BB82: catalog/silinmis-kereste/ks-104-cam-ladin-dogramalik-silinmis-sinif-kereste-35x125-01.jpg | BC82: 2300 | BE82: =CONCATENATE(#REF!, BB82) -> 
H83: =IFERROR(VLOOKUP(E83,AF:AG,2,FALSE),"") ->  | AY83: 3,5 x 12,5 Silinmiş Kereste SİBİRYA KS-105 | AZ83: M3 | BA83: KS-105 | BB83: catalog/silinmis-kereste/ks-103-cam-dogramalik-silinmis-sinif-kereste-5x15-01.jpg | BC83: 2300 | BE83: =CONCATENATE(#REF!, BB83) -> 
AY84: Kamelya - Çardak -101 | AZ84: Adet | BA84: KM-101 | BB84: catalog/Kamelya-cardak/KM-101/KM-101-ucuz-ahsap-cardak-kamelya-kameriye-ahsap-ev-gazebo-pergola-kutuk-ev-pergole-fiyatlari-gebze-www.kayalarahsap.com-01.jpg | BC84: 20880 | BE84: =CONCATENATE(#REF!, BB84) -> 
AY85: Kamelya & Çardak -102 | AZ85: Adet | BA85: KM-102 | BB85: catalog/Kamelya-cardak/KM-102/KM-102-ucuz-ahsap-cardak-kamelya-kameriye-gazebo-pergola-pergole-fiyatlari-gebze-www.kayalarahsap.com-08.jpg | BC85: 6670 | BE85: =CONCATENATE(#REF!, BB85) -> 
AX86: =HYPERLINK(BE86,BA86) ->  | AY86: Kamelya - Çardak -103 | AZ86: Adet | BA86: KM-103 | BB86: catalog/Kamelya-cardak/KM-103/KM-103-ucuz-ahsap-cardak-kamelya-kameriye-gazebo-pergola-pergole-fiyatlari-www.kayalarahsap.com-02.jpg | BC86: 5800 | BE86: =CONCATENATE(#REF!, BB86) -> 
AY87: Kamelya - Çardak -107 | AZ87: Adet | BA87: KM-107 | BB87: catalog/Kamelya-cardak/KM-106/kamelya-cardak-www.parkbahcemobilya.com-km-107-16.jpg | BC87: 2320 | BE87: =CONCATENATE(#REF!, BB87) -> 
AY88: Kamelya - Çardak KM-105 | AZ88: Adet | BA88: KM-105 | BB88: catalog/Kamelya-cardak/KM-105/KM-105-cardak-kamelya-seyyar-gazebo-ucuz-ahsap-kamelya-cardak-www.kayalarahsap.com-04.jpg | BC88: 3770 | BE88: =CONCATENATE(#REF!, BB88) -> 
AU89: =IFERROR(AI89/((100/AQ89/AR89)*AT89),"") ->  | AY89: Kamelya - Çardak KM-104 | AZ89: Adet | BA89: KM-104 | BB89: catalog/Kamelya-cardak/KM-104/KM-104-ahsap-ucuz-cardak-kamelya-kameriye-gazebo-fiyatlari-www.kayalarahsap.com-01.jpg | BC89: 7540 | BE89: =CONCATENATE(#REF!, BB89) -> 
AU90: =IFERROR(AI90/((100/AQ90/AR90)*AT90),"") ->  | AY90: Ahşap Çocuk Oyun Evi VH-109 | AZ90: Adet | BA90: VH-109 | BB90: catalog/cocuk-evi/VH-109/VH-109-cocuk-ahsap-oyun-evi-gebze-tuzla-pendik-istanbul-fiyatlari-07.JPG | BC90: 6728 | BE90: =CONCATENATE(#REF!, BB90) -> 
AU91: =IFERROR(AI91/((100/AQ91/AR91)*AT91),"") ->  | AY91: Kamelya - Çardak KM-108 | AZ91: Adet | BA91: KM-108 | BB91: catalog/Kamelya-cardak/KM-108/KM-108-kamelya-cardak-ucuz-kameriye-fiyatlari-www.parkbahcemobilya.com-www.ahsapfiyatlistesi.com-km-108-02.jpg | BC91: 7540 | BE91: =CONCATENATE(#REF!, BB91) -> 
AU92: =IFERROR(AI92/((100/AQ92/AR92)*AT92),"") ->  | AY92: Kamelya - Çardak KM-124 | AZ92: Adet | BA92: KM-124 | BB92: catalog/Kamelya-cardak/KM-124_Demir_200cm/km-124-demir-kamelya-ahsap-08.jpg | BC92: 3944 | BE92: =CONCATENATE(#REF!, BB92) -> 
AY93: Kamelya - Çardak KM-125 | AZ93: Adet | BA93: KM-125 | BB93: catalog/Kamelya-cardak/KM-125 6GEN 5-15 DIREKLI/KM-125-kamelya-kare-dikdortgen-ahsap-dinlenme-cardak-gazebo-ucuz-kameriye-pergola-fiyatlari-www.kayalarkereste.com-32.jpg | BC93: 6670 | BE93: =CONCATENATE(#REF!, BB93) -> 
AY94: Kamelya - Çardak KM-126 | AZ94: M2 | BA94: KM-126 | BB94: catalog/Kamelya-cardak/KM-126 DIKDORTGEN cATALcA/KM-126-kamelya-kare-dikdortgen-ahsap-dinlenme-cardak-gazebo-ucuz-kameriye-fiyatlari-www.kayalarkereste.com-02.jpg | BC94: 638 | BE94: =CONCATENATE(#REF!, BB94) -> 
AY95: Kamelya - Çardak KM-127 | AZ95: Adet | BA95: KM-127 | BB95: catalog/Kamelya-cardak/KM-127 KARE KAMELYA/KM-127-kamelya-ahsap-dinlenme-cardak-gazebo-kameriye-fiyatlari-resimleri-www.kayalarkereste.com-06.jpg | BC95: 6670 | BE95: =CONCATENATE(#REF!, BB95) -> 
AY96: Kamelya - Çardak KM-128 | AZ96: Adet | BA96: KM-128 | BB96: catalog/Kamelya-cardak/KM-128 SEKIZGEN KAMELYA 5-15 DiREKLi/KM-128-kamelya-sekizgen-www.kayalarkereste.com-07.jpg | BC96: 9860 | BE96: =CONCATENATE(#REF!, BB96) -> 
AY97: Kamelya - Çardak KM-129 | AZ97: M2 | BA97: KM-129 | BB97: catalog/Kamelya-cardak/KM-129 ARIMPEKS -BEMAS/KM-129-kamelya-cardak-pergola-fiyatlari-dinlenme-alani-ahsap-sigara-icme-alani-www.kayalarkereste.com-17.jpg | BC97: 812 | BE97: =CONCATENATE(#REF!, BB97) -> 
AY98: Kamelya - Çardak KM-130 | AZ98: Adet | BA98: KM-130 | BB98: catalog/Kamelya-cardak/KM-130 SEKIZGEN SAPKALI cAPRAZ KORKULUK/KM-130-kamelya-cardak-fiyatlari-gazebo-pargola-www.kayalarahsap-www.parkbahcemobilya.com-01.jpg | BC98: 10208 | BE98: =CONCATENATE(#REF!, BB98) -> 
AY99: Kamelya - Çardak KM-131 | AZ99: M2 | BA99: KM-131 | BB99: catalog/Kamelya-cardak/KM-131-TOYOTETSU-MERKEZ/KM-131-ahsap-sigara icme-dinlenme-kamelya-cardak-alani-www.kayalarkereste.com-01.jpg | BC99: 812 | BE99: =CONCATENATE(#REF!, BB99) -> 
AY100: Kamelya - Çardak 132 | AZ100: Adet | BA100: KM-132 | BB100: catalog/Kamelya-cardak/KM-132/KM-132-kamelya-ahsap-dinlenme-sigara-icme-cardak-www.kayalarkereste.com-08.jpg | BC100: 6670 | BE100: =CONCATENATE(#REF!, BB100) -> 
AY101: Kamelya - Çardak 134 | AZ101: Adet | BA101: KM-134 | BB101: catalog/Kamelya-cardak/KM-134 CARDAK/KM-134-kamelya-ahsap-dinlenme-sigara-icme-cardak-gazebo-kameriye-fiyatlari-gebze-www.kayalarkereste.com-15.jpg | BC101: 3016 | BE101: =CONCATENATE(#REF!, BB101) -> 
AY102: Kamelya - Çardak 135 | AZ102: Adet | BA102: KM-135 | BB102: catalog/Kamelya-cardak/KM-135-KAMELYA-CARDAK/KM-135-kamelya-ahsap-cardak-gazebo-kameriye-fiyatlari-istanbul-www.kayalarkereste.com-01.jpg | BC102: 6670 | BE102: =CONCATENATE(#REF!, BB102) -> 
AY103: Kamelya - Çardak Bahçe Dinlenme Alanı 136 | AZ103: M2 | BA103: KM-136 | BB103: catalog/Kamelya-cardak/KM-136 BAHCE KAMELYA/KM-136-bahce-kamelya-ahsap-cardak-gazebo-kameriye-fiyatlari-istanbul-www.kayalarkereste.com-01.jpg | BC103: 1102 | BE103: =CONCATENATE(#REF!, BB103) -> 
AY104: Kamelya - Çardak platform 137 | AZ104: Adet | BA104: KM-137 | BB104: catalog/Kamelya-cardak/KM-137 PLATFORM/km-137-platform-kamelya-cardak-fiyatlari-www.kayalarahsap.com-01.jpg | BC104: 7656 | BE104: =CONCATENATE(#REF!, BB104) -> 
AY105: Kamelya - Çardak Kapalı dinlenme Alanı 138 | AZ105: M2 | BA105: KM-138 | BB105: catalog/Kamelya-cardak/KM-138 TOYOTETSU PC/KM-138-kamelya-ahsap-cardak-dinlenme-sigara-icme-alani-kameriye-fiyatlaril-gebze-www.kayalarkereste.com-01.jpg | BC105: 1102 | BE105: =CONCATENATE(#REF!, BB105) -> 
AY106: Kamelya - Çardak platform 139 | AZ106: M2 | BA106: KM-139 | BB106: catalog/Kamelya-cardak/KM-139 TOYOTETSU PRES/KM-139-kamelya-ahsap-cardak-dinlenme-sigara-icme-alani-fiyatlari-gebze-kocaeli-istanbul-www.kayalarkereste.com-01.jpg | BC106: 1102 | BE106: =CONCATENATE(#REF!, BB106) -> 
AY107: Kamelya - Çardak platform 141 | AZ107: M2 | BA107: KM-141 | BB107: catalog/Kamelya-cardak/KM-141 DENSO HUUN/KM-141-kamelya-ahsap-cardak-dinlenme-sigara-icme-alani-fiyatlari-gebze-kocaeli-izmit-istanbul-www.kayalarkereste.com-11.jpg | BC107: 1102 | BE107: =CONCATENATE(#REF!, BB107) -> 
AY108: Kamelya - Çardak platform 142 | AZ108: M2 | BA108: KM-142 | BB108: catalog/Kamelya-cardak/KM-142/KM-142-kamelya-ahsap-cardak-dinlenme-sigara-icme-alani-fiyatlari-gebze-kocaeli-izmit-istanbul-www.kayalarkereste.com-08.jpg | BC108: 1102 | BE108: =CONCATENATE(#REF!, BB108) -> 
AY109: Kamelya - Çardak platform 143 | AZ109: M2 | BA109: KM-143 | BB109: catalog/Kamelya-cardak/KM-143/km-143-ahsap-dinlenme-sigara-icme-alani-kamelya-fiyatlari-gebze-kocaeli-tuzla-pendik-istanbul-ahsap-ev-www.kayalarkereste~9.jpg | BC109: 1102 | BE109: =CONCATENATE(#REF!, BB109) -> 
AY110: Kamelya - Çardak platform 144 | AZ110: Adet | BA110: KM-144 | BB110: catalog/Kamelya-cardak/KM-144/KM-144-kamelya-cardak-kameriye-gazebo-pargola-fiyatlari-www.kayalarahsap-www.kayalarkereste.com-6.jpg | BC110: 6670 | BE110: =CONCATENATE(#REF!, BB110) -> 
AY111: Kamelya - Çardak 145 | AZ111: M2 | BA111: KM-145 | BB111: catalog/Kamelya-cardak/KM-145 KIA/KM-145-kamelya-kis-bahce-cardak-pargola-fiyatlari-www.kayalarkereste.com-01.jpg | BC111: 812 | BE111: =CONCATENATE(#REF!, BB111) -> 
AY112: Kamelya - Çardak 146 | AZ112: Adet | BA112: KM-146 | BB112: catalog/Kamelya-cardak/KM-146 BODYCOTE/KM-146-kamelya-kis-bahce-cardak-fabrika-sigara-icme-alani-fiyatlari-www.kayalarkereste.com-03.jpg | BC112: 5800 | BE112: =CONCATENATE(#REF!, BB112) -> 
AY113: Kamelya - Çardak 147 | AZ113: Adet | BA113: KM-147 | BB113: 2018/02/KM-147-kemer-kamelya-ahsap-dinlenme-alani-kis-bahcesi-cardak-gazebo-fiyatlari-www.kayalarkereste.com- 06.jpg | BC113: 7540 | BE113: =CONCATENATE(#REF!, BB113) -> 
AY114: Kamelya - Çardak 148 | AZ114: M2 | BA114: KM-148 | BB114: catalog/Kamelya-cardak/KM-148 MORYAYLA/bahce-kamelya-km-148-04.jpg | BC114: 812 | BE114: =CONCATENATE(#REF!, BB114) -> 
AY115: Kamelya - Çardak 150 | AZ115: Adet | BA115: KM-150 | BB115: catalog/Kamelya-cardak/KM-150/KM-150-kamelya-ahsap-kis-bahce-cardak-fiyatlari-ucuz-kameriye-www.kayalarkereste.com-13.jpg | BC115: 6000 | BE115: =CONCATENATE(#REF!, BB115) -> 
AY116: Kamelya - Çardak 151 | AZ116: Adet | BA116: KM-151 | BB116: catalog/Kamelya-cardak/KM-151 BOSAL/ahsap-cardak-kamelya-dinlenme-sigara-icme-alani-gebze-pelitli-balcik-www.kayalarkereste.com-km-148-03.jpg | BC116: 12000 | BE116: =CONCATENATE(#REF!, BB116) -> 
AY117: Kamelya - Fabrika Dinlenme Alanı Çardak 152 | AZ117: Adet | BA117: KM-152 | BB117: catalog/Kamelya-cardak/KM-152 FATER/KM-152-kamelya-ahsap-cardak-fiyatlari-ucuz-kameriye-www.kayalarkereste.com-01.jpg | BC117: 8000 | BE117: =CONCATENATE(#REF!, BB117) -> 
AY118: Kamelya - Çardak 153 | AZ118: Adet | BA118: KM-153 | BB118: catalog/Kamelya-cardak/KM-153/km-153-ahsap-kamelya-bahce-platform-dinlenme-alani-04.jpg | BC118: 4200 | BE118: =CONCATENATE(#REF!, BB118) -> 
AY119: Kamelya - Çardak 154 | AZ119: Adet | BA119: KM-154 | BB119: catalog/Kamelya-cardak/KM-154/cardak-kamelya-gazebo-ahsap-oturma-dinlenme-alani-kartal-pendik-gebze-www.kayalarahsap.com-KM-154-01.jpg | BC119: 5500 | BE119: =CONCATENATE(#REF!, BB119) -> 
AY120: Kamelya - Çardak 155 | AZ120: Adet | BA120: KM-155 | BB120: catalog/Kamelya-cardak/KM-155 SANGO UZUN/cardak-kamelya-gazebo-ahsap-sigara-icme-oturma-dinlenme-alani-sango-gebze-www.kayalarahsap.com-KM-155-01.jpg | BC120: 19800 | BE120: =CONCATENATE(#REF!, BB120) -> 
AY121: Kamelya - Çardak 156 | AZ121: Adet | BA121: KM-156 | BB121: catalog/Kamelya-cardak/KM-156/cardak-kamelya-gazebo-ahsap-sigara-icme-oturma-dinlenme-alani-sango-gebze-www.kayalarahsap.com-KM-156-01.jpg | BC121: 9000 | BE121: =CONCATENATE(#REF!, BB121) -> 
AY122: Kamelya - Çardak 157 | AZ122: Adet | BA122: KM-157 | BB122: catalog/Kamelya-cardak/KM-157 AYDINLI YAVUZHAN 4X4/KM-157-kamelya-ahsap-kis-bahce-cardak-gazebo-fiyatlari-ucuz-kamelya-kameriye-www.kayalarkereste.com-04.jpg | BC122: 9600 | BE122: =CONCATENATE(#REF!, BB122) -> 
AY123: Kamelya - Çardak 158 | AZ123: Adet | BA123: KM-158 | BB123: catalog/Kamelya-cardak/KM-158/KM-158-kamelya-ahsap-cardak-gazebo-kameriye-ucuz-kamelya-fiyatlari-istanbul-gebze-www.kayalarkereste.com-07.JPG | BC123: 9600 | BE123: =CONCATENATE(#REF!, BB123) -> 
AY124: Kamelya - Çardak 159 | AZ124: Adet | BA124: KM-159 | BB124: catalog/Kamelya-cardak/KM-159 TUZLA YAVUZHAN 3,5 X 3,5/km-159-cardak-ahsap-kamelya-tuzla-pendik-gebze-gazebo-ucuz-kamelya-fiyatlari-www.kayalarkereste.com-02.jpg | BC124: 8150 | BE124: =CONCATENATE(#REF!, BB124) -> 
AY125: Kamelya - Çardak 160 | AZ125: Adet | BA125: KM-160 | BB125: catalog/Kamelya-cardak/KM-160 AYDINLI YAVUZHAN 3X5/KM-160-kamelya-kis-bahce-cardak-site-dinlenme-alani-cardak-fiyatlari-gebze-tuzla-pendik-www.kayalarkereste.com-01.jpg | BC125: 10500 | BE125: =CONCATENATE(#REF!, BB125) -> 
AY126: Serender - Nayla 162 | AZ126: Adet | BA126: KM-162 | BB126: catalog/Kamelya-cardak/KM-162/km-162-nayla-serender-cift-katli-kamelya-ahsap-nayla-serender-fiyatlari-www.kayalarkereste.com-01.jpg | BC126: 18000 | BE126: =CONCATENATE(#REF!, BB126) -> 
AY127: Kamelya - Çardak 163 | AZ127: Adet | BA127: KM-163 | BB127: catalog/Kamelya-cardak/KM-163/km-163-ahsap-sekizgen-yuvarlak-kamelya-cardak-gazebo-fiyatlari-gebze-tuzla-pendik-kurtkoy-www.kayalarkereste.com-07.jpg | BC127: 9600 | BE127: =CONCATENATE(#REF!, BB127) -> 
AY128: PA-131 Çocuk Oyun Parkı | AZ128: Adet | BA128: PA-131 | BB128: catalog/Oyun-Park/PA-131/cocuk-oyun-parki-gebze-ahsap-oyun-alani-fiyatlari-www.ahsapfiyatlistesi.com-PA-131-01.jpg | BC128: 7540 | BE128: =CONCATENATE(#REF!, BB128) -> 
AY129: TAVUK ve KANATLI HAYVAN KÜMESİ 101 | AZ129: Adet | BA129: UK-101 | BB129: catalog/kumes/UK-101/IMG_1923.jpg | BC129: 2204 | BE129: =CONCATENATE(#REF!, BB129) -> 
AY130: TAVUK ve KANATLI HAYVAN KÜMESİ 102 | AZ130: Adet | BA130: UK-102 | BB130: catalog/kumes/UK-102/IMG_1678.jpg | BC130: 2204 | BE130: =CONCATENATE(#REF!, BB130) -> 
AY131: TAVUK ve KANATLI HAYVAN KÜMESİ 103 | AZ131: Adet | BA131: UK-103 | BB131: catalog/kumes/UK-103/ahsap-tavuk-guvercin-kumes-uk-103-03.jpg | BC131: 3306 | BE131: =CONCATENATE(#REF!, BB131) -> 
AY132: TAVUK ve KANATLI HAYVAN KÜMESİ 104 | AZ132: Adet | BA132: UK-104 | BB132: catalog/kumes/UK-104/ahsap-tavuk-kumesi-uk-104-01.jpg | BC132: 3306 | BE132: =CONCATENATE(#REF!, BB132) -> 
AY133: AHŞAP KÖPRU KU-102 | AZ133: Metre | BA133: KU-102 | BB133: catalog/kopru/KU-102/ku-102-ahsap-kopru-cesitleri-fiyatlari-resimleri-gebze-kocaeli-istanbul-1.jpg | BC133: 754 | BE133: =CONCATENATE(#REF!, BB133) -> 
AY134: Ahşap Saksı 101 | AZ134: Adet | BA134: AS-101 | BB134: catalog/saksi/AS-101/AS-101-ahsap-saksi-fiyatlari-ahsap-saksi-imalati-buyuk-ahsap saksi-ahsap-saksi-fiyatlari-www.kayalarahsap.com-01.jpg | BC134: 522 | BE134: =CONCATENATE(#REF!, BB134) -> 
AY135: Ahşap Saksı 102 | AZ135: Adet | BA135: AS-102 | BB135: catalog/saksi/AS-102/AS-102-ahsap-saksi-fiyatlari-ahsap-saksi-imalati-buyuk-maun-ahsap saksi-ahsap-saksi-fiyatlari-www.kayalarahsap.com-03.jpg | BC135: 638 | BE135: =CONCATENATE(#REF!, BB135) -> 
AY136: Ahşap Saksı 103 | AZ136: Adet | BA136: AS-103 | BB136: catalog/saksi/AS-103/AS-103-maun-ahsap-saksi-fiyatlari-ahsap-saksi-imalati-buyuk-maun-ahsap saksi-ahsap-saksi-fiyatlari-www.kayalarahsap.com-01.jpg | BC136: 638 | BE136: =CONCATENATE(#REF!, BB136) -> 
AY137: Ahşap Saksı 105 | AZ137: Adet | BA137: AS-105 | BB137: catalog/saksi/AS-105/AS-105-maun-ahsap-saksi-fiyatlari-ahsap-saksi-imalati-buyuk-maun-6gen-ahsap-saksi-ahsap-saksi-fiyatlari-www.kayalarahsap.~3.jpg | BC137: 348 | BE137: =CONCATENATE(#REF!, BB137) -> 
AY138: Ahşap Saksı 106 | AZ138: Adet | BA138: AS-106 | BB138: catalog/saksi/AS-106/AS-106-ahsap-saksi-fiyatlari-ahsap-saksi-imalati-buyuk-konik-8gen-ahsap-saksi-ahsap-saksi-fiyatlari-www.kayalarahsap.com-02.jpg | BC138: 278.4 | BE138: =CONCATENATE(#REF!, BB138) -> 
AY139: Ahşap Saksı 107 | AZ139: Adet | BA139: AS-107 | BB139: catalog/saksi/AS-107/AS-107-ahsap-saksi-fiyatlari-ahsap-saksi-imalati-buyuk-uzun-8gen-ahsap-saksi-ahsap-saksi-fiyatlari-www.kayalarahsap.com-01.jpg | BC139: 278.4 | BE139: =CONCATENATE(#REF!, BB139) -> 
AY140: Ahşap Saksı 108 | AZ140: Adet | BA140: AS-108 | BB140: catalog/saksi/AS-108/AS-108-ahsap-saksi-fiyatlari-ahsap-saksi-imalati-buyuk-uzun-8gen-ahsap-saksi-ahsap-saksi-fiyatlari-resimleri-www.kayalara~3.jpg | BC140: 278.4 | BE140: =CONCATENATE(#REF!, BB140) -> 
AY141: Ahşap Saksı 109 | AZ141: Adet | BA141: AS-109 | BB141: catalog/saksi/AS-109/AS-109-ahsap-saksi-fiyatlari-ahsap-saksi-imalati-buyuk-uzun-7gen-ahsap-saksi-yedi-gen-ahsap-saksi-cesitleri-resimleri-yed~3.jpg | BC141: 278.4 | BE141: =CONCATENATE(#REF!, BB141) -> 
AY142: Ahşap Saksı 110 | AZ142: Adet | BA142: AS-110 | BB142: catalog/Saksi/AS-110/AS-110-ahsap-saksi-fiyatlari-ahsap-saksi-imalati-6gen-altigen-ahsap-saksi-ahsap-saksi-cesitleri-resimleri-ahsap-saksi-fiyat-www.kayalarahsap.com-052.jpg | BC142: 278.4 | BE142: =CONCATENATE(#REF!, BB142) -> 
AY143: Ahşap Saksı 112 | AZ143: Adet | BA143: AS-112 | BB143: catalog/saksi/AS-112/AS-112-ahsap-saksi-fiyatlari-ahsap-saksi-imalati-dikdortgen-ahsap-saksi-ahsap-saksi-cesitleri-resimleri-ahsap-saksi-fiyat~1.jpg | BC143: 371.2 | BE143: =CONCATENATE(#REF!, BB143) -> 
AY144: Ahşap Saksı 113 | AZ144: Adet | BA144: AS-113 | BB144: catalog/saksi/AS-113/AS-113-ahsap-saksi-fiyatlari-ahsap-saksi-imalati-uzun-dikdortgen-ahsap-saksi-ahsap-saksi-cesitleri-resimleri-ahsap-saksi-~1.jpg | BC144: 371.2 | BE144: =CONCATENATE(#REF!, BB144) -> 
AY145: Ahşap Saksı 114 | AZ145: Adet | BA145: AS-114 | BB145: catalog/saksi/AS-114/AS-114-ahsap-saksi-fiyatlari-ahsap-saksi-imalati-dikdortgen-ahsap-saksi-ahsap-saksi-ciceklik-cesitleri-resimleri-ahsap-sa~2.jpg | BC145: 371.2 | BE145: =CONCATENATE(#REF!, BB145) -> 
AY146: Ahşap Saksı 117 | AZ146: Adet | BA146: AS-117 | BB146: catalog/saksi/AS-117-EL-ARABA-SAKSI/AS-117-ahsap-saksi-fiyatlari-el-arabasi-saksi-tekerlekli-araba-saksi-kayalarkereste.com-05.jpg | BC146: 638 | BE146: =CONCATENATE(#REF!, BB146) -> 
AY147: Ahşap Saksı 118 | AZ147: Adet | BA147: AS-118 | BB147: catalog/saksi/AS-118/AS-118-ahsap-saksi-fiyatlari-ahsap-saksi-imalati-uzun-dikdortgen-ahsap-saksi-ahsap-saksi-cesitleri-resimleri-ahsap-saksi-~1.jpg | BC147: 371.2 | BE147: =CONCATENATE(#REF!, BB147) -> 
AY148: Ahşap Saksı 119 | AZ148: Adet | BA148: AS-119 | BB148: catalog/saksi/AS-119/AS-119-ahsap-saksi-fiyatlari-ahsap-saksi-imalati-6gen-altigen-ahsap-saksi-ahsap-saksi-cesitleri-resimleri-ahsap-saksi-fiy~1.jpg | BC148: 278.4 | BE148: =CONCATENATE(#REF!, BB148) -> 
AY149: Ahşap Saksı 120 | AZ149: Adet | BA149: AS-120 | BB149: catalog/saksi/AS-120/AS-120-ahsap-saksi-fiyatlari-ahsap-saksi-imalati-yuksek-ahsap-saksi-uzun-ahsap-saksi-cesitleri-resimleri-ahsap-saksi-fiya~2.jpg | BC149: 406 | BE149: =CONCATENATE(#REF!, BB149) -> 
AX150: =HYPERLINK(BE150,BA150) ->  | AY150: Ahşap Saksı 122 | AZ150: Metre | BA150: AS-122 | BB150: catalog/saksi/AS-122/ahsap-panel-saksi-fiyatlari-modelleri-istanbul-kocaeli-www.kayalarkereste.com-as-122-05.jpg | BC150: 417.6 | BE150: =CONCATENATE(#REF!, BB150) -> 
AY151: Ahşap Saksı 123 | AZ151: Adet | BA151: AS-123 | BB151: catalog/saksi/AS-123 AT ARBASI/AS-123-at-arabasi-ahsap-saksi-01.jpg | BC151: 2552 | BE151: =CONCATENATE(#REF!, BB151) -> 
AY152: Ahşap Bungalov Yalı baskı Ev (AV-109) | AZ152: m2 | BA152: AV-109 | BB152: catalog/Ev/av-109/ahsap-bungalov-ev-av-109-00.jpg | BC152: 1566 | BE152: =CONCATENATE(#REF!, BB152) -> 
AY153: 1,8 x 12 Ahşap Cephe Kaplama Yalı Baskı YB-101 | AZ153: M2 | BA153: YB-101 | BB153: catalog/ahsap-cephe-kaplama/YB-101-12-en-2.5-kalin-duz/yb-101-yali-baski-bungalow-ev-cephe-kaplama-www.kayalarahsap.com-04.JPG | BC153: 55.68 | BE153: =CONCATENATE(#REF!, BB153) -> 
AY154: 3,5 x 12,5 Ahşap Cephe Kaplama Yalı Baskı YB-102 | AZ154: M2 | BA154: YB-102 | BB154: catalog/ahsap-cephe-kaplama/YB-102-12-EN-5-kalin-duz/ahsap-yali-baski-cephe-kaplama-03.jpg | BC154: 90.48 | BE154: =CONCATENATE(#REF!, BB154) -> 
AY155: 5 x 15 Ahşap Cephe Kaplama Yalı Baskı DÜZ YB-103 | AZ155: M2 | BA155: YB-103 | BB155: catalog/ahsap-cephe-kaplama/YB-103-15-en-5-kalin-duz/YaliBaski_5_duz_b.JPG | BC155: 125.28 | BE155: =CONCATENATE(#REF!, BB155) -> 
AY156: 5 x 15 Ahşap Cephe Kaplama Yalı Baskı Yuvarlak Yuzey YB-104 | AZ156: M2 | BA156: YB-104 | BB156: catalog/ahsap-cephe-kaplama/YB-104-15-en-5-kalin-yuvarlak/IMG_5117.JPG | BC156: 125.28 | BE156: =CONCATENATE(#REF!, BB156) -> 
AY157: 5 x 20 Ahşap Yalı Baskı Dış Cephe Kaplama Düz Yüzey YB-105 | AZ157: M2 | BA157: YB-105 | BB157: catalog/ahsap-cephe-kaplama/YB-105-20-en-5-kalin-duz/YB-105-ahsap-kutuk-yali-baski-bungalow-ev-cephe-kaplama--kutuk-ev-profil-www.kayalarahsap.com-01.jpg | BC157: 125 | BE157: =CONCATENATE(#REF!, BB157) -> 
AY158: 3 x 23 Geniş Ahşap Yalı Baskı Dış Cephe Kaplama Düz Yüzey YB-106 | AZ158: M2 | BA158: YB-106 | BB158: catalog/ahsap-cephe-kaplama/YB-106-23-en-3.5-kalin-duz/YB-106-ahsap-tarihi-eser-ev-dekorasyon-ahsap-yali-baski-bungalow-ev-cephe-kaplama-kutuk-ev-profil-www.kayalarahsap.com-03.jpg | BC158: 195 | BE158: =CONCATENATE(#REF!, BB158) -> 
AY159: 5 x 12,5 Yalı Baskı Dış Cephe Kaplama Düz Yüzey YB-107 | AZ159: M2 | BA159: YB-107 | BB159: catalog/ahsap-cephe-kaplama/YB-102-12-EN-5-kalin-duz/ahsap-yali-baski-cephe-kaplama-03.jpg | BC159: 125.28 | BE159: =CONCATENATE(#REF!, BB159) -> 
AY160: Kamelya - Çardak 161 | AZ160: M2 | BA160: KM-161 | BB160: catalog/Kamelya-cardak/KM-161/cardak-kamelya-gazebo-ahsap-oturma-dinlenme-alani-kartal-pendik-gebze-imes-kocaeli-www.kayalarahsap.com-KM-161-06.jpg | BC160: 800 | BE160: =CONCATENATE(#REF!, BB160) -> 
AY161: Rabıta 1-2. Sınıf (LM-107) | AZ161: M2 | BA161: LM-107 | BB161: catalog/lambiri-ahsap/LM-107-rabita-kalin-yer-doseme-www.kayalarkereste.com-02.jpg | BC161: 87 | BE161: =CONCATENATE(#REF!, BB161) -> 
AY162: DM-101 Doğal Lamine 12 kalın LADİN Ahşap Masa 90 x 200cm | AZ162: Adet | BA162: DM-101 | BB162: catalog/kutuk-masa/dm-101/lamine-ladin-12-kalin-kutuk-masa-fiyatlari-kayalarkereste.com-kutuk-dogal-agac-mobilya-01.jpg | BC162: 1102 | BE162: =CONCATENATE(#REF!, BB162) -> 
AY163: Doğal Lamine 12 kalın LADİN Ahşap Masa | AZ163: Adet | BA163: AS-124 | BB163: catalog/saksi/as-124/AS-124-at-arabasi-kucuk-ahsap-saksi-03.jpg | BC163: 754 | BE163: =CONCATENATE(#REF!, BB163) -> 
AY164: DM-102 Doğal Lamine 12 kalın LADİN Ahşap Masa 80 x 200cm | AZ164: Adet | BA164: DM-102 | BB164: catalog/kutuk-masa/dm-101/lamine-ladin-12-kalin-kutuk-masa-fiyatlari-kayalarkereste.com-kutuk-dogal-agac-mobilya-012.jpg | BC164: 928 | BE164: =CONCATENATE(#REF!, BB164) -> 
AY165: DM-111 Doğal Kütük Ağaç Masa Tablası | AZ165: Adet | BA165: DM-111 | BB165: catalog/kutuk-masa/dm-111/kutuk-dogal-agac-masa-tabla-fiyatlari-www.kayalarkereste.com-04.jpg | BC165: 2424.4 | BE165: =CONCATENATE(#REF!, BB165) -> 
AY166: DM-112-Doğal Kütük Ağaç Masa Tablası | AZ166: Adet | BA166: DM-112 | BB166: catalog/kutuk-masa/IMG_E3393.JPG | BC166: 2534.6 | BE166: =CONCATENATE(#REF!, BB166) -> 
AY167: Ahşap Bungalov Kulube-Ev (AV-110) | AZ167: Adet | BA167: AV-110 | BB167: catalog/Ev/av-110/av-110-bungalov-ahsap-ev-kutuk--kulube-ev-fiyatlari-yapimi-maliyeti-resimleri-gebze-www.kayalarahsap.com-03.jpg | BC167: 11136 | BE167: =CONCATENATE(#REF!, BB167) -> 
AY168: KT-105 Ahşap Kütük - Bungalov Ev Profil | AZ168: M2 | BA168: KT-105 | BB168: catalog/Profil/Kutuk-Ev/KT-105/KT-105-kutuk-ahsap-bungalov-ev-profil-5-kalin-15-genislik-03.jpg | BC168: 129.92 | BE168: =CONCATENATE(#REF!, BB168) -> 
AY169: KT-110 Ahşap Kütük - Bungalov Ev Profil | AZ169: M2 | BA169: KT-110 | BB169: catalog/Profil/Kutuk-Ev/KT-110/kt-110-kutuk-ahsap-bungalov-ev-ahsap-profil-10-kalin-15-genislik-02.jpg | BC169: 179.8 | BE169: =CONCATENATE(#REF!, BB169) -> 
AY170: KT-118 Ahşap Kütük - Bungalov Ev Profil | AZ170: M2 | BA170: KT-118 | BB170: catalog/Profil/Kutuk-Ev/KT-118/kt-118-lamine-kutuk-ev-profil-ahsab-15cm-x-18cm-01.jpg | BC170: 568.4 | BE170: =CONCATENATE(#REF!, BB170) -> 
AY171: Lambiri -1. Sınıf SİBİRYA (LM-108) | AZ171: M2 | BA171: LM-108 | BB171: catalog/Profil/Lambiri-Rabita/LM-108-ahsap-lambiri-fiyatlari-sibirya-lambiri-rabita-cesitleri-resimleri-01.jpg | BC171: 48 | BE171: =CONCATENATE(#REF!, BB171) -> 
AY172: TEAK Burma Kereste (1.4 cm, 2 cm, 4 cm, 5.3 cm, 6.5 cm kalınlık) x (53 mm geniş) x (90-170 cm arası boy) BT-101 | AZ172: M3 | BA172: BT-101 | BB172: catalog/silinmis-kereste/ks-113-iroko-silinmis-profil-ahsap-kereste-78mm-x-16mm-01.jpg | BC172: 4725 | BE172: =CONCATENATE(#REF!, BB172) -> 
AY173: TEAK Burma Kereste (1.4 cm, 2 cm, 4 cm, 5.3 cm, 6.5 cm kalınlık) x (78 mm geniş) x (90-170 cm boy) BT-102 | AZ173: M3 | BA173: BT-102 | BB173: catalog/silinmis-kereste/ks-113-iroko-silinmis-profil-ahsap-kereste-78mm-x-16mm-01.jpg | BC173: 5145 | BE173: =CONCATENATE(#REF!, BB173) -> 
AY174: TEAK Burma Kereste (1.4 cm, 2 cm, 4 cm, 5.3 cm, 6.5 cm kalınlık) x (53 mm geniş) x (180-290 cm boy) BT-103 | AZ174: M3 | BA174: BT-103 | BB174: catalog/silinmis-kereste/ks-113-iroko-silinmis-profil-ahsap-kereste-78mm-x-16mm-01.jpg | BC174: 5250 | BE174: =CONCATENATE(#REF!, BB174) -> 
AY175: TEAK Burma Kereste (1.4 cm, 2 cm, 4 cm, 5.3 cm, 6.5 cm kalınlık) x (78 mm geniş) x (180-290 cm boy) BT-104 | AZ175: M3 | BA175: BT-104 | BB175: catalog/silinmis-kereste/ks-113-iroko-silinmis-profil-ahsap-kereste-78mm-x-16mm-01.jpg | BC175: 5617 | BE175: =CONCATENATE(#REF!, BB175) -> 
AY176: TEAK Burma Kereste (1.4 cm, 2 cm, 4 cm, 5.3 cm, 6.5 cm kalınlık) x (103 mm geniş) x (180-290 cm boy) BT-105 | AZ176: M3 | BA176: BT-105 | BB176: catalog/silinmis-kereste/ks-113-iroko-silinmis-profil-ahsap-kereste-78mm-x-16mm-01.jpg | BC176: 6030 | BE176: =CONCATENATE(#REF!, BB176) -> 
AY177: TEAK Burma Kereste (1.4 cm, 2 cm, 4 cm, 5.3 cm, 6.5 cm kalınlık) x (130 mm geniş) x (180-290 cm boy) BT-106 | AZ177: M3 | BA177: BT-106 | BB177: catalog/silinmis-kereste/ks-113-iroko-silinmis-profil-ahsap-kereste-78mm-x-16mm-01.jpg | BC177: 6142 | BE177: =CONCATENATE(#REF!, BB177) -> 
AY178: TEAK Burma Kereste (1.4 cm, 2 cm, 4 cm, 5.3 cm, 6.5 cm kalınlık) x (155 mm geniş) x (180-290 cm boy) BT-107 | AZ178: M3 | BA178: BT-107 | BB178: catalog/silinmis-kereste/ks-113-iroko-silinmis-profil-ahsap-kereste-78mm-x-16mm-01.jpg | BC178: 6300 | BE178: =CONCATENATE(#REF!, BB178) -> 
AY179: TEAK Burma Kereste (1.4 cm, 2 cm, 4 cm, 5.3 cm, 6.5 cm kalınlık) x (180-260 mm geniş) x (180-290 cm boy) BT-108 | AZ179: M3 | BA179: BT-108 | BB179: catalog/silinmis-kereste/ks-113-iroko-silinmis-profil-ahsap-kereste-78mm-x-16mm-01.jpg | BC179: 6825 | BE179: =CONCATENATE(#REF!, BB179) -> 
AY180: TEAK Burma Kereste (1.4 cm, 2 cm, 4 cm, 5.3 cm, 6.5 cm kalınlık) x (280 mm uzeri geniş) x (180-290 cm boy) BT-109 | AZ180: M3 | BA180: BT-109 | BB180: catalog/silinmis-kereste/ks-113-iroko-silinmis-profil-ahsap-kereste-78mm-x-16mm-01.jpg | BC180: 7350 | BE180: =CONCATENATE(#REF!, BB180) -> 
AY181: TEAK Burma Kereste (5.5 cm, 6.5 cm, 10 cm ve üzeri kalınlık) x (10 - 13 cm geniş) x (300 cm üzeri boy) BT-110 | AZ181: M3 | BA181: BT-110 | BB181: catalog/silinmis-kereste/ks-113-iroko-silinmis-profil-ahsap-kereste-78mm-x-16mm-01.jpg | BC181: 6825 | BE181: =CONCATENATE(#REF!, BB181) -> 
AY182: TEAK Burma Kereste (5.5 cm, 6.5 cm, 10 cm ve üzeri kalınlık) x (15,5 - 18 cm geniş) x (300 cm üzeri boy) BT-111 | AZ182: M3 | BA182: BT-111 | BB182: catalog/silinmis-kereste/ks-113-iroko-silinmis-profil-ahsap-kereste-78mm-x-16mm-01.jpg | BC182: 7080 | BE182: =CONCATENATE(#REF!, BB182) -> 
AY183: TEAK Burma Kereste (5.5 cm, 6.5 cm, 10 cm ve üzeri kalınlık) x (18 - 26 cm geniş) x (300 cm üzeri boy) BT-112 | AZ183: M3 | BA183: BT-112 | BB183: catalog/silinmis-kereste/ks-113-iroko-silinmis-profil-ahsap-kereste-78mm-x-16mm-01.jpg | BC183: 7350 | BE183: =CONCATENATE(#REF!, BB183) -> 
AY184: TEAK Burma Kereste (5.5 cm, 6.5 cm, 10 cm ve üzeri kalınlık) x (28 cm üzeri geniş) x (300 cm üzeri boy) BT-113 | AZ184: M3 | BA184: BT-113 | BB184: catalog/silinmis-kereste/ks-113-iroko-silinmis-profil-ahsap-kereste-78mm-x-16mm-01.jpg | BC184: 7880 | BE184: =CONCATENATE(#REF!, BB184) -> 
AY185: TEAK Burma Kereste (1 cm kalınlık x 5 cm geniş) x (90 - 170 cm arası boy) BT-121 | AZ185: M2 | BA185: BT-121 | BB185: catalog/Profil/silinmis-profil-kereste/bt-121-123-teak-profil-ahsap-silinmis-kereste-50mm-x-10mm.jpg | BC185: 65 | BE185: =CONCATENATE(#REF!, BB185) -> 
AY186: TEAK Burma Kereste (1 cm kalınlık x 7,5 cm geniş) x (90 - 170 cm arası boy) BT-122 | AZ186: M2 | BA186: BT-122 | BB186: catalog/silinmis-kereste/ks-113-iroko-silinmis-profil-ahsap-kereste-78mm-x-16mm-01.jpg | BC186: 71 | BE186: =CONCATENATE(#REF!, BB186) -> 
AY187: TEAK Burma Kereste (1 cm kalınlık x 5 cm geniş) x (180 - 240 cm arası boy) BT-123 | AZ187: M2 | BA187: BT-123 | BB187: catalog/Profil/silinmis-profil-kereste/bt-121-123-teak-profil-ahsap-silinmis-kereste-50mm-x-10mm.jpg | BC187: 75 | BE187: =CONCATENATE(#REF!, BB187) -> 
AY188: TEAK Burma Kereste (1 cm kalınlık x 7,5 cm geniş) x (180 - 240 cm arası boy) BT-124 | AZ188: M2 | BA188: BT-124 | BB188: catalog/silinmis-kereste/ks-113-iroko-silinmis-profil-ahsap-kereste-78mm-x-16mm-01.jpg | BC188: 80 | BE188: =CONCATENATE(#REF!, BB188) -> 
AY189: TEAK Burma Kereste (1 cm kalınlık x 9,5 cm geniş) x (180 - 240 cm arası boy) BT-125 | AZ189: M2 | BA189: BT-125 | BB189: catalog/silinmis-kereste/ks-113-iroko-silinmis-profil-ahsap-kereste-78mm-x-16mm-01.jpg | BC189: 85 | BE189: =CONCATENATE(#REF!, BB189) -> 
AY190: TEAK Burma Kereste (1 cm kalınlık x 12,5 cm geniş) x (180 - 240 cm arası boy) BT-126 | AZ190: M2 | BA190: BT-126 | BB190: catalog/silinmis-kereste/ks-113-iroko-silinmis-profil-ahsap-kereste-78mm-x-16mm-01.jpg | BC190: 90 | BE190: =CONCATENATE(#REF!, BB190) -> 
AY191: TEAK Burma DECK işlenmiş (1,8 cm kalınlık x 5 cm geniş) x (90 - 170 cm arası boy) BT-131 | AZ191: M2 | BA191: BT-131 | BB191: catalog/silinmis-kereste/ks-113-iroko-silinmis-profil-ahsap-kereste-78mm-x-16mm-01.jpg | BC191: 85 | BE191: =CONCATENATE(#REF!, BB191) -> 
AY192: Epoksi Masa Tablası XP-01 | AZ192: Adet | BA192: XP-01 | BB192: catalog/Epoxi-Masa/epoksi-ahsap-ceviz-mese-kestane-masa-XP-01.jpg | BC192: 4060 | BE192: =CONCATENATE(#REF!, BB192) -> 
AY193: TEAK Burma DECK işlenmiş (1,8 cm kalınlık x 5 cm geniş) x (90 - 170 cm arası boy) BT-132 | AZ193: M2 | BA193: BT-132 | BB193: catalog/silinmis-kereste/ks-113-iroko-silinmis-profil-ahsap-kereste-78mm-x-16mm-01.jpg | BC193: 79 | BE193: =CONCATENATE(#REF!, BB193) -> 
AY194: TEAK Burma DECK işlenmiş (1,8 cm kalınlık x 95 mm geniş) x (90 - 170 cm arası boy) BT-133 | AZ194: M2 | BA194: BT-133 | BB194: catalog/silinmis-kereste/ks-113-iroko-silinmis-profil-ahsap-kereste-78mm-x-16mm-01.jpg | BC194: 85 | BE194: =CONCATENATE(#REF!, BB194) -> 
AY195: TEAK Burma DECK işlenmiş (1,8 cm kalınlık x 125 mm geniş) x (90 - 170 cm arası boy) BT-134 | AZ195: M2 | BA195: BT-134 | BB195: catalog/silinmis-kereste/ks-113-iroko-silinmis-profil-ahsap-kereste-78mm-x-16mm-01.jpg | BC195: 90 | BE195: =CONCATENATE(#REF!, BB195) -> 
AY196: TEAK Burma DECK işlenmiş (1,8 cm kalınlık x 50 mm geniş) x (180 - 240 cm arası boy) BT-135 | AZ196: M2 | BA196: BT-135 | BB196: catalog/silinmis-kereste/ks-113-iroko-silinmis-profil-ahsap-kereste-78mm-x-16mm-01.jpg | BC196: 85 | BE196: =CONCATENATE(#REF!, BB196) -> 
AY197: TEAK Burma DECK işlenmiş (1,8 cm kalınlık x 75 mm geniş) x (180 - 240 cm arası boy) BT-136 | AZ197: M2 | BA197: BT-136 | BB197: catalog/silinmis-kereste/ks-113-iroko-silinmis-profil-ahsap-kereste-78mm-x-16mm-01.jpg | BC197: 89 | BE197: =CONCATENATE(#REF!, BB197) -> 
AY198: TEAK Burma DECK işlenmiş (1,8 cm kalınlık x 90 mm geniş) x (180 - 240 cm arası boy) BT-137 | AZ198: M2 | BA198: BT-137 | BB198: catalog/silinmis-kereste/ks-113-iroko-silinmis-profil-ahsap-kereste-78mm-x-16mm-01.jpg | BC198: 99 | BE198: =CONCATENATE(#REF!, BB198) -> 
AY199: TEAK Burma DECK işlenmiş (1,8 cm kalınlık x 125 mm geniş) x (180 - 240 cm arası boy) BT-138 | AZ199: M2 | BA199: BT-138 | BB199: catalog/silinmis-kereste/ks-113-iroko-silinmis-profil-ahsap-kereste-78mm-x-16mm-01.jpg | BC199: 115 | BE199: =CONCATENATE(#REF!, BB199) -> 
AY200: TEAK Burma DECK işlenmiş (2,4 cm kalınlık x 5 cm geniş) x (90 - 170 cm arası boy) BT-151 | AZ200: M2 | BA200: BT-151 | BB200: catalog/silinmis-kereste/ks-113-iroko-silinmis-profil-ahsap-kereste-78mm-x-16mm-01.jpg | BC200: 93 | BE200: =CONCATENATE(#REF!, BB200) -> 
AY201: TEAK Burma DECK işlenmiş (2,4 cm kalınlık x 7,5 cm geniş) x (90 - 170 cm arası boy) BT-152 | AZ201: M2 | BA201: BT-152 | BB201: catalog/silinmis-kereste/ks-113-iroko-silinmis-profil-ahsap-kereste-78mm-x-16mm-01.jpg | BC201: 99 | BE201: =CONCATENATE(#REF!, BB201) -> 
AY202: TEAK Burma DECK işlenmiş (2,4 cm kalınlık x 9,5 cm geniş) x (90 - 170 cm arası boy) BT-153 | AZ202: M2 | BA202: BT-153 | BB202: catalog/silinmis-kereste/ks-113-iroko-silinmis-profil-ahsap-kereste-78mm-x-16mm-01.jpg | BC202: 110 | BE202: =CONCATENATE(#REF!, BB202) -> 
AY203: TEAK Burma DECK işlenmiş (2,4 cm kalınlık x 12,5 cm geniş) x (90 - 170 cm arası boy) BT-154 | AZ203: M2 | BA203: BT-154 | BB203: catalog/silinmis-kereste/ks-113-iroko-silinmis-profil-ahsap-kereste-78mm-x-16mm-01.jpg | BC203: 125 | BE203: =CONCATENATE(#REF!, BB203) -> 
AY204: TEAK Burma DECK işlenmiş (2,4 cm kalınlık x 5 cm geniş) x (180 - 240 cm arası boy) BT-155 | AZ204: M2 | BA204: BT-155 | BB204: catalog/silinmis-kereste/ks-113-iroko-silinmis-profil-ahsap-kereste-78mm-x-16mm-01.jpg | BC204: 120 | BE204: =CONCATENATE(#REF!, BB204) -> 
AY205: TEAK Burma DECK işlenmiş (2,4 cm kalınlık x 7,5 cm geniş) x (180 - 240 cm arası boy) BT-156 | AZ205: M2 | BA205: BT-156 | BB205: catalog/silinmis-kereste/ks-113-iroko-silinmis-profil-ahsap-kereste-78mm-x-16mm-01.jpg | BC205: 130 | BE205: =CONCATENATE(#REF!, BB205) -> 
AY206: TEAK Burma DECK işlenmiş (2,4 cm kalınlık x 9,5 cm geniş) x (180 - 240 cm arası boy) BT-157 | AZ206: M2 | BA206: BT-157 | BB206: catalog/silinmis-kereste/ks-113-iroko-silinmis-profil-ahsap-kereste-78mm-x-16mm-01.jpg | BC206: 150 | BE206: =CONCATENATE(#REF!, BB206) -> 
AY207: TEAK Burma DECK işlenmiş (2,4 cm kalınlık x 12,5 cm geniş) x (180 - 240 cm arası boy) BT-158 | AZ207: M2 | BA207: BT-158 | BB207: catalog/silinmis-kereste/ks-113-iroko-silinmis-profil-ahsap-kereste-78mm-x-16mm-01.jpg | BC207: 165 | BE207: =CONCATENATE(#REF!, BB207) -> 
AY208: IROKO DECK (1,8 cm kalınlık x 9,5 cm geniş) x (90 - 190 cm arası boy %25-30 -- 200 - 300 cm arası boy %70-75) BT-181 | AZ208: M2 | BA208: BT-181 | BB208: catalog/silinmis-kereste/ks-113-iroko-silinmis-profil-ahsap-kereste-78mm-x-16mm-01.jpg | BC208: 30 | BE208: =CONCATENATE(#REF!, BB208) -> 
... 54 more rows
